Body Name,Trans.date,Department Code,Department,Expense Area Code,Expense Area,Expense Type Code,Expense Type,Amount Paid (�),Supplier name,Extended Description,TransNo,Period
Rother District Council,01/11/2021,999NOREPORT,Not included in reporting,70718,Capital - Sidley Recreation Ground,N1004,Architects & Consultant Fees,517.75,Baker Architectural Ltd,Architects & Consultant Fees Capital-Architect and Conslt Fees,2036121,202207
Rother District Council,22/02/2022,041ENVIRON,Environmental Services,32134,EH Pollution R + W Partnership,D2513,Hired and Contracted services,44.10,Office Depot International Ltd T/A Viking,Interest Paid - Late Invoice Payment Fee,2036358,202207
Rother District Council,22/02/2022,041ENVIRON,Environmental Services,32134,EH Pollution R + W Partnership,D1201,Equipment & Materials,67.47,Viking Direct Ltd,Equipment & Materials - EnvH- Pollution Equipment,2036358,202207
Rother District Council,28/02/2022,031RESOURCES,Chief Executive & Corporate Core,20162,Electoral Registration,D2626,Postages,632.96,Royal Mail Group Ltd,Postages - Response Service-Royal Mail Chg,2037287,202209
Rother District Council,09/03/2022,091HOUSING,Housing and Community Services,20200,Housing Needs - HB (Housing Benefit),D2514,Accommodation Costs,0.02,Lloyds Bank,Accommodation Costs,2036364,202207
Rother District Council,09/03/2022,091HOUSING,Housing and Community Services,20200,Housing Needs - HB (Housing Benefit),D2514,Accommodation Costs,3.80,Lloyds Bank,Accommodation Costs - Homelessness services Temp Accom - No VAT,2034383,202207
Rother District Council,31/03/2022,081ACQUISIT,"Acquisitions, Transformation and Regeneration",20338,7-12 Beeching Road Studios ( Regeneration Project ),D2312,Refreshments,"1,486.85",Cascade Water Systems Ltd,Refreshments - Watercooler Service,2036666,202208
Rother District Council,31/03/2022,081ACQUISIT,"Acquisitions, Transformation and Regeneration",20104,Ancient Monuments & Gazebo,B1100,Repairs to Premises,"17,255.25",Traditional Stone Restoration Limited,Repairs to Premises - Repairs Refurbishment of premises,2036207,202207
Rother District Council,06/04/2022,091HOUSING,Housing and Community Services,20109,Sports Development,D2923,Grants made,250.00,Bexhill Breathers,Grants made - Sports Development-Active Rother,2036931,202208
Rother District Council,11/04/2022,101RESOURCES,Resources,20239,Computer Services,D2420,General office supplies (Stationery purchased from ext suppliers),"1,623.01",,General office supplies (Stationery purchased from ext suppliers),2036571,202208
Rother District Council,11/04/2022,091HOUSING,Housing and Community Services,20204,Housing Administration Account,C2335,Public transport,62.40,Lloyds Bank,Public Transport - Train tickets,2036572,202207
Rother District Council,11/04/2022,031RESOURCES,Chief Executive & Corporate Core,20173,Administrative Offices - Town Hall,D1201,Equipment & Materials,319.99,Lloyds Bank,Equipment & materials - Miscellaneous,2036574,202208
Rother District Council,11/04/2022,091HOUSING,Housing and Community Services,20145,Maintenance Services,D1201,Equipment & Materials,32.53,Lloyds Bank,Equipment & Materials - Purchase of Tools,2036574,202208
Rother District Council,11/04/2022,101RESOURCES,Resources,20239,Computer Services,D2420,General office supplies (Stationery purchased from ext suppliers),25.64,Lloyds Bank,General office supplies - Stationery,2036571,202208
Rother District Council,11/04/2022,091HOUSING,Housing and Community Services,20204,Housing Administration Account,D2513,Hired and Contracted services,4.00,Lloyds Bank,Car Parking - On Street Car Parking,2036572,202207
Rother District Council,11/04/2022,091HOUSING,Housing and Community Services,20306,Afghan Relocation Assistance Policy,D2513,Hired and Contracted services,120.00,Lloyds Bank,Hired and contracted services - Afghan Misc,2036569,202207
Rother District Council,11/04/2022,091HOUSING,Housing and Community Services,20261,"TA Purchases (prev - 41 Jameson Mews, Bexhill on Sea)",D2513,Hired and Contracted services,7.36,Lloyds Bank,Hired and contracted services - Service fee paid,2036567,202207
Rother District Council,11/04/2022,091HOUSING,Housing and Community Services,20202,Rother Tenant Finder (prev Rother Letting Service),D2513,Hired and Contracted services,59.48,Lloyds Bank,Hired and contracted services - Service fee paid,2036567,202207
Rother District Council,11/04/2022,091HOUSING,Housing and Community Services,20304,Housing First,D2513,Hired and Contracted services,157.06,Lloyds Bank,Hired and contracted services - Service fee paid,2036567,202207
Rother District Council,11/04/2022,091HOUSING,Housing and Community Services,20261,"TA Purchases (prev - 41 Jameson Mews, Bexhill on Sea)",D2513,Hired and Contracted services,49.40,Lloyds Bank,Hired and contracted services - Service fee paid,2036567,202207
Rother District Council,11/04/2022,091HOUSING,Housing and Community Services,20201,Household Support Fund (HFS) from 202108,D2513,Hired and Contracted services,320.00,Lloyds Bank,Hired and contracted services - Service fee paid,2036572,202207
Rother District Council,11/04/2022,091HOUSING,Housing and Community Services,20261,"TA Purchases (prev - 41 Jameson Mews, Bexhill on Sea)",D2513,Hired and Contracted services,21.10,Lloyds Bank,Hired and contracted services - Service fee paid,2036572,202207
Rother District Council,11/04/2022,091HOUSING,Housing and Community Services,20206,UK Resettlement (Syrians),D2513,Hired and Contracted services,9.10,Lloyds Bank,Hired and contracted services - Syrian Misc,2036569,202207
Rother District Council,11/04/2022,091HOUSING,Housing and Community Services,20206,UK Resettlement (Syrians),D2513,Hired and Contracted services,8.60,Lloyds Bank,Hired and contracted services - Syrian Misc,2036572,202207
Rother District Council,11/04/2022,091HOUSING,Housing and Community Services,20206,UK Resettlement (Syrians),D2513,Hired and Contracted services,12.60,Lloyds Bank,Hired and contracted services - Syrian Misc,2036573,202207
Rother District Council,11/04/2022,091HOUSING,Housing and Community Services,20206,UK Resettlement (Syrians),D2513,Hired and Contracted services,222.00,Lloyds Bank,Hired and contracted services - Syrian-Bus Pass,2036573,202207
Rother District Council,11/04/2022,091HOUSING,Housing and Community Services,20200,Housing Needs - HB (Housing Benefit),D2514,Accommodation Costs,42.99,Lloyds Bank,Accommodation Costs - Homelessness services Temp Accom-plus VAT,2036574,202208
Rother District Council,11/04/2022,091HOUSING,Housing and Community Services,20200,Housing Needs - HB (Housing Benefit),D2514,Accommodation Costs,"1,979.64",Lloyds Bank,Accommodation Costs - Homelessness services Temp Accom-plus VAT,2036568,202208
Rother District Council,11/04/2022,091HOUSING,Housing and Community Services,20200,Housing Needs - HB (Housing Benefit),D2514,Accommodation Costs,567.91,Lloyds Bank,Accommodation Costs - Homelessness services Temp Accom-plus VAT,2036570,202207
Rother District Council,11/04/2022,091HOUSING,Housing and Community Services,20337,Homes for Ukraine Accommodation,D2622,Mobile Phones,91.63,Lloyds Bank,Mobile Phones - Purchase of mobile phones,2036575,202208
Rother District Council,11/04/2022,101RESOURCES,Resources,20239,Computer Services,D2633,Computer Equipment,274.37,Lloyds Bank,Computer Equipment - Computer peripherals,2036571,202208
Rother District Council,11/04/2022,091HOUSING,Housing and Community Services,20236,Customer Services and Development,D2635,Computer Licences,4.02,Lloyds Bank,Computer Licences - New Computer Software,2036575,202208
Rother District Council,11/04/2022,091HOUSING,Housing and Community Services,20236,Customer Services and Development,D2635,Computer Licences,146.28,Lloyds Bank,Computer Licences - New Computer Software,2036575,202208
Rother District Council,29/04/2022,999NOREPORT,Not included in reporting,70725,Capital - Blackfriars,D2513,Hired and Contracted services,"2,812.00",Bevan Brittan LLP,Hired and contracted services - Legal Advice,2036744,202208
Rother District Council,09/05/2022,031RESOURCES,Chief Executive & Corporate Core,20162,Electoral Registration,D2626,Postages,50.84,Royal Mail Group Ltd,Postages - Response Service-Royal Mail Chg,2037288,202209
Rother District Council,09/05/2022,031RESOURCES,Chief Executive & Corporate Core,20162,Electoral Registration,D2626,Postages,33.04,Royal Mail Group Ltd,Postages - Response Service-Royal Mail Chg,2037289,202209
Rother District Council,11/05/2022,101RESOURCES,Resources,20209,Corporate management,D2513,Hired and Contracted services,80.91,Lloyds Bank,Bank Charges,2036482,202207
Rother District Council,25/05/2022,081ACQUISIT,"Acquisitions, Transformation and Regeneration",20153,"Elva Business Centre, Bexhill",B1100,Repairs to Premises,80.66,Stannah Lift Services Ltd,Repairs to Premises - Specified Repairs and Works listed,2033736,202207
Rother District Council,26/05/2022,031RESOURCES,Chief Executive & Corporate Core,20183,Chief Executive,A2203,Training,287.50,Solace in Business / Solace Group,Training,2036667,202208
Rother District Council,30/05/2022,999NOREPORT,Not included in reporting,70725,Capital - Blackfriars,D2513,Hired and Contracted services,604.50,Bevan Brittan LLP,Hired and contracted services - Legal Advice,2036743,202208
Rother District Council,09/06/2022,091HOUSING,Housing and Community Services,20261,"TA Purchases (prev - 41 Jameson Mews, Bexhill on Sea)",B2201,Electricity,16.92,Utility Warehouse Ltd,Electricity - Electricity Charges,2036305,202207
Rother District Council,09/06/2022,091HOUSING,Housing and Community Services,20261,"TA Purchases (prev - 41 Jameson Mews, Bexhill on Sea)",B2202,Gas,15.18,Utility Warehouse Ltd,Gas - Gas Charges,2036305,202207
Rother District Council,13/06/2022,101RESOURCES,Resources,20209,Corporate management,D2513,Hired and Contracted services,62.50,Lloyds Bank,Bank Charges,2036487,202207
Rother District Council,27/06/2022,999NOREPORT,Not included in reporting,70714,Capital - Community Grants,N1011,Capital Grants,500.00,Winchelsea Beach Community Association,Capital Grants - Community Grants Scheme,2037085,202208
Rother District Council,29/06/2022,031RESOURCES,Chief Executive & Corporate Core,20171,Human Resources,D2513,Hired and Contracted services,243.00,East Sussex County Council,Hired and contracted services - Service fee paid,2034232,202208
Rother District Council,29/06/2022,031RESOURCES,Chief Executive & Corporate Core,20171,Human Resources,D2513,Hired and Contracted services,"1,080.00",East Sussex County Council,Hired and contracted services - Service fee paid,2034232,202208
Rother District Council,30/06/2022,081ACQUISIT,"Acquisitions, Transformation and Regeneration",20153,"Elva Business Centre, Bexhill",B1100,Repairs to Premises,685.00,GDUK Door Solutions Ltd,Repairs to Premises - Repairs Doors,2034136,202208
Rother District Council,04/07/2022,091HOUSING,Housing and Community Services,20128,Public Conveniences,B1100,Repairs to Premises,571.05,Icklesham Parish Council,Repairs to Premises - Public Conveniences - Various repairs,2036499,202207
Rother District Council,06/07/2022,101RESOURCES,Resources,20209,Corporate management,D2513,Hired and Contracted services,87.40,Lloyds Bank,Bank Charges,2036484,202207
Rother District Council,12/07/2022,081ACQUISIT,"Acquisitions, Transformation and Regeneration",20338,7-12 Beeching Road Studios ( Regeneration Project ),B1100,Repairs to Premises,"2,781.17",Black Sheep Engineering Ltd,Repairs to Premises - Intruder Alarm System Monitor/Maint,2036130,202207
Rother District Council,13/07/2022,101RESOURCES,Resources,20242,Communications-Phones,D2621,Telephones,155.00,O2 (UK) Ltd,,2036555,202209
Rother District Council,13/07/2022,101RESOURCES,Resources,20242,Communications-Phones,D2621,Telephones,326.00,O2 (UK) Ltd,,2036553,202209
Rother District Council,13/07/2022,101RESOURCES,Resources,20242,Communications-Phones,D2621,Telephones,549.25,O2 (UK) Ltd,,2036552,202209
Rother District Council,13/07/2022,101RESOURCES,Resources,20242,Communications-Phones,D2621,Telephones,607.98,O2 (UK) Ltd,,2036551,202209
Rother District Council,13/07/2022,101RESOURCES,Resources,20242,Communications-Phones,D2621,Telephones,111.50,O2 (UK) Ltd,,2036550,202209
Rother District Council,13/07/2022,101RESOURCES,Resources,20242,Communications-Phones,D2621,Telephones,55.00,O2 (UK) Ltd,,2036549,202209
Rother District Council,15/07/2022,091HOUSING,Housing and Community Services,20145,Maintenance Services,C1104,Derv,27.93,Allstar Business Solutions,Derv - Fuel Service fee payable on fuel cards,2036480,202207
Rother District Council,15/07/2022,091HOUSING,Housing and Community Services,20145,Maintenance Services,C1104,Derv,22.15,Allstar Business Solutions,Derv - Fuel Service fee payable on fuel cards,2036480,202207
Rother District Council,15/07/2022,091HOUSING,Housing and Community Services,20145,Maintenance Services,C1104,Derv,119.23,Allstar Business Solutions,Derv - Fuel Service fee payable on fuel cards,2036480,202207
Rother District Council,15/07/2022,041ENVIRON,Environmental Services,32136,EH Pest Control R + W Partnership,C1104,Derv,77.51,Allstar Business Solutions,Derv - Fuel Service fee payable on fuel cards,2036480,202207
Rother District Council,15/07/2022,041ENVIRON,Environmental Services,32136,EH Pest Control R + W Partnership,C1104,Derv,65.00,Allstar Business Solutions,Derv - Fuel Service fee payable on fuel cards,2036480,202207
Rother District Council,15/07/2022,041ENVIRON,Environmental Services,32136,EH Pest Control R + W Partnership,C1104,Derv,63.33,Allstar Business Solutions,Derv - Fuel Service fee payable on fuel cards,2036480,202207
Rother District Council,15/07/2022,041ENVIRON,Environmental Services,32136,EH Pest Control R + W Partnership,C1104,Derv,66.67,Allstar Business Solutions,Derv - Fuel Service fee payable on fuel cards,2036480,202207
Rother District Council,15/07/2022,091HOUSING,Housing and Community Services,20145,Maintenance Services,C1104,Derv,82.32,Allstar Business Solutions,Derv - Fuel Service fee payable on fuel cards,2036480,202207
Rother District Council,15/07/2022,091HOUSING,Housing and Community Services,20145,Maintenance Services,C1104,Derv,71.34,Allstar Business Solutions,Derv - Fuel Service fee payable on fuel cards,2036480,202207
Rother District Council,15/07/2022,091HOUSING,Housing and Community Services,20145,Maintenance Services,C1104,Derv,1.90,Allstar Business Solutions,Derv - Fuel Service fee payable on fuel cards,2036480,202207
Rother District Council,15/07/2022,041ENVIRON,Environmental Services,32136,EH Pest Control R + W Partnership,C1104,Derv,7.60,Allstar Business Solutions,Derv - Fuel Service fee payable on fuel cards,2036480,202207
Rother District Council,15/07/2022,081ACQUISIT,"Acquisitions, Transformation and Regeneration",20338,7-12 Beeching Road Studios ( Regeneration Project ),B2611,Contract cleaning,70.60,Oakeys Cleaning Ltd,Contract cleaning - Office Cleaning,2036638,202208
Rother District Council,27/07/2022,101RESOURCES,Resources,20242,Communications-Phones,D2621,Telephones,334.57,BT British Telecommunications plc,Telephones - BT-Rental-General,2035173,202207
Rother District Council,27/07/2022,031RESOURCES,Chief Executive & Corporate Core,20171,Human Resources,D2513,Hired and Contracted services,"-1,080.00",East Sussex County Council,Hired and contracted services - Service fee paid,2034620,202208
Rother District Council,27/07/2022,031RESOURCES,Chief Executive & Corporate Core,20171,Human Resources,D2513,Hired and Contracted services,-243.00,East Sussex County Council,Hired and contracted services - Service fee paid,2034620,202208
Rother District Council,28/07/2022,101RESOURCES,Resources,20209,Corporate management,D2513,Hired and Contracted services,"10,000.00",Wilks Head and Eve LLP,,2034671,202207
Rother District Council,31/07/2022,101RESOURCES,Resources,20209,Corporate management,D2513,Hired and Contracted services,840.00,allpay.net Ltd,Hired and contracted services - Allpay Card/Rep/Let Chrg - Vatable,2036469,202207
Rother District Council,31/07/2022,101RESOURCES,Resources,20209,Corporate management,D2513,Hired and Contracted services,17.34,allpay.net Ltd,Hired and contracted services - Allpay Card/Rep/Let Chrg - Vatable,2036471,202207
Rother District Council,31/07/2022,101RESOURCES,Resources,20209,Corporate management,D2513,Hired and Contracted services,12.54,allpay.net Ltd,Hired and contracted services - Allpay Card/Rep/Let Chrg - Vatable,2036468,202207
Rother District Council,31/07/2022,101RESOURCES,Resources,20209,Corporate management,D2513,Hired and Contracted services,28.40,allpay.net Ltd,Hired and contracted services - Allpay Card/Rep/Let Chrg - Vatable,2036470,202207
Rother District Council,31/07/2022,091HOUSING,Housing and Community Services,20145,Maintenance Services,C1104,Derv,24.68,Allstar Business Solutions,Derv - Fuel Service fee payable on fuel cards,2036478,202207
Rother District Council,31/07/2022,091HOUSING,Housing and Community Services,20145,Maintenance Services,C1104,Derv,41.71,Allstar Business Solutions,Derv - Fuel Service fee payable on fuel cards,2036478,202207
Rother District Council,31/07/2022,091HOUSING,Housing and Community Services,20145,Maintenance Services,C1104,Derv,113.69,Allstar Business Solutions,Derv - Fuel Service fee payable on fuel cards,2036478,202207
Rother District Council,31/07/2022,091HOUSING,Housing and Community Services,20145,Maintenance Services,C1104,Derv,115.38,Allstar Business Solutions,Derv - Fuel Service fee payable on fuel cards,2036478,202207
Rother District Council,31/07/2022,041ENVIRON,Environmental Services,32136,EH Pest Control R + W Partnership,C1104,Derv,71.68,Allstar Business Solutions,Derv - Fuel Service fee payable on fuel cards,2036478,202207
Rother District Council,31/07/2022,041ENVIRON,Environmental Services,32136,EH Pest Control R + W Partnership,C1104,Derv,70.00,Allstar Business Solutions,Derv - Fuel Service fee payable on fuel cards,2036478,202207
Rother District Council,31/07/2022,041ENVIRON,Environmental Services,32136,EH Pest Control R + W Partnership,C1104,Derv,68.34,Allstar Business Solutions,Derv - Fuel Service fee payable on fuel cards,2036478,202207
Rother District Council,31/07/2022,091HOUSING,Housing and Community Services,20145,Maintenance Services,C1104,Derv,91.92,Allstar Business Solutions,Derv - Fuel Service fee payable on fuel cards,2036478,202207
Rother District Council,31/07/2022,041ENVIRON,Environmental Services,32136,EH Pest Control R + W Partnership,C1104,Derv,5.70,Allstar Business Solutions,Derv - Fuel Service fee payable on fuel cards,2036478,202207
Rother District Council,31/07/2022,091HOUSING,Housing and Community Services,20145,Maintenance Services,C1104,Derv,1.90,Allstar Business Solutions,Derv - Fuel Service fee payable on fuel cards,2036478,202207
Rother District Council,01/08/2022,081ACQUISIT,"Acquisitions, Transformation and Regeneration",20144,Property Management,D1201,Equipment & Materials,186.25,Alfa Electric Ltd,Equipment & Materials - Purchase of Tools,2036632,202208
Rother District Council,01/08/2022,091HOUSING,Housing and Community Services,20107,Camber Beach & Foreshore,D2621,Telephones,52.95,Beaming Ltd,Telephones - Broadband Connection,2036465,202207
Rother District Council,01/08/2022,101RESOURCES,Resources,20209,Corporate management,D2513,Hired and Contracted services,"1,328.00",Her Majestys Court Service,Hired and contracted services - Court Costs/Fees,2036541,202207
Rother District Council,01/08/2022,101RESOURCES,Resources,20209,Corporate management,D2513,Hired and Contracted services,210.00,Her Majestys Court Service,Hired and contracted services - Court Costs/Fees,2036542,202207
Rother District Council,01/08/2022,101RESOURCES,Resources,20209,Corporate management,D2513,Hired and Contracted services,965.57,Lloyds Bank,Bank Charges,2036526,202207
Rother District Council,01/08/2022,101RESOURCES,Resources,20209,Corporate management,D2513,Hired and Contracted services,20.00,Lloyds Bank,Bank Charges,2036529,202207
Rother District Council,01/08/2022,101RESOURCES,Resources,20209,Corporate management,D2513,Hired and Contracted services,20.00,Lloyds Bank,Bank Charges,2036525,202207
Rother District Council,01/08/2022,101RESOURCES,Resources,20209,Corporate management,D2513,Hired and Contracted services,10.00,Lloyds Bank,Bank Charges,2036528,202207
Rother District Council,01/08/2022,101RESOURCES,Resources,20209,Corporate management,D2513,Hired and Contracted services,20.00,Lloyds Bank,Bank Charges,2036533,202207
Rother District Council,01/08/2022,101RESOURCES,Resources,20209,Corporate management,D2513,Hired and Contracted services,20.00,Lloyds Bank,Bank Charges,2036527,202207
Rother District Council,01/08/2022,101RESOURCES,Resources,20209,Corporate management,D2513,Hired and Contracted services,20.00,Lloyds Bank,Bank Charges,2036534,202207
Rother District Council,01/08/2022,101RESOURCES,Resources,20209,Corporate management,D2513,Hired and Contracted services,20.00,Lloyds Bank,Bank Charges,2036531,202207
Rother District Council,01/08/2022,101RESOURCES,Resources,20209,Corporate management,D2513,Hired and Contracted services,50.00,Lloyds Bank,Bank Charges,2036532,202207
Rother District Council,01/08/2022,101RESOURCES,Resources,20209,Corporate management,D2513,Hired and Contracted services,20.00,Lloyds Bank,Bank Charges,2036530,202207
Rother District Council,01/08/2022,101RESOURCES,Resources,20211,Public Accountabilty-Resources,D2922,Subscriptions,200.00,Society Of District Council Treasurers,Subscriptions - Subscription to Organisations,2035944,202207
Rother District Council,01/08/2022,031RESOURCES,Chief Executive & Corporate Core,20181,Internal Audit,D2738,Conferences,299.00,The Chartered Institute of Internal Auditors (IIA),Conferences - Officers Conference fees,2036668,202208
Rother District Council,02/08/2022,091HOUSING,Housing and Community Services,20115,Rye Area Parks & Gardens,D2509,Consultants and Other Services,450.00,Stephen Johnson Consulting Engineers Ltd,Consultants and other services - Consultants Fees,2036925,202208
Rother District Council,02/08/2022,101RESOURCES,Resources,20242,Communications-Phones,D2621,Telephones,37.26,TalkTalk Communications Ltd T/A TalkTalk Business,Telephones - Telephone Call Costs+Line Rental,2036559,202209
Rother District Council,04/08/2022,101RESOURCES,Resources,20209,Corporate management,D2513,Hired and Contracted services,244.16,Pay 360 Ltd,Bank Charges,2036563,202207
Rother District Council,05/08/2022,091HOUSING,Housing and Community Services,20137,Car Parks,B1100,Repairs to Premises,162.35,Alfa Electric Ltd,Repairs to Premises - Repairs - Electrical Works,2036631,202208
Rother District Council,05/08/2022,101RESOURCES,Resources,20216,Cost Of Collection,D2513,Hired and Contracted services,18.00,H M Land Registry,Hired and contracted services - Council Tax-Land Registry Enquiries,2036539,202208
Rother District Council,05/08/2022,041ENVIRON,Environmental Services,32144,EH Environmental Services Admin R + W Partnership,D2513,Hired and Contracted services,3.00,H M Land Registry,Hired and contracted services - Env H-Land Registry,2036539,202208
Rother District Council,05/08/2022,041ENVIRON,Environmental Services,20129,Community Safety - CCTV costs only,D2513,Hired and Contracted services,12.00,H M Land Registry,Hired and contracted services - Env H-Land Registry,2036539,202208
Rother District Council,05/08/2022,091HOUSING,Housing and Community Services,20200,Housing Needs - HB (Housing Benefit),D2513,Hired and Contracted services,6.00,H M Land Registry,Hired and contracted services - Housing-Land Registry,2036539,202208
Rother District Council,05/08/2022,071STRAT,Strategy and Planning,20246,Planning Applications,D2513,Hired and Contracted services,9.00,H M Land Registry,Hired and contracted services - Land Registry-Planning,2036539,202208
Rother District Council,05/08/2022,101RESOURCES,Resources,20209,Corporate management,D2513,Hired and Contracted services,54.70,Lloyds Bank,Bank Charges,2036485,202207
Rother District Council,05/08/2022,031RESOURCES,Chief Executive & Corporate Core,20171,Human Resources,D2513,Hired and Contracted services,135.00,Staywell Occupational Health Ltd,Hired and contracted services - Occupational Health,2036669,202208
Rother District Council,06/08/2022,091HOUSING,Housing and Community Services,20261,"TA Purchases (prev - 41 Jameson Mews, Bexhill on Sea)",D2513,Hired and Contracted services,75.00,Blusher Brush,Hired and contracted services - Service fee paid,2036338,202207
Rother District Council,06/08/2022,091HOUSING,Housing and Community Services,20261,"TA Purchases (prev - 41 Jameson Mews, Bexhill on Sea)",B2201,Electricity,16.03,Utility Warehouse Ltd,Electricity - Electricity Charges,2036304,202207
Rother District Council,06/08/2022,091HOUSING,Housing and Community Services,20261,"TA Purchases (prev - 41 Jameson Mews, Bexhill on Sea)",B2202,Gas,9.46,Utility Warehouse Ltd,Gas - Gas Charges,2036304,202207
Rother District Council,06/08/2022,091HOUSING,Housing and Community Services,20261,"TA Purchases (prev - 41 Jameson Mews, Bexhill on Sea)",B2202,Gas,6.00,Utility Warehouse Ltd,Gas - Gas Charges,2036304,202207
Rother District Council,08/08/2022,041ENVIRON,Environmental Services,32134,EH Pollution R + W Partnership,D2513,Hired and Contracted services,"1,607.00",C P J Field & Co Ltd,Hired and contracted services - Parks-Public Health Burials,2035859,202207
Rother District Council,08/08/2022,081ACQUISIT,"Acquisitions, Transformation and Regeneration",20150,Peasmarsh Workshops,B1100,Repairs to Premises,2.98,Trade UK Account (Screwfix & B&Q),Repairs to Premises - Purchase of Materials - Build Maint,2036176,202207
Rother District Council,08/08/2022,091HOUSING,Housing and Community Services,20108,Bexhill Promenade & Foreshore,B1100,Repairs to Premises,14.66,Trade UK Account (Screwfix & B&Q),Repairs to Premises - Purchase of Materials - Build Maint,2036175,202207
Rother District Council,10/08/2022,999NOREPORT,Not included in reporting,70706,Capital - Disabled Facilities Grant,N1012,Capital Advances,"5,263.82",REDACTED PERSONAL DATA,Capital Advances Disabled Facilities Grant,2036211,202207
Rother District Council,11/08/2022,101RESOURCES,Resources,20209,Corporate management,D2513,Hired and Contracted services,267.30,Lloyds Bank,Bank Charges,2036488,202207
Rother District Council,11/08/2022,101RESOURCES,Resources,20209,Corporate management,D2513,Hired and Contracted services,930.80,Lloyds Bank,Bank Charges,2036489,202207
Rother District Council,12/08/2022,031RESOURCES,Chief Executive & Corporate Core,20175,Administrative Offices - T.H. Annex (NOT CHP),B1100,Repairs to Premises,"3,637.16",Stannah Lift Services Ltd,Repairs to Premises - Specified Repairs and Works listed,2035028,202208
Rother District Council,13/08/2022,101RESOURCES,Resources,20242,Communications-Phones,D2621,Telephones,155.00,O2 (UK) Ltd,,2036548,202209
Rother District Council,13/08/2022,101RESOURCES,Resources,20242,Communications-Phones,D2621,Telephones,326.00,O2 (UK) Ltd,,2036547,202209
Rother District Council,13/08/2022,101RESOURCES,Resources,20242,Communications-Phones,D2621,Telephones,549.34,O2 (UK) Ltd,,2036546,202209
Rother District Council,13/08/2022,101RESOURCES,Resources,20242,Communications-Phones,D2621,Telephones,601.06,O2 (UK) Ltd,,2036545,202209
Rother District Council,13/08/2022,101RESOURCES,Resources,20242,Communications-Phones,D2621,Telephones,110.00,O2 (UK) Ltd,,2036554,202209
Rother District Council,13/08/2022,101RESOURCES,Resources,20242,Communications-Phones,D2621,Telephones,55.00,O2 (UK) Ltd,,2036543,202209
Rother District Council,15/08/2022,041ENVIRON,Environmental Services,32136,EH Pest Control R + W Partnership,C1104,Derv,67.50,Allstar Business Solutions,Derv - Fuel Service fee payable on fuel cards,2036477,202207
Rother District Council,15/08/2022,041ENVIRON,Environmental Services,32136,EH Pest Control R + W Partnership,C1104,Derv,72.50,Allstar Business Solutions,Derv - Fuel Service fee payable on fuel cards,2036477,202207
Rother District Council,15/08/2022,041ENVIRON,Environmental Services,32136,EH Pest Control R + W Partnership,C1104,Derv,56.67,Allstar Business Solutions,Derv - Fuel Service fee payable on fuel cards,2036477,202207
Rother District Council,15/08/2022,091HOUSING,Housing and Community Services,20145,Maintenance Services,C1104,Derv,86.41,Allstar Business Solutions,Derv - Fuel Service fee payable on fuel cards,2036477,202207
Rother District Council,15/08/2022,091HOUSING,Housing and Community Services,20145,Maintenance Services,C1104,Derv,111.00,Allstar Business Solutions,Derv - Fuel Service fee payable on fuel cards,2036477,202207
Rother District Council,15/08/2022,041ENVIRON,Environmental Services,32136,EH Pest Control R + W Partnership,C1104,Derv,5.70,Allstar Business Solutions,Derv - Fuel Service fee payable on fuel cards,2036477,202207
Rother District Council,15/08/2022,091HOUSING,Housing and Community Services,20145,Maintenance Services,C1104,Derv,1.90,Allstar Business Solutions,Derv - Fuel Service fee payable on fuel cards,2036477,202207
Rother District Council,15/08/2022,031RESOURCES,Chief Executive & Corporate Core,20171,Human Resources,A2203,Training,319.20,Professional Development Group T/A Government Events,Training,2035851,202207
Rother District Council,15/08/2022,101RESOURCES,Resources,20242,Communications-Phones,D2621,Telephones,270.00,TalkTalk Communications Ltd T/A TalkTalk Business,Telephones - Leased Line Rental,2036561,202209
Rother District Council,15/08/2022,101RESOURCES,Resources,20242,Communications-Phones,D2621,Telephones,622.00,TalkTalk Communications Ltd T/A TalkTalk Business,Telephones - Leased Line Rental,2036562,202209
Rother District Council,16/08/2022,091HOUSING,Housing and Community Services,20105,Allotments- Bexhill,B1100,Repairs to Premises,350.00,ARMADILLO SAFETY LIMITED,Repairs to Premises -  Building Surveys and Inspection,2035917,202207
Rother District Council,19/08/2022,091HOUSING,Housing and Community Services,20304,Housing First,B2202,Gas,29.83,EDF Energy Customers plc,Gas - Gas Charges,2036294,202207
Rother District Council,19/08/2022,091HOUSING,Housing and Community Services,20261,"TA Purchases (prev - 41 Jameson Mews, Bexhill on Sea)",B2202,Gas,8.85,EDF Energy Customers plc,Gas - Gas Charges,2036460,202207
Rother District Council,22/08/2022,081ACQUISIT,"Acquisitions, Transformation and Regeneration",20154,Committee Property Account,D2509,Consultants and Other Services,"5,000.00",Lawson Lewis Blakers,Consultants and other services - Consultants Fees,2036558,202208
Rother District Council,23/08/2022,101RESOURCES,Resources,20239,Computer Services,D2635,Computer Licences,"25,610.00",Zoho Corporation Limited,Computer Licences - New Computer Software,2036201,202207
Rother District Council,24/08/2022,999NOREPORT,Not included in reporting,70751,Capital - Temporary Accommodation,N1005,Other fees,75.00,San-Tech Pest Control,Other Fees - Capital exp Std VAT,2036353,202207
Rother District Council,25/08/2022,031RESOURCES,Chief Executive & Corporate Core,20171,Human Resources,A2203,Training,818.10,Croner Group Ltd,Training,2036512,202208
Rother District Council,25/08/2022,031RESOURCES,Chief Executive & Corporate Core,20171,Human Resources,A2203,Training,101.81,Croner Group Ltd,Training,2036512,202208
Rother District Council,25/08/2022,101RESOURCES,Resources,20239,Computer Services,D2621,Telephones,46.00,GTT EMEA Ltd,Telephones - Leased Line Rental,2035317,202207
Rother District Council,27/08/2022,101RESOURCES,Resources,20242,Communications-Phones,D2621,Telephones,337.87,BT British Telecommunications plc,Telephones - BT-Rental-General,2035475,202207
Rother District Council,27/08/2022,101RESOURCES,Resources,20242,Communications-Phones,D2621,Telephones,80.00,BT British Telecommunications plc,Telephones - BT-Rental-General,2035475,202207
Rother District Council,30/08/2022,091HOUSING,Housing and Community Services,20204,Housing Administration Account,A1110,Agency Staff,"1,240.00",Oyster Partnership,Agency Staff,2035472,202207
Rother District Council,31/08/2022,999NOREPORT,Not included in reporting,70736,Capital - 18-40 Beeching Close Refurbishment,N1003,Construction/Conversion,"11,442.48",Alfa Electric Ltd,Construction/Conversion Capital-Contract Payments - General,2036272,202207
Rother District Council,31/08/2022,101RESOURCES,Resources,20209,Corporate management,D2513,Hired and Contracted services,798.67,allpay.net Ltd,Hired and contracted services - Allpay Card/Rep/Let Chrg - Vatable,2036473,202207
Rother District Council,31/08/2022,101RESOURCES,Resources,20209,Corporate management,D2513,Hired and Contracted services,14.46,allpay.net Ltd,Hired and contracted services - Allpay Card/Rep/Let Chrg - Vatable,2036472,202207
Rother District Council,31/08/2022,101RESOURCES,Resources,20209,Corporate management,D2513,Hired and Contracted services,14.00,allpay.net Ltd,Hired and contracted services - Allpay Card/Rep/Let Chrg - Vatable,2036475,202207
Rother District Council,31/08/2022,101RESOURCES,Resources,20209,Corporate management,D2513,Hired and Contracted services,22.15,allpay.net Ltd,Hired and contracted services - Allpay Card/Rep/Let Chrg - Vatable,2036474,202207
Rother District Council,31/08/2022,091HOUSING,Housing and Community Services,20145,Maintenance Services,C1104,Derv,104.65,Allstar Business Solutions,Derv - Fuel Service fee payable on fuel cards,2036479,202207
Rother District Council,31/08/2022,091HOUSING,Housing and Community Services,20145,Maintenance Services,C1104,Derv,110.94,Allstar Business Solutions,Derv - Fuel Service fee payable on fuel cards,2036479,202207
Rother District Council,31/08/2022,091HOUSING,Housing and Community Services,20107,Camber Beach & Foreshore,C1104,Derv,91.99,Allstar Business Solutions,Derv - Fuel Service fee payable on fuel cards,2036479,202207
Rother District Council,31/08/2022,041ENVIRON,Environmental Services,32136,EH Pest Control R + W Partnership,C1104,Derv,53.33,Allstar Business Solutions,Derv - Fuel Service fee payable on fuel cards,2036479,202207
Rother District Council,31/08/2022,041ENVIRON,Environmental Services,32136,EH Pest Control R + W Partnership,C1104,Derv,70.43,Allstar Business Solutions,Derv - Fuel Service fee payable on fuel cards,2036479,202207
Rother District Council,31/08/2022,041ENVIRON,Environmental Services,32136,EH Pest Control R + W Partnership,C1104,Derv,65.83,Allstar Business Solutions,Derv - Fuel Service fee payable on fuel cards,2036479,202207
Rother District Council,31/08/2022,091HOUSING,Housing and Community Services,20145,Maintenance Services,C1104,Derv,82.78,Allstar Business Solutions,Derv - Fuel Service fee payable on fuel cards,2036479,202207
Rother District Council,31/08/2022,091HOUSING,Housing and Community Services,20145,Maintenance Services,C1104,Derv,93.83,Allstar Business Solutions,Derv - Fuel Service fee payable on fuel cards,2036479,202207
Rother District Council,31/08/2022,091HOUSING,Housing and Community Services,20145,Maintenance Services,C1104,Derv,94.72,Allstar Business Solutions,Derv - Fuel Service fee payable on fuel cards,2036479,202207
Rother District Council,31/08/2022,091HOUSING,Housing and Community Services,20145,Maintenance Services,C1104,Derv,3.80,Allstar Business Solutions,Derv - Fuel Service fee payable on fuel cards,2036479,202207
Rother District Council,31/08/2022,091HOUSING,Housing and Community Services,20107,Camber Beach & Foreshore,C1104,Derv,1.90,Allstar Business Solutions,Derv - Fuel Service fee payable on fuel cards,2036479,202207
Rother District Council,31/08/2022,041ENVIRON,Environmental Services,32136,EH Pest Control R + W Partnership,C1104,Derv,5.70,Allstar Business Solutions,Derv - Fuel Service fee payable on fuel cards,2036479,202207
Rother District Council,31/08/2022,999NOREPORT,Not included in reporting,70759,Capital - Town Hall Renaissance Project,N1004,Architects & Consultant Fees,"3,495.00",Geotechnical & Environmental Associates,Architects & Consultant Fees Capital-Architect and Conslt Fees,2035558,202207
Rother District Council,31/08/2022,999NOREPORT,Not included in reporting,70759,Capital - Town Hall Renaissance Project,N1004,Architects & Consultant Fees,"2,200.00",GTA Civils & Transport Ltd,Architects & Consultant Fees Capital-Architect and Conslt Fees,2036332,202207
Rother District Council,31/08/2022,999NOREPORT,Not included in reporting,70736,Capital - 18-40 Beeching Close Refurbishment,D2513,Hired and Contracted services,"1,694.20",Hailsham Roadway Construction Ltd,Hired and contracted services - Service fee paid,2036060,202207
Rother District Council,31/08/2022,091HOUSING,Housing and Community Services,20204,Housing Administration Account,A1110,Agency Staff,"1,326.00",Oyster Partnership,Agency Staff,2035469,202207
Rother District Council,31/08/2022,081ACQUISIT,"Acquisitions, Transformation and Regeneration",20122,Economic Development,A2203,Training,395.00,Partnership Media Group Ltd t/a GovNet Communications,Training,2036247,202207
Rother District Council,31/08/2022,091HOUSING,Housing and Community Services,20202,Rother Tenant Finder (prev Rother Letting Service),D2514,Accommodation Costs,"1,557.00",Reeds Rains Estate Agents,Accommodation Costs - Homelessness services Deposit for Landlords,2036565,202208
Rother District Council,31/08/2022,091HOUSING,Housing and Community Services,20202,Rother Tenant Finder (prev Rother Letting Service),D2514,Accommodation Costs,"1,350.00",Reeds Rains Estate Agents,Accommodation Costs - Homelessness services Housing Landlord Scheme-Rent payment,2036565,202208
Rother District Council,31/08/2022,091HOUSING,Housing and Community Services,20137,Car Parks,D1201,Equipment & Materials,920.00,Roadside Technologies Ltd,Equipment & Materials - Car Parks various,2036202,202207
Rother District Council,31/08/2022,091HOUSING,Housing and Community Services,20200,Housing Needs - HB (Housing Benefit),D2514,Accommodation Costs,341.00,Solutions Accommodation Providers Ltd,,2035634,202207
Rother District Council,31/08/2022,091HOUSING,Housing and Community Services,20200,Housing Needs - HB (Housing Benefit),D2514,Accommodation Costs,"1,364.00",Solutions Accommodation Providers Ltd,,2035634,202207
Rother District Council,31/08/2022,091HOUSING,Housing and Community Services,20200,Housing Needs - HB (Housing Benefit),D2514,Accommodation Costs,434.00,Solutions Accommodation Providers Ltd,,2035633,202207
Rother District Council,31/08/2022,091HOUSING,Housing and Community Services,20200,Housing Needs - HB (Housing Benefit),D2514,Accommodation Costs,"1,736.00",Solutions Accommodation Providers Ltd,,2035633,202207
Rother District Council,01/09/2022,091HOUSING,Housing and Community Services,20107,Camber Beach & Foreshore,D2621,Telephones,52.95,Beaming Ltd,Telephones - Broadband Connection,2036466,202207
Rother District Council,01/09/2022,101RESOURCES,Resources,20242,Communications-Phones,D2621,Telephones,26.00,GCI National Business / Nasstar,Telephones - KCOM Smartnumber Charges,2035636,202207
Rother District Council,01/09/2022,101RESOURCES,Resources,20209,Corporate management,D2513,Hired and Contracted services,912.34,Lloyds Bank,Bank Charges,2036522,202207
Rother District Council,01/09/2022,101RESOURCES,Resources,20209,Corporate management,D2513,Hired and Contracted services,20.00,Lloyds Bank,Bank Charges,2036515,202207
Rother District Council,01/09/2022,101RESOURCES,Resources,20209,Corporate management,D2513,Hired and Contracted services,20.00,Lloyds Bank,Bank Charges,2036521,202207
Rother District Council,01/09/2022,101RESOURCES,Resources,20209,Corporate management,D2513,Hired and Contracted services,10.00,Lloyds Bank,Bank Charges,2036524,202207
Rother District Council,01/09/2022,101RESOURCES,Resources,20209,Corporate management,D2513,Hired and Contracted services,20.00,Lloyds Bank,Bank Charges,2036519,202207
Rother District Council,01/09/2022,101RESOURCES,Resources,20209,Corporate management,D2513,Hired and Contracted services,"2,055.47",Lloyds Bank,Bank Charges,2036516,202207
Rother District Council,01/09/2022,101RESOURCES,Resources,20209,Corporate management,D2513,Hired and Contracted services,20.00,Lloyds Bank,Bank Charges,2036523,202207
Rother District Council,01/09/2022,101RESOURCES,Resources,20209,Corporate management,D2513,Hired and Contracted services,20.00,Lloyds Bank,Bank Charges,2036520,202207
Rother District Council,01/09/2022,101RESOURCES,Resources,20209,Corporate management,D2513,Hired and Contracted services,20.00,Lloyds Bank,Bank Charges,2036517,202207
Rother District Council,01/09/2022,101RESOURCES,Resources,20209,Corporate management,D2513,Hired and Contracted services,50.00,Lloyds Bank,Bank Charges,2036518,202207
Rother District Council,01/09/2022,101RESOURCES,Resources,20209,Corporate management,D2513,Hired and Contracted services,20.00,Lloyds Bank,Bank Charges,2036514,202207
Rother District Council,01/09/2022,091HOUSING,Housing and Community Services,20137,Car Parks,D2513,Hired and Contracted services,"8,073.67",Park Now Ltd,Hired and contracted services - Car Parks-RingGo service charges,2036069,202207
Rother District Council,02/09/2022,101RESOURCES,Resources,20242,Communications-Phones,D2621,Telephones,420.00,TalkTalk Communications Ltd T/A TalkTalk Business,Telephones - Leased Line Rental,2036560,202209
Rother District Council,03/09/2022,091HOUSING,Housing and Community Services,20137,Car Parks,D2513,Hired and Contracted services,220.21,Planet Merchant Services,Hired and contracted services - Car Parks-Card payments transaction fee,2036556,202207
Rother District Council,05/09/2022,091HOUSING,Housing and Community Services,20317,Rother Leasing Scheme,D2514,Accommodation Costs,583.40,Allicin International Ltd,Accommodation Costs - Homelessness services Rent in Advance for Homeless,2036566,202208
Rother District Council,05/09/2022,091HOUSING,Housing and Community Services,20128,Public Conveniences,B2421,Water,"-1,248.22",Castle Water Ltd,Water - Water Charges,2036406,202208
Rother District Council,05/09/2022,081ACQUISIT,"Acquisitions, Transformation and Regeneration",20153,"Elva Business Centre, Bexhill",E2302,Third party payment private contractors,127.40,J M Waste Management Limited,Third party payment private contractors - Waste Collection Contract Variable cost to RDC,2035998,202207
Rother District Council,05/09/2022,101RESOURCES,Resources,20209,Corporate management,D2513,Hired and Contracted services,79.68,Lloyds Bank,Bank Charges,2036481,202207
Rother District Council,05/09/2022,101RESOURCES,Resources,20209,Corporate management,D2513,Hired and Contracted services,108.50,Lloyds Bank,Bank Charges,2036483,202207
Rother District Council,05/09/2022,101RESOURCES,Resources,20240,Printing Services,D2417,Photocopy Paper by external suppliers,475.88,Ricoh UK Limited,Photocopy Paper by external suppliers - White,2035989,202207
Rother District Council,05/09/2022,031RESOURCES,Chief Executive & Corporate Core,20170,Communications-Postages,D2626,Postages,123.38,Royal Mail Group Ltd,Postages - Response Service-Royal Mail Chg,2036063,202207
Rother District Council,05/09/2022,031RESOURCES,Chief Executive & Corporate Core,20162,Electoral Registration,D2626,Postages,706.80,Royal Mail Group Ltd,Postages - Response Service-Royal Mail Chg,2035843,202207
Rother District Council,06/09/2022,999NOREPORT,Not included in reporting,70751,Capital - Temporary Accommodation,N1003,Construction/Conversion,60.00,A&A Cleaning & Property Services Ltd,Construction/Conversion Capital-Contract Payments - General,2036050,202207
Rother District Council,06/09/2022,091HOUSING,Housing and Community Services,20128,Public Conveniences,B2421,Water,"10,896.98",Castle Water Ltd,Water - Water Charges,2035869,202208
Rother District Council,06/09/2022,999NOREPORT,Not included in reporting,70751,Capital - Temporary Accommodation,N1001,Land & Property Purchase,"167,104.70",Funnell and Perring,Land & Property Purchase,2036467,202208
Rother District Council,06/09/2022,101RESOURCES,Resources,20242,Communications-Phones,D2621,Telephones,5.20,GCI National Business / Nasstar,Telephones - KCOM Smartnumber Charges,2035635,202207
Rother District Council,06/09/2022,999NOREPORT,Not included in reporting,70751,Capital - Temporary Accommodation,N1002,Land & Property fees,"5,850.00",HMRC Shipley (Stamp Duty),Land & Property fees,2036540,202208
Rother District Council,06/09/2022,091HOUSING,Housing and Community Services,20200,Housing Needs - HB (Housing Benefit),D2509,Consultants and Other Services,5.50,NEC Software Solutions UK Ltd,Consultants and other services - Consultants Fees,2035604,202207
Rother District Council,06/09/2022,101RESOURCES,Resources,20216,Cost Of Collection,D2509,Consultants and Other Services,29.85,NEC Software Solutions UK Ltd,Consultants and other services - Consultants Fees,2035604,202207
Rother District Council,06/09/2022,101RESOURCES,Resources,20217,Reliefs & Benefits-Council Tax Benefit,D2509,Consultants and Other Services,64.80,NEC Software Solutions UK Ltd,Consultants and other services - Consultants Fees,2035604,202207
Rother District Council,06/09/2022,091HOUSING,Housing and Community Services,20123,Cemeteries,B1100,Repairs to Premises,12.18,Saint-Gobain Building Distribution Ltd t/a Jewson,Repairs to Premises - Purchase of Materials - Build Maint,2035983,202207
Rother District Council,07/09/2022,091HOUSING,Housing and Community Services,20261,"TA Purchases (prev - 41 Jameson Mews, Bexhill on Sea)",B1100,Repairs to Premises,350.00,Amstech Asbestos Removals Ltd,Repairs to Premises - Specified Repairs and Works listed,2035893,202207
Rother District Council,07/09/2022,091HOUSING,Housing and Community Services,20114,Bexhill Parks & Open Spaces,D1201,Equipment & Materials,"1,199.85",CS Engineering,Equipment & materials - Miscellaneous,2035662,202207
Rother District Council,07/09/2022,091HOUSING,Housing and Community Services,20137,Car Parks,D2513,Hired and Contracted services,203.92,Flowbird Smart City UK Ltd,Hired and contracted services - Car Parks-Card payments transaction fee,2035689,202207
Rother District Council,07/09/2022,091HOUSING,Housing and Community Services,20204,Housing Administration Account,A1110,Agency Staff,"1,073.72",Oyster Partnership,Agency Staff,2035628,202207
Rother District Council,07/09/2022,091HOUSING,Housing and Community Services,20204,Housing Administration Account,A1110,Agency Staff,"1,029.44",Oyster Partnership,Agency Staff,2035630,202207
Rother District Council,07/09/2022,999NOREPORT,Not included in reporting,70725,Capital - Blackfriars,N1004,Architects & Consultant Fees,"3,565.00",University College London T/A Archaeology South-East,Architects & Consultant Fees Capital-Architect and Conslt Fees,2036200,202207
Rother District Council,07/09/2022,091HOUSING,Housing and Community Services,20261,"TA Purchases (prev - 41 Jameson Mews, Bexhill on Sea)",B2201,Electricity,39.98,Utility Warehouse Ltd,Electricity - Electricity Charges,2036028,202207
Rother District Council,07/09/2022,091HOUSING,Housing and Community Services,20261,"TA Purchases (prev - 41 Jameson Mews, Bexhill on Sea)",B2202,Gas,11.96,Utility Warehouse Ltd,Gas - Gas Charges,2036028,202207
Rother District Council,07/09/2022,091HOUSING,Housing and Community Services,20261,"TA Purchases (prev - 41 Jameson Mews, Bexhill on Sea)",B2202,Gas,6.00,Utility Warehouse Ltd,Gas - Gas Charges,2036028,202207
Rother District Council,08/09/2022,091HOUSING,Housing and Community Services,20261,"TA Purchases (prev - 41 Jameson Mews, Bexhill on Sea)",B1100,Repairs to Premises,250.00,Amstech Asbestos Removals Ltd,Repairs to Premises - Specified Repairs and Works listed,2035980,202207
Rother District Council,08/09/2022,041ENVIRON,Environmental Services,32133,EH Food Hyg / Idc / Water Purity R + W Partnership,D2352,Clothing and Uniforms,51.62,MI Hub Ltd T/A Alexandra,Clothing and Uniforms - EnvH- Protective Clothing EnvHealth,2035973,202207
Rother District Council,08/09/2022,031RESOURCES,Chief Executive & Corporate Core,20183,Chief Executive,A2203,Training,200.00,Peak Potential,Training,2036671,202208
Rother District Council,08/09/2022,091HOUSING,Housing and Community Services,20145,Maintenance Services,B1100,Repairs to Premises,106.66,Saint-Gobain Building Distribution Ltd t/a Jewson,Repairs to Premises - Purchase of Materials - Build Maint,2035982,202207
Rother District Council,08/09/2022,091HOUSING,Housing and Community Services,20261,"TA Purchases (prev - 41 Jameson Mews, Bexhill on Sea)",B2201,Electricity,76.95,Shell Energy Retail Ltd,Electricity - Electricity Charges,2036670,202208
Rother District Council,08/09/2022,091HOUSING,Housing and Community Services,20261,"TA Purchases (prev - 41 Jameson Mews, Bexhill on Sea)",B2202,Gas,20.75,Shell Energy Retail Ltd,Gas - Gas Charges,2036670,202208
Rother District Council,09/09/2022,999NOREPORT,Not included in reporting,70725,Capital - Blackfriars,N1003,Construction/Conversion,"420,695.81",Breheny Civil Engineering Ltd,Construction/Conversion Capital-Contract Payments - General,2035672,202207
Rother District Council,09/09/2022,091HOUSING,Housing and Community Services,20304,Housing First,B2201,Electricity,596.00,EDF Energy Customers plc,Electricity - Electricity Charges,2035974,202207
Rother District Council,09/09/2022,091HOUSING,Housing and Community Services,20304,Housing First,B2201,Electricity,10.00,EDF Energy Customers plc,Electricity - Electricity Charges,2035974,202207
Rother District Council,09/09/2022,091HOUSING,Housing and Community Services,20137,Car Parks,D2513,Hired and Contracted services,335.34,Flowbird Smart City UK Ltd,Hired and contracted services - Car Parks-Card payments transaction fee,2035895,202207
Rother District Council,09/09/2022,041ENVIRON,Environmental Services,32133,EH Food Hyg / Idc / Water Purity R + W Partnership,D2352,Clothing and Uniforms,11.13,MI Hub Ltd T/A Alexandra,Clothing and Uniforms - EnvH- Protective Clothing EnvHealth,2035985,202207
Rother District Council,09/09/2022,081ACQUISIT,"Acquisitions, Transformation and Regeneration",20153,"Elva Business Centre, Bexhill",B2201,Electricity,115.76,Valda Energy Ltd,Electricity - Electricity Charges,2035910,202207
Rother District Council,11/09/2022,081ACQUISIT,"Acquisitions, Transformation and Regeneration",20146,West Trading Estate,B2202,Gas,53.78,British Gas Lite,Electricity - Electricity Charges,2035903,202207
Rother District Council,11/09/2022,071STRAT,Strategy and Planning,20246,Planning Applications,D2519,Statutory Advertising,359.20,Reach Publishing Services Ltd,Statutory Advertising - Planadv-Kent+East Sussex Courier,2035889,202207
Rother District Council,12/09/2022,031RESOURCES,Chief Executive & Corporate Core,20171,Human Resources,D2922,Subscriptions,79.80,Agora Business Publications LLP,Subscriptions - Subscription to Organisations,2035951,202207
Rother District Council,12/09/2022,091HOUSING,Housing and Community Services,20145,Maintenance Services,D2513,Hired and Contracted services,80.00,Amstech Inspections & Testing Ltd,Hired and contracted services - Service fee paid,2035871,202207
Rother District Council,12/09/2022,091HOUSING,Housing and Community Services,20145,Maintenance Services,D2513,Hired and Contracted services,80.00,Amstech Inspections & Testing Ltd,Hired and contracted services - Service fee paid,2035872,202207
Rother District Council,12/09/2022,091HOUSING,Housing and Community Services,20145,Maintenance Services,D2513,Hired and Contracted services,80.00,Amstech Inspections & Testing Ltd,Hired and contracted services - Service fee paid,2035870,202207
Rother District Council,12/09/2022,101RESOURCES,Resources,20242,Communications-Phones,D2621,Telephones,451.04,BT British Telecommunications plc,Telephones - BT-Rental-General,2035984,202207
Rother District Council,12/09/2022,041ENVIRON,Environmental Services,32143,EH Licenses and Registration R + W Partnership,D2513,Hired and Contracted services,391.83,Fairfield House Veterinary Surgery,Hired and contracted services - EnvH-Veterinary Services for Licens,2036171,202207
Rother District Council,12/09/2022,081ACQUISIT,"Acquisitions, Transformation and Regeneration",20150,Peasmarsh Workshops,B1100,Repairs to Premises,66.43,Howden Joinery Ltd,Repairs to Premises - Purchase of Materials - Build Maint,2035898,202207
Rother District Council,12/09/2022,101RESOURCES,Resources,20239,Computer Services,D2633,Computer Equipment,101.94,Ricoh UK Limited,Computer Equip Maintenance - Maintenance re Colourwave Printer,2036001,202207
Rother District Council,12/09/2022,091HOUSING,Housing and Community Services,20145,Maintenance Services,B1100,Repairs to Premises,76.28,Saint-Gobain Building Distribution Ltd t/a Jewson,Repairs to Premises - Purchase of Materials - Build Maint,2036114,202207
Rother District Council,12/09/2022,091HOUSING,Housing and Community Services,20261,"TA Purchases (prev - 41 Jameson Mews, Bexhill on Sea)",D2513,Hired and Contracted services,140.00,Titanium Security Solutions Ltd,Hired and contracted services - Service fee paid,2037087,202208
Rother District Council,12/09/2022,091HOUSING,Housing and Community Services,20261,"TA Purchases (prev - 41 Jameson Mews, Bexhill on Sea)",D2513,Hired and Contracted services,131.60,Titanium Security Solutions Ltd,Hired and contracted services - Service fee paid,2037086,202208
Rother District Council,13/09/2022,101RESOURCES,Resources,20239,Computer Services,D2621,Telephones,-3.19,GTT EMEA Ltd,Computer Licences - Computer Licence Renewal,2035891,202208
Rother District Council,13/09/2022,081ACQUISIT,"Acquisitions, Transformation and Regeneration",20153,"Elva Business Centre, Bexhill",B1100,Repairs to Premises,175.00,JS Wadeson Cleaning Services Ltd,Repairs to Premises - Specified Repairs and Works listed,2035892,202207
Rother District Council,13/09/2022,101RESOURCES,Resources,20215,Revenue and Benefits,A2202,Recruitment expenses,595.00,Prepared Media Ltd,Recruitment expenses Advertising Vacant Post,2035933,202207
Rother District Council,14/09/2022,091HOUSING,Housing and Community Services,20304,Housing First,B2202,Gas,3.41,EON Next,Gas - Gas Charges,2036128,202207
Rother District Council,14/09/2022,091HOUSING,Housing and Community Services,20204,Housing Administration Account,A1110,Agency Staff,824.50,Oyster Partnership,Agency Staff,2035808,202207
Rother District Council,14/09/2022,091HOUSING,Housing and Community Services,20204,Housing Administration Account,A1110,Agency Staff,"1,229.44",Oyster Partnership,Agency Staff,2035809,202207
Rother District Council,14/09/2022,091HOUSING,Housing and Community Services,20137,Car Parks,D2922,Subscriptions,119.25,Tameside Metropolitan Borough,,2035990,202207
Rother District Council,14/09/2022,031RESOURCES,Chief Executive & Corporate Core,20171,Human Resources,D1201,Equipment & Materials,3.35,Value Products Ltd,Equipment & Materials - First Aid Equipment,2036008,202207
Rother District Council,15/09/2022,999NOREPORT,Not included in reporting,70751,Capital - Temporary Accommodation,N1003,Construction/Conversion,150.00,A&A Cleaning & Property Services Ltd,Construction/Conversion Capital-Contract Payments - General,2036346,202207
Rother District Council,15/09/2022,999NOREPORT,Not included in reporting,70751,Capital - Temporary Accommodation,N1005,Other fees,150.00,Amstech Inspections & Testing Ltd,Other Fees - Capital exp Std VAT,2035991,202207
Rother District Council,15/09/2022,091HOUSING,Housing and Community Services,20138,Residual Highway Services,B1100,Repairs to Premises,87.75,Colours Timber Ltd,Repairs to Premises - Purchase of Materials - Build Maint,2036258,202207
Rother District Council,15/09/2022,031RESOURCES,Chief Executive & Corporate Core,20179,Communications,E1101,Third party payment other LAs,"3,600.00",East Sussex County Council,Third party payment other LAs - Communications-Officer costs,2035981,202207
Rother District Council,15/09/2022,101RESOURCES,Resources,20239,Computer Services,D2633,Computer Equipment,"1,924.08",Konica Minolta Business Solutions (UK) Ltd,Computer Equip Maintenance - Maintenance re Colourwave Printer,2035992,202207
Rother District Council,15/09/2022,091HOUSING,Housing and Community Services,20145,Maintenance Services,D1201,Equipment & Materials,26.24,Trade UK Account (Screwfix & B&Q),Equipment & Materials - Purchase of Tools,2035993,202207
Rother District Council,16/09/2022,999NOREPORT,Not included in reporting,70762,Capital - Bexhill Promenade Shelter One,N1008,Equipment,927.43,Alsford Timber Ltd,Capital - Purchase of Equipment,2035932,202207
Rother District Council,16/09/2022,071STRAT,Strategy and Planning,20246,Planning Applications,D2519,Statutory Advertising,869.25,National World Publishing Ltd,Statutory Advertising - Planadv - Rye+Battle Observer,2035975,202207
Rother District Council,16/09/2022,091HOUSING,Housing and Community Services,20114,Bexhill Parks & Open Spaces,D2519,Statutory Advertising,244.00,National World Publishing Ltd,Statutory Advertising - Public Notices in Newspaper,2035976,202207
Rother District Council,16/09/2022,081ACQUISIT,"Acquisitions, Transformation and Regeneration",20338,7-12 Beeching Road Studios ( Regeneration Project ),B2611,Contract cleaning,157.50,Oakeys Cleaning Ltd,Contract cleaning - Office Cleaning,2036637,202208
Rother District Council,16/09/2022,999NOREPORT,Not included in reporting,70762,Capital - Bexhill Promenade Shelter One,N1008,Equipment,91.38,Trade Paints Ltd,Capital - Purchase of Equipment,2036410,202207
Rother District Council,16/09/2022,081ACQUISIT,"Acquisitions, Transformation and Regeneration",20338,7-12 Beeching Road Studios ( Regeneration Project ),B1100,Repairs to Premises,55.81,Trade UK Account (Screwfix & B&Q),Repairs to Premises - Purchase of Materials - Build Maint,2035994,202207
Rother District Council,17/09/2022,041ENVIRON,Environmental Services,32135,EH Dog Control R + W Partnership,D2513,Hired and Contracted services,"2,950.00",Animal Wardens Ltd,Hired and contracted services - Rother Collection of Dogs EnvH,2035977,202207
Rother District Council,17/09/2022,041ENVIRON,Environmental Services,32135,EH Dog Control R + W Partnership,D2513,Hired and Contracted services,"3,369.00",Animal Wardens Ltd,Hired and contracted services - Wealden Stray Dogs Kennelling Costs EnvH,2035978,202207
Rother District Council,18/09/2022,091HOUSING,Housing and Community Services,20261,"TA Purchases (prev - 41 Jameson Mews, Bexhill on Sea)",B2202,Gas,60.32,EON Next,Gas - Gas Charges,2036113,202207
Rother District Council,18/09/2022,081ACQUISIT,"Acquisitions, Transformation and Regeneration",20338,7-12 Beeching Road Studios ( Regeneration Project ),B1100,Repairs to Premises,-49.98,Trade UK Account (Screwfix & B&Q),Repairs to Premises - Purchase of Materials - Build Maint,2035995,202207
Rother District Council,19/09/2022,091HOUSING,Housing and Community Services,20145,Maintenance Services,D1201,Equipment & Materials,13.00,SBS Consumables,Equipment & Materials - Purchase of Tools,2036070,202207
Rother District Council,19/09/2022,101RESOURCES,Resources,20240,Printing Services,D2626,Postages,13.00,SBS Consumables,Postages - Carriage of Supplies,2036133,202207
Rother District Council,20/09/2022,999NOREPORT,Not included in reporting,70736,Capital - 18-40 Beeching Close Refurbishment,D2513,Hired and Contracted services,181.17,Alfa Electric Ltd,Hired and contracted services - Service fee paid,2035865,202207
Rother District Council,20/09/2022,091HOUSING,Housing and Community Services,20145,Maintenance Services,D2513,Hired and Contracted services,80.00,Amstech Inspections & Testing Ltd,Hired and contracted services - Service fee paid,2035979,202207
Rother District Council,20/09/2022,031RESOURCES,Chief Executive & Corporate Core,20171,Human Resources,D2513,Hired and Contracted services,29.04,Computershare Voucher Services,Hired and contracted services - Child Care Voucher Service Charge,2036491,202207
Rother District Council,20/09/2022,999NOREPORT,Not included in reporting,90000,Balance sheet all accounts,T1002,Childcare Vouchers,363.00,Computershare Voucher Services,Childcare Vouchers,2036491,202207
Rother District Council,20/09/2022,091HOUSING,Housing and Community Services,20128,Public Conveniences,B1100,Repairs to Premises,177.62,CountyClean Environmental Services Ltd,Repairs to Premises - Cesspool Pumping station service/Call out,2036007,202208
Rother District Council,20/09/2022,091HOUSING,Housing and Community Services,20137,Car Parks,B1100,Repairs to Premises,177.62,CountyClean Environmental Services Ltd,Repairs to Premises - Cesspool Pumping station service/Call out,2036007,202208
Rother District Council,20/09/2022,081ACQUISIT,"Acquisitions, Transformation and Regeneration",20154,Committee Property Account,B1100,Repairs to Premises,177.62,CountyClean Environmental Services Ltd,Repairs to Premises - Cesspool Pumping station service/Call out,2036007,202208
Rother District Council,20/09/2022,081ACQUISIT,"Acquisitions, Transformation and Regeneration",20154,Committee Property Account,B1100,Repairs to Premises,177.62,CountyClean Environmental Services Ltd,Repairs to Premises - Cesspool Pumping station service/Call out,2036007,202208
Rother District Council,20/09/2022,081ACQUISIT,"Acquisitions, Transformation and Regeneration",20153,"Elva Business Centre, Bexhill",B1100,Repairs to Premises,197.93,CountyClean Environmental Services Ltd,Repairs to Premises - Cesspool Pumping station service/Call out,2036007,202208
Rother District Council,20/09/2022,091HOUSING,Housing and Community Services,20128,Public Conveniences,B2422,Sewerage,238.53,CountyClean Environmental Services Ltd,Sewerage - Sewage/Cesspool Emptying,2036007,202208
Rother District Council,20/09/2022,091HOUSING,Housing and Community Services,20137,Car Parks,B2422,Sewerage,238.53,CountyClean Environmental Services Ltd,Sewerage - Sewage/Cesspool Emptying,2036007,202208
Rother District Council,20/09/2022,081ACQUISIT,"Acquisitions, Transformation and Regeneration",20154,Committee Property Account,B2422,Sewerage,238.53,CountyClean Environmental Services Ltd,Sewerage - Sewage/Cesspool Emptying,2036007,202208
Rother District Council,20/09/2022,091HOUSING,Housing and Community Services,20128,Public Conveniences,B2422,Sewerage,400.93,CountyClean Environmental Services Ltd,Sewerage - Sewage/Cesspool Emptying,2036000,202207
Rother District Council,20/09/2022,091HOUSING,Housing and Community Services,20261,"TA Purchases (prev - 41 Jameson Mews, Bexhill on Sea)",B2202,Gas,18.00,EDF Energy Customers plc,Gas - Gas Charges,2036112,202207
Rother District Council,20/09/2022,081ACQUISIT,"Acquisitions, Transformation and Regeneration",20267,Property Investment Strategy - 18-40 Beeching Road ( Land and Buildings),B1100,Repairs to Premises,144.63,Glasdon U.K. Ltd,Repairs to Premises - Specified Repairs and Works listed,2036164,202207
Rother District Council,20/09/2022,101RESOURCES,Resources,20314,Payments to Ukrainian guests,D2513,Hired and Contracted services,10.50,Post Office Ltd,Hired and contracted services - Service fee paid,2035999,202208
Rother District Council,20/09/2022,101RESOURCES,Resources,20313,Council Tax Energy Rebate Scheme,D2923,Grants made,"1,500.00",Post Office Ltd,Grants made - No VAT,2036538,202207
Rother District Council,20/09/2022,081ACQUISIT,"Acquisitions, Transformation and Regeneration",20146,West Trading Estate,B1100,Repairs to Premises,28.21,Saint-Gobain Building Distribution Ltd t/a Jewson,Repairs to Premises - Purchase of Materials - Build Maint,2036438,202207
Rother District Council,20/09/2022,091HOUSING,Housing and Community Services,20261,"TA Purchases (prev - 41 Jameson Mews, Bexhill on Sea)",D2513,Hired and Contracted services,85.00,Titanium Facilities Management,Hired and contracted services - Service fee paid,2037088,202208
Rother District Council,20/09/2022,091HOUSING,Housing and Community Services,20128,Public Conveniences,B1100,Repairs to Premises,133.33,Trade UK Account (Screwfix & B&Q),Repairs to Premises - Purchase of Materials - Build Maint,2036019,202207
Rother District Council,20/09/2022,081ACQUISIT,"Acquisitions, Transformation and Regeneration",20338,7-12 Beeching Road Studios ( Regeneration Project ),B1100,Repairs to Premises,48.32,Trade UK Account (Screwfix & B&Q),Repairs to Premises - Purchase of Materials - Build Maint,2036017,202207
Rother District Council,20/09/2022,091HOUSING,Housing and Community Services,20108,Bexhill Promenade & Foreshore,B1100,Repairs to Premises,18.31,Trade UK Account (Screwfix & B&Q),Repairs to Premises - Purchase of Materials - Build Maint,2036018,202207
Rother District Council,20/09/2022,091HOUSING,Housing and Community Services,20145,Maintenance Services,D1201,Equipment & Materials,70.97,Trade UK Account (Screwfix & B&Q),Equipment & Materials - Purchase of Tools,2036020,202207
Rother District Council,21/09/2022,081ACQUISIT,"Acquisitions, Transformation and Regeneration",20308,Amherst Road,B1100,Repairs to Premises,159.18,Alfa Electric Ltd,Repairs to Premises - Repairs - Electrical Works,2036640,202208
Rother District Council,21/09/2022,091HOUSING,Housing and Community Services,20114,Bexhill Parks & Open Spaces,B1100,Repairs to Premises,114.03,Colours Timber Ltd,Repairs to Premises - Purchase of Materials - Build Maint,2036259,202207
Rother District Council,21/09/2022,091HOUSING,Housing and Community Services,20114,Bexhill Parks & Open Spaces,D2513,Hired and Contracted services,118.00,Fuzion 4 Limited,Hired and contracted services - CCTV System Maintenance,2036004,202207
Rother District Council,21/09/2022,091HOUSING,Housing and Community Services,20114,Bexhill Parks & Open Spaces,D2513,Hired and Contracted services,99.50,Fuzion 4 Limited,Hired and contracted services - CCTV System Maintenance,2036005,202207
Rother District Council,21/09/2022,091HOUSING,Housing and Community Services,20204,Housing Administration Account,A2202,Recruitment expenses,995.00,Inside Housing,Recruitment expenses Advertising Vacant Post,2036161,202207
Rother District Council,21/09/2022,081ACQUISIT,"Acquisitions, Transformation and Regeneration",20118,Tourism,D2923,Grants made,"4,578.00",REDACTED PERSONAL DATA,Grants made - SLA Contribution,2036024,202207
Rother District Council,21/09/2022,091HOUSING,Housing and Community Services,20204,Housing Administration Account,A1110,Agency Staff,"1,237.44",Oyster Partnership,Agency Staff,2035838,202207
Rother District Council,21/09/2022,999NOREPORT,Not included in reporting,70737,Capital � Barnhorn Green,N1005,Other fees,600.00,Precision Resource Group Ltd,Other Fees - Capital exp Std VAT,2036009,202207
Rother District Council,21/09/2022,999NOREPORT,Not included in reporting,70725,Capital - Blackfriars,N1005,Other fees,600.00,Precision Resource Group Ltd,Other Fees - Capital exp Std VAT,2036009,202207
Rother District Council,21/09/2022,101RESOURCES,Resources,20240,Printing Services,D2417,Photocopy Paper by external suppliers,230.27,Premier Paper Group Ltd,Photocopy Paper by external suppliers - White,2036023,202207
Rother District Council,21/09/2022,071STRAT,Strategy and Planning,20246,Planning Applications,A1110,Agency Staff,"1,270.63",Sonovate Limited T/A Stonehouse Recruitment Group Ltd,Agency Staff,2035930,202207
Rother District Council,21/09/2022,999NOREPORT,Not included in reporting,70725,Capital - Blackfriars,N1004,Architects & Consultant Fees,"1,910.00",Temple Group Ltd,Architects & Consultant Fees Capital-Architect and Conslt Fees,2036238,202207
Rother District Council,21/09/2022,091HOUSING,Housing and Community Services,20114,Bexhill Parks & Open Spaces,B1100,Repairs to Premises,5.81,Trade UK Account (Screwfix & B&Q),Items for resale - Purchase of Beach Huts,2036021,202207
Rother District Council,21/09/2022,091HOUSING,Housing and Community Services,20132,Street & Beach Cleansing,D1201,Equipment & Materials,34.12,Trade UK Account (Screwfix & B&Q),Repairs to Premises - Purchase of Materials - Build Maint,2036022,202208
Rother District Council,21/09/2022,091HOUSING,Housing and Community Services,20206,UK Resettlement (Syrians),D2513,Hired and Contracted services,371.40,Vandu Language Services Ltd,Hired and contracted services - Syrian Misc,2036012,202207
Rother District Council,21/09/2022,091HOUSING,Housing and Community Services,20206,UK Resettlement (Syrians),D2513,Hired and Contracted services,526.80,Vandu Language Services Ltd,Hired and contracted services - Syrian Misc,2036013,202207
Rother District Council,22/09/2022,999NOREPORT,Not included in reporting,70751,Capital - Temporary Accommodation,N1003,Construction/Conversion,443.48,A&A Cleaning & Property Services Ltd,Construction/Conversion Capital-Contract Payments - General,2036318,202207
Rother District Council,22/09/2022,999NOREPORT,Not included in reporting,70725,Capital - Blackfriars,N1003,Construction/Conversion,"420,695.81",Breheny Civil Engineering Ltd,Construction/Conversion Capital-Contract Payments - General,2036476,202208
Rother District Council,22/09/2022,101RESOURCES,Resources,20240,Printing Services,D2417,Photocopy Paper by external suppliers,363.92,Canon (UK) Ltd,Photocopy Paper by external supplier - Wide Format Consumables,2036027,202207
Rother District Council,22/09/2022,071STRAT,Strategy and Planning,20246,Planning Applications,D2513,Hired and Contracted services,"13,583.42",Capita Business Services Ltd,Hired and contracted services - Service fee paid,2036025,202207
Rother District Council,22/09/2022,101RESOURCES,Resources,20239,Computer Services,D2633,Computer Equipment,"8,782.10",Chess Cybersecurity,Computer Equipment - New - Computer Hardware,2036386,202207
Rother District Council,22/09/2022,031RESOURCES,Chief Executive & Corporate Core,20163,District Council Elections,D2415,Printing by external suppliers,"1,224.37",Civica Election Services Ltd,Printing by external suppliers - Printing (Not from RDC Print Room),2035929,202207
Rother District Council,22/09/2022,031RESOURCES,Chief Executive & Corporate Core,20163,District Council Elections,D2626,Postages,998.05,Civica Election Services Ltd,Postages - Response Service-Royal Mail Chg,2035929,202207
Rother District Council,22/09/2022,091HOUSING,Housing and Community Services,20114,Bexhill Parks & Open Spaces,B1100,Repairs to Premises,331.38,Four Seasons Plastics,Repairs to Premises - Purchase of Materials - Build Maint,2036132,202207
Rother District Council,22/09/2022,091HOUSING,Housing and Community Services,20114,Bexhill Parks & Open Spaces,B1100,Repairs to Premises,550.00,Geewoods Construction Co Ltd,Repairs to Premises - Parks - Paths/Surface Repairs,2036029,202207
Rother District Council,22/09/2022,081ACQUISIT,"Acquisitions, Transformation and Regeneration",20338,7-12 Beeching Road Studios ( Regeneration Project ),B1100,Repairs to Premises,131.96,I.B. Lock & Safe,Repairs to Premises - Specified Repairs and Works listed,2036151,202207
Rother District Council,22/09/2022,081ACQUISIT,"Acquisitions, Transformation and Regeneration",20154,Committee Property Account,B1100,Repairs to Premises,224.12,I.B. Lock & Safe,Repairs to Premises - Specified Repairs and Works listed,2036152,202207
Rother District Council,22/09/2022,081ACQUISIT,"Acquisitions, Transformation and Regeneration",20150,Peasmarsh Workshops,B1100,Repairs to Premises,646.92,I.B. Lock & Safe,Repairs to Premises - Specified Repairs and Works listed,2036153,202207
Rother District Council,22/09/2022,041ENVIRON,Environmental Services,20187,Pollution,D2513,Hired and Contracted services,395.00,JS Wadeson Cleaning Services Ltd,Hired and contracted services - Service fee paid,2035862,202207
Rother District Council,22/09/2022,041ENVIRON,Environmental Services,20187,Pollution,D2513,Hired and Contracted services,160.00,JS Wadeson Cleaning Services Ltd,Hired and contracted services - Service fee paid,2035863,202207
Rother District Council,22/09/2022,041ENVIRON,Environmental Services,20130,Crime and Disorder Initiatives,D2923,Grants made,675.00,Mobile Variable Message Signs Ltd,Grants made - Crime Prevention Initiative (JAG),2036026,202207
Rother District Council,22/09/2022,041ENVIRON,Environmental Services,20130,Crime and Disorder Initiatives,D2923,Grants made,675.00,Mobile Variable Message Signs Ltd,Grants made - Crime Prevention Initiative (JAG),2036111,202207
Rother District Council,22/09/2022,091HOUSING,Housing and Community Services,20145,Maintenance Services,D1201,Equipment & Materials,63.17,Parker Building Supplies Ltd,Equipment & Materials - Purchase of Tools,2036015,202207
Rother District Council,22/09/2022,091HOUSING,Housing and Community Services,20208,Sanctuary Safe Accommodation,D2513,Hired and Contracted services,385.00,Safe Partnership Ltd,,2036071,202207
Rother District Council,22/09/2022,081ACQUISIT,"Acquisitions, Transformation and Regeneration",20308,Amherst Road,D2513,Hired and Contracted services,23.43,Safe Water.io,Hired and contracted services - Legionella Sampling and Monitoring,2036030,202207
Rother District Council,22/09/2022,091HOUSING,Housing and Community Services,20107,Camber Beach & Foreshore,D2513,Hired and Contracted services,15.62,Safe Water.io,Hired and contracted services - Legionella Sampling and Monitoring,2036030,202207
Rother District Council,22/09/2022,091HOUSING,Housing and Community Services,20108,Bexhill Promenade & Foreshore,D2513,Hired and Contracted services,15.62,Safe Water.io,Hired and contracted services - Legionella Sampling and Monitoring,2036030,202207
Rother District Council,22/09/2022,091HOUSING,Housing and Community Services,20102,Rother Museum Services,D2513,Hired and Contracted services,15.62,Safe Water.io,Hired and contracted services - Legionella Sampling and Monitoring,2036030,202207
Rother District Council,22/09/2022,091HOUSING,Housing and Community Services,20114,Bexhill Parks & Open Spaces,D2513,Hired and Contracted services,15.62,Safe Water.io,Hired and contracted services - Legionella Sampling and Monitoring,2036030,202207
Rother District Council,22/09/2022,091HOUSING,Housing and Community Services,20128,Public Conveniences,D2513,Hired and Contracted services,421.74,Safe Water.io,Hired and contracted services - Legionella Sampling and Monitoring,2036030,202207
Rother District Council,22/09/2022,091HOUSING,Housing and Community Services,20123,Cemeteries,D2513,Hired and Contracted services,15.62,Safe Water.io,Hired and contracted services - Legionella Sampling and Monitoring,2036030,202207
Rother District Council,22/09/2022,031RESOURCES,Chief Executive & Corporate Core,20173,Administrative Offices - Town Hall,D2513,Hired and Contracted services,15.62,Safe Water.io,Hired and contracted services - Legionella Sampling and Monitoring,2036030,202207
Rother District Council,22/09/2022,031RESOURCES,Chief Executive & Corporate Core,20176,Administrative Offices - Print Room,D2513,Hired and Contracted services,15.62,Safe Water.io,Hired and contracted services - Legionella Sampling and Monitoring,2036030,202207
Rother District Council,22/09/2022,081ACQUISIT,"Acquisitions, Transformation and Regeneration",20151,Udimore Workshops,D2513,Hired and Contracted services,31.24,Safe Water.io,Hired and contracted services - Legionella Sampling and Monitoring,2036030,202207
Rother District Council,22/09/2022,081ACQUISIT,"Acquisitions, Transformation and Regeneration",20153,"Elva Business Centre, Bexhill",D2513,Hired and Contracted services,15.62,Safe Water.io,Hired and contracted services - Legionella Sampling and Monitoring,2036030,202207
Rother District Council,22/09/2022,091HOUSING,Housing and Community Services,20114,Bexhill Parks & Open Spaces,B1100,Repairs to Premises,84.00,Saint-Gobain Building Distribution Ltd t/a Jewson,Repairs to Premises - Purchase of Materials - Build Maint,2036439,202207
Rother District Council,22/09/2022,091HOUSING,Housing and Community Services,20114,Bexhill Parks & Open Spaces,B1100,Repairs to Premises,42.89,Trade Paints Ltd,Repairs to Premises - Purchase of Materials - Build Maint,2036411,202207
Rother District Council,22/09/2022,091HOUSING,Housing and Community Services,20137,Car Parks,B1100,Repairs to Premises,424.50,Travis Perkins Trading Co Ltd,Repairs to Premises - Purchase of Materials - Build Maint,2036131,202207
Rother District Council,23/09/2022,091HOUSING,Housing and Community Services,20200,Housing Needs - HB (Housing Benefit),D2508,Removals and Storage,250.00,1066 Removal Services,Removals and Storage,2037098,202208
Rother District Council,23/09/2022,101RESOURCES,Resources,20239,Computer Services,D2635,Computer Licences,"1,056.12",Civica UK Ltd,Computer Licences - Website Management,2036592,202208
Rother District Council,23/09/2022,071STRAT,Strategy and Planning,20246,Planning Applications,D2519,Statutory Advertising,549.00,National World Publishing Ltd,Statutory Advertising - Planadv - Rye+Battle Observer,2036067,202207
Rother District Council,23/09/2022,081ACQUISIT,"Acquisitions, Transformation and Regeneration",20101,Cultural Development,D2513,Hired and Contracted services,"1,012.36",PPL PRS Ltd,Hired and contracted services - Service fee paid,2036857,202208
Rother District Council,23/09/2022,101RESOURCES,Resources,20241,Stationery,D2420,General office supplies (Stationery purchased from ext suppliers),225.00,Response Envelopes Limited,General office supplies - Stationery (Stationery Services to buy ONLY),2036260,202207
Rother District Council,23/09/2022,091HOUSING,Housing and Community Services,20128,Public Conveniences,B2421,Water,181.78,Scottish Water Business Stream Limited,Water - Water Charges,2035911,202207
Rother District Council,23/09/2022,091HOUSING,Housing and Community Services,20137,Car Parks,B2421,Water,25.69,Scottish Water Business Stream Limited,Water - Water Charges,2035911,202207
Rother District Council,23/09/2022,091HOUSING,Housing and Community Services,20137,Car Parks,B2422,Sewerage,35.48,Scottish Water Business Stream Limited,Sewerage - Sewerage Charges,2035911,202207
Rother District Council,23/09/2022,091HOUSING,Housing and Community Services,20137,Car Parks,B2422,Sewerage,272.66,Scottish Water Business Stream Limited,Sewerage - Sewerage Charges,2035911,202207
Rother District Council,23/09/2022,091HOUSING,Housing and Community Services,20128,Public Conveniences,B2422,Sewerage,"3,634.89",Scottish Water Business Stream Limited,Sewerage - Sewerage Charges,2035914,202207
Rother District Council,23/09/2022,091HOUSING,Housing and Community Services,20128,Public Conveniences,B1100,Repairs to Premises,57.00,Trade UK Account (Screwfix & B&Q),Repairs to Premises - Purchase of Materials - Build Maint,2036076,202207
Rother District Council,23/09/2022,091HOUSING,Housing and Community Services,20145,Maintenance Services,D1201,Equipment & Materials,199.99,Trade UK Account (Screwfix & B&Q),Equipment & Materials - Purchase of Tools,2036075,202207
Rother District Council,23/09/2022,091HOUSING,Housing and Community Services,20145,Maintenance Services,D1201,Equipment & Materials,22.99,Trade UK Account (Screwfix & B&Q),Equipment & Materials - Purchase of Tools,2036077,202207
Rother District Council,23/09/2022,091HOUSING,Housing and Community Services,20145,Maintenance Services,D2352,Clothing and Uniforms,25.40,Trade UK Account (Screwfix & B&Q),Clothing and Uniforms - Mens Protective-Coat,2036077,202207
Rother District Council,23/09/2022,091HOUSING,Housing and Community Services,20200,Housing Needs - HB (Housing Benefit),D2514,Accommodation Costs,262.50,Union Property MGMT Ltd,,2035939,202207
Rother District Council,24/09/2022,091HOUSING,Housing and Community Services,20317,Rother Leasing Scheme,D2514,Accommodation Costs,583.40,Allicin International Ltd,Accommodation Costs - Homelessness services Rent in Advance for Homeless,2037204,202208
Rother District Council,24/09/2022,091HOUSING,Housing and Community Services,20317,Rother Leasing Scheme,D2514,Accommodation Costs,583.40,Allicin International Ltd,Accommodation Costs - Homelessness services Rent in Advance for Homeless,2037546,202209
Rother District Council,24/09/2022,091HOUSING,Housing and Community Services,20317,Rother Leasing Scheme,D2514,Accommodation Costs,583.40,Allicin International Ltd,Accommodation Costs - Homelessness services Rent in Advance for Homeless,2036511,202207
Rother District Council,24/09/2022,091HOUSING,Housing and Community Services,20317,Rother Leasing Scheme,D2514,Accommodation Costs,583.40,Allicin International Ltd,Accommodation Costs - Homelessness services Rent in Advance for Homeless,2036002,202207
Rother District Council,24/09/2022,091HOUSING,Housing and Community Services,20128,Public Conveniences,B2422,Sewerage,139.38,Scottish Water Business Stream Limited,Sewerage - Sewerage Charges,2035912,202207
Rother District Council,25/09/2022,999NOREPORT,Not included in reporting,70751,Capital - Temporary Accommodation,N1003,Construction/Conversion,108.55,A&A Cleaning & Property Services Ltd,Construction/Conversion Capital-Contract Payments - General,2035924,202207
Rother District Council,25/09/2022,999NOREPORT,Not included in reporting,70751,Capital - Temporary Accommodation,N1005,Other fees,150.00,A&A Cleaning & Property Services Ltd,Other Fees - Capital exp Std VAT,2035925,202207
Rother District Council,25/09/2022,091HOUSING,Housing and Community Services,20200,Housing Needs - HB (Housing Benefit),D2514,Accommodation Costs,413.00,BNM Parkstone LLP T/A Fourways Residential,Accommodation Costs,2035920,202207
Rother District Council,25/09/2022,031RESOURCES,Chief Executive & Corporate Core,20171,Human Resources,A2203,Training,818.10,Croner Group Ltd,Training,2036513,202208
Rother District Council,25/09/2022,031RESOURCES,Chief Executive & Corporate Core,20171,Human Resources,A2203,Training,101.81,Croner Group Ltd,Training,2036513,202208
Rother District Council,25/09/2022,071STRAT,Strategy and Planning,20246,Planning Applications,D2509,Consultants and Other Services,243.26,Curley Consultants,Consultants and other services - Consultants Fees,2035931,202207
Rother District Council,25/09/2022,101RESOURCES,Resources,20239,Computer Services,D2621,Telephones,46.00,GTT EMEA Ltd,Telephones - Leased Line Rental,2036065,202208
Rother District Council,25/09/2022,091HOUSING,Housing and Community Services,20108,Bexhill Promenade & Foreshore,B1100,Repairs to Premises,12.04,Saint-Gobain Building Distribution Ltd t/a Jewson,Repairs to Premises - Purchase of Materials - Build Maint,2036672,202208
Rother District Council,26/09/2022,091HOUSING,Housing and Community Services,20114,Bexhill Parks & Open Spaces,B2421,Water,950.18,Castle Water Ltd,Water - Water Charges,2036061,202207
Rother District Council,26/09/2022,091HOUSING,Housing and Community Services,20114,Bexhill Parks & Open Spaces,B2421,Water,"2,262.29",Castle Water Ltd,Water - Water Charges,2036062,202207
Rother District Council,26/09/2022,091HOUSING,Housing and Community Services,20128,Public Conveniences,B2421,Water,565.57,Castle Water Ltd,Water - Water Charges,2036062,202207
Rother District Council,26/09/2022,091HOUSING,Housing and Community Services,20200,Housing Needs - HB (Housing Benefit),D2514,Accommodation Costs,400.00,Dale Saunders (Holdings) Ltd,Accommodation Costs,2035940,202207
Rother District Council,26/09/2022,091HOUSING,Housing and Community Services,20200,Housing Needs - HB (Housing Benefit),D2514,Accommodation Costs,400.00,Dale Saunders (Holdings) Ltd,Accommodation Costs,2035940,202207
Rother District Council,26/09/2022,091HOUSING,Housing and Community Services,20200,Housing Needs - HB (Housing Benefit),D2514,Accommodation Costs,400.00,Dale Saunders (Holdings) Ltd,Accommodation Costs,2035940,202207
Rother District Council,26/09/2022,091HOUSING,Housing and Community Services,20200,Housing Needs - HB (Housing Benefit),D2514,Accommodation Costs,400.00,Dale Saunders (Holdings) Ltd,Accommodation Costs,2035940,202207
Rother District Council,26/09/2022,041ENVIRON,Environmental Services,32143,EH Licenses and Registration R + W Partnership,D2513,Hired and Contracted services,567.36,Fairfield House Veterinary Surgery,Hired and contracted services - EnvH-Veterinary Services for Licens,2036217,202207
Rother District Council,26/09/2022,041ENVIRON,Environmental Services,32133,EH Food Hyg / Idc / Water Purity R + W Partnership,D1201,Equipment & Materials,12.50,Klipspringer Ltd,Equipment & Materials - Carriage/Handling Charge,2035942,202207
Rother District Council,26/09/2022,041ENVIRON,Environmental Services,32133,EH Food Hyg / Idc / Water Purity R + W Partnership,D1201,Equipment & Materials,216.32,Klipspringer Ltd,Equipment & Materials - EnvH - Food Samples,2035942,202207
Rother District Council,26/09/2022,999NOREPORT,Not included in reporting,70751,Capital - Temporary Accommodation,N1005,Other fees,45.00,NE Electrical Contracting Ltd,Other Fees - Capital exp Std VAT,2035926,202207
Rother District Council,26/09/2022,999NOREPORT,Not included in reporting,70751,Capital - Temporary Accommodation,N1005,Other fees,45.00,NE Electrical Contracting Ltd,Other Fees - Capital exp Std VAT,2035928,202207
Rother District Council,26/09/2022,999NOREPORT,Not included in reporting,70751,Capital - Temporary Accommodation,N1005,Other fees,45.00,NE Electrical Contracting Ltd,Other Fees - Capital exp Std VAT,2035923,202207
Rother District Council,26/09/2022,091HOUSING,Housing and Community Services,20200,Housing Needs - HB (Housing Benefit),D2514,Accommodation Costs,390.00,PADA Hanlon Ltd,,2035963,202207
Rother District Council,26/09/2022,091HOUSING,Housing and Community Services,20200,Housing Needs - HB (Housing Benefit),D2514,Accommodation Costs,420.00,PADA Hanlon Ltd,,2035963,202207
Rother District Council,26/09/2022,091HOUSING,Housing and Community Services,20200,Housing Needs - HB (Housing Benefit),D2514,Accommodation Costs,440.00,PADA Hanlon Ltd,,2035963,202207
Rother District Council,26/09/2022,091HOUSING,Housing and Community Services,20200,Housing Needs - HB (Housing Benefit),D2514,Accommodation Costs,315.00,PADA Hanlon Ltd,,2035963,202207
Rother District Council,26/09/2022,031RESOURCES,Chief Executive & Corporate Core,20170,Communications-Postages,D2626,Postages,123.38,Royal Mail Group Ltd,,2036564,202208
Rother District Council,26/09/2022,031RESOURCES,Chief Executive & Corporate Core,20162,Electoral Registration,D2626,Postages,890.60,Royal Mail Group Ltd,Postages - Response Service-Royal Mail Chg,2036331,202207
Rother District Council,26/09/2022,081ACQUISIT,"Acquisitions, Transformation and Regeneration",20338,7-12 Beeching Road Studios ( Regeneration Project ),B1100,Repairs to Premises,86.66,Saint-Gobain Building Distribution Ltd t/a Jewson,Repairs to Premises - Purchase of Materials - Build Maint,2036673,202208
Rother District Council,26/09/2022,091HOUSING,Housing and Community Services,20200,Housing Needs - HB (Housing Benefit),D2514,Accommodation Costs,104.00,SDR Living Ltd,,2036045,202207
Rother District Council,26/09/2022,091HOUSING,Housing and Community Services,20200,Housing Needs - HB (Housing Benefit),D2514,Accommodation Costs,208.00,SDR Living Ltd,,2036045,202207
Rother District Council,26/09/2022,091HOUSING,Housing and Community Services,20200,Housing Needs - HB (Housing Benefit),D2514,Accommodation Costs,52.00,SDR Living Ltd,,2036045,202207
Rother District Council,26/09/2022,091HOUSING,Housing and Community Services,20200,Housing Needs - HB (Housing Benefit),D2514,Accommodation Costs,350.00,SDR Living Ltd,,2036045,202207
Rother District Council,26/09/2022,091HOUSING,Housing and Community Services,20200,Housing Needs - HB (Housing Benefit),D2514,Accommodation Costs,87.50,SDR Living Ltd,,2036045,202207
Rother District Council,26/09/2022,091HOUSING,Housing and Community Services,20200,Housing Needs - HB (Housing Benefit),D2514,Accommodation Costs,124.80,SDR Living Ltd,,2036045,202207
Rother District Council,26/09/2022,091HOUSING,Housing and Community Services,20329,Rough Sleeping Initiative,D2514,Accommodation Costs,31.20,SDR Living Ltd,,2036045,202207
Rother District Council,26/09/2022,091HOUSING,Housing and Community Services,20200,Housing Needs - HB (Housing Benefit),D2514,Accommodation Costs,476.00,SDR Living Ltd,,2036045,202207
Rother District Council,26/09/2022,091HOUSING,Housing and Community Services,20200,Housing Needs - HB (Housing Benefit),D2514,Accommodation Costs,260.00,SDR Living Ltd,,2036045,202207
Rother District Council,26/09/2022,091HOUSING,Housing and Community Services,20200,Housing Needs - HB (Housing Benefit),D2514,Accommodation Costs,156.00,SDR Living Ltd,,2036045,202207
Rother District Council,26/09/2022,091HOUSING,Housing and Community Services,20200,Housing Needs - HB (Housing Benefit),D2514,Accommodation Costs,39.00,SDR Living Ltd,,2036045,202207
Rother District Council,26/09/2022,091HOUSING,Housing and Community Services,20200,Housing Needs - HB (Housing Benefit),D2514,Accommodation Costs,312.00,SDR Living Ltd,,2036045,202207
Rother District Council,26/09/2022,091HOUSING,Housing and Community Services,20200,Housing Needs - HB (Housing Benefit),D2514,Accommodation Costs,364.00,SDR Living Ltd,,2036045,202207
Rother District Council,26/09/2022,091HOUSING,Housing and Community Services,20200,Housing Needs - HB (Housing Benefit),D2514,Accommodation Costs,91.00,SDR Living Ltd,,2036045,202207
Rother District Council,26/09/2022,091HOUSING,Housing and Community Services,20200,Housing Needs - HB (Housing Benefit),D2514,Accommodation Costs,142.50,SDR Living Ltd,,2036045,202207
Rother District Council,26/09/2022,091HOUSING,Housing and Community Services,20200,Housing Needs - HB (Housing Benefit),D2514,Accommodation Costs,291.20,SDR Living Ltd,,2036045,202207
Rother District Council,26/09/2022,091HOUSING,Housing and Community Services,20200,Housing Needs - HB (Housing Benefit),D2514,Accommodation Costs,72.80,SDR Living Ltd,,2036045,202207
Rother District Council,26/09/2022,091HOUSING,Housing and Community Services,20200,Housing Needs - HB (Housing Benefit),D2514,Accommodation Costs,364.00,SDR Living Ltd,,2036045,202207
Rother District Council,26/09/2022,091HOUSING,Housing and Community Services,20200,Housing Needs - HB (Housing Benefit),D2514,Accommodation Costs,91.00,SDR Living Ltd,,2036045,202207
Rother District Council,26/09/2022,091HOUSING,Housing and Community Services,20200,Housing Needs - HB (Housing Benefit),D2514,Accommodation Costs,260.00,SDR Living Ltd,,2036045,202207
Rother District Council,26/09/2022,091HOUSING,Housing and Community Services,20200,Housing Needs - HB (Housing Benefit),D2514,Accommodation Costs,156.00,SDR Living Ltd,,2036045,202207
Rother District Council,26/09/2022,091HOUSING,Housing and Community Services,20200,Housing Needs - HB (Housing Benefit),D2514,Accommodation Costs,39.00,SDR Living Ltd,,2036045,202207
Rother District Council,26/09/2022,091HOUSING,Housing and Community Services,20200,Housing Needs - HB (Housing Benefit),D2514,Accommodation Costs,437.50,SDR Living Ltd,,2036045,202207
Rother District Council,26/09/2022,091HOUSING,Housing and Community Services,20200,Housing Needs - HB (Housing Benefit),D2514,Accommodation Costs,208.00,SDR Living Ltd,,2036045,202207
Rother District Council,26/09/2022,091HOUSING,Housing and Community Services,20200,Housing Needs - HB (Housing Benefit),D2514,Accommodation Costs,284.00,SDR Living Ltd,,2036045,202207
Rother District Council,26/09/2022,091HOUSING,Housing and Community Services,20200,Housing Needs - HB (Housing Benefit),D2514,Accommodation Costs,113.60,SDR Living Ltd,,2036045,202207
Rother District Council,26/09/2022,091HOUSING,Housing and Community Services,20200,Housing Needs - HB (Housing Benefit),D2514,Accommodation Costs,28.40,SDR Living Ltd,,2036045,202207
Rother District Council,26/09/2022,091HOUSING,Housing and Community Services,20329,Rough Sleeping Initiative,D2514,Accommodation Costs,291.20,SDR Living Ltd,,2036045,202207
Rother District Council,26/09/2022,091HOUSING,Housing and Community Services,20329,Rough Sleeping Initiative,D2514,Accommodation Costs,72.80,SDR Living Ltd,,2036045,202207
Rother District Council,26/09/2022,091HOUSING,Housing and Community Services,20200,Housing Needs - HB (Housing Benefit),D2514,Accommodation Costs,364.00,SDR Living Ltd,,2036045,202207
Rother District Council,26/09/2022,091HOUSING,Housing and Community Services,20200,Housing Needs - HB (Housing Benefit),D2514,Accommodation Costs,91.00,SDR Living Ltd,,2036045,202207
Rother District Council,26/09/2022,091HOUSING,Housing and Community Services,20329,Rough Sleeping Initiative,D2514,Accommodation Costs,364.00,SDR Living Ltd,,2036045,202207
Rother District Council,26/09/2022,091HOUSING,Housing and Community Services,20329,Rough Sleeping Initiative,D2514,Accommodation Costs,91.00,SDR Living Ltd,,2036045,202207
Rother District Council,26/09/2022,091HOUSING,Housing and Community Services,20200,Housing Needs - HB (Housing Benefit),D2514,Accommodation Costs,350.00,SDR Living Ltd,,2036045,202207
Rother District Council,26/09/2022,091HOUSING,Housing and Community Services,20200,Housing Needs - HB (Housing Benefit),D2514,Accommodation Costs,87.50,SDR Living Ltd,,2036045,202207
Rother District Council,26/09/2022,091HOUSING,Housing and Community Services,20261,"TA Purchases (prev - 41 Jameson Mews, Bexhill on Sea)",B2421,Water,185.54,South East Water Ltd,Water - Water Charges,2036290,202207
Rother District Council,26/09/2022,091HOUSING,Housing and Community Services,20261,"TA Purchases (prev - 41 Jameson Mews, Bexhill on Sea)",B2421,Water,166.64,South East Water Ltd,Water - Water Charges,2036291,202207
Rother District Council,26/09/2022,091HOUSING,Housing and Community Services,20261,"TA Purchases (prev - 41 Jameson Mews, Bexhill on Sea)",B2422,Sewerage,191.02,South East Water Ltd,Sewerage - Sewerage Charges,2036290,202207
Rother District Council,26/09/2022,091HOUSING,Housing and Community Services,20261,"TA Purchases (prev - 41 Jameson Mews, Bexhill on Sea)",B2422,Sewerage,172.71,South East Water Ltd,Sewerage - Sewerage Charges,2036291,202207
Rother District Council,26/09/2022,091HOUSING,Housing and Community Services,20317,Rother Leasing Scheme,D2513,Hired and Contracted services,85.00,Titanium Security Solutions Ltd,Hired and contracted services - Service fee paid,2037089,202208
Rother District Council,26/09/2022,081ACQUISIT,"Acquisitions, Transformation and Regeneration",20338,7-12 Beeching Road Studios ( Regeneration Project ),B1100,Repairs to Premises,60.56,Trade UK Account (Screwfix & B&Q),Repairs to Premises - Purchase of Materials - Build Maint,2036087,202207
Rother District Council,26/09/2022,081ACQUISIT,"Acquisitions, Transformation and Regeneration",20338,7-12 Beeching Road Studios ( Regeneration Project ),B1100,Repairs to Premises,83.32,Trade UK Account (Screwfix & B&Q),Repairs to Premises - Purchase of Materials - Build Maint,2036086,202207
Rother District Council,26/09/2022,081ACQUISIT,"Acquisitions, Transformation and Regeneration",20338,7-12 Beeching Road Studios ( Regeneration Project ),B1100,Repairs to Premises,27.31,Trade UK Account (Screwfix & B&Q),Repairs to Premises - Purchase of Materials - Build Maint,2036088,202207
Rother District Council,26/09/2022,091HOUSING,Housing and Community Services,20145,Maintenance Services,D1201,Equipment & Materials,-199.99,Trade UK Account (Screwfix & B&Q),Equipment & Materials - Purchase of Tools,2036084,202207
Rother District Council,26/09/2022,091HOUSING,Housing and Community Services,20145,Maintenance Services,D1201,Equipment & Materials,199.99,Trade UK Account (Screwfix & B&Q),Equipment & Materials - Purchase of Tools,2036085,202207
Rother District Council,27/09/2022,999NOREPORT,Not included in reporting,70706,Capital - Disabled Facilities Grant,N1012,Capital Advances,"11,000.00",REDACTED PERSONAL DATA,Capital Advances Disabled Facilities Grant,2035952,202207
Rother District Council,27/09/2022,101RESOURCES,Resources,20241,Stationery,D2420,General office supplies (Stationery purchased from ext suppliers),25.56,Banner Group Ltd,General office supplies - Stationery (Stationery Services to buy ONLY),2036079,202207
Rother District Council,27/09/2022,041ENVIRON,Environmental Services,32134,EH Pollution R + W Partnership,D1201,Equipment & Materials,74.76,BES Limited,Equipment & Materials - EnvH- Pollution Equipment,2036115,202207
Rother District Council,27/09/2022,101RESOURCES,Resources,20242,Communications-Phones,D2621,Telephones,332.47,BT British Telecommunications plc,Telephones - BT-Rental-General,2036229,202207
Rother District Council,27/09/2022,091HOUSING,Housing and Community Services,20261,"TA Purchases (prev - 41 Jameson Mews, Bexhill on Sea)",B2202,Gas,22.75,Bulb Energy Ltd,Gas - Gas Charges,2036289,202207
Rother District Council,27/09/2022,091HOUSING,Housing and Community Services,20114,Bexhill Parks & Open Spaces,B2421,Water,250.25,Castle Water Ltd,Water - Water Charges,2036078,202207
Rother District Council,27/09/2022,999NOREPORT,Not included in reporting,70762,Capital - Bexhill Promenade Shelter One,D2513,Hired and Contracted services,"6,110.00",CMJ Joinery (Southern) Ltd,Hired and Contracted Services - S106 payment to other organisation,2037039,202208
Rother District Council,27/09/2022,091HOUSING,Housing and Community Services,20114,Bexhill Parks & Open Spaces,B2422,Sewerage,248.68,CountyClean Environmental Services Ltd,Sewerage Parks- Emptying of Cesspit,2036089,202207
Rother District Council,27/09/2022,999NOREPORT,Not included in reporting,70759,Capital - Town Hall Renaissance Project,N1004,Architects & Consultant Fees,"18,500.00",Delap & Waller Ltd,Architects & Consultant Fees Capital-Architect and Conslt Fees,2035867,202207
Rother District Council,27/09/2022,091HOUSING,Housing and Community Services,20261,"TA Purchases (prev - 41 Jameson Mews, Bexhill on Sea)",B2202,Gas,78.33,EDF Energy Customers plc,Gas - Gas Charges,2036461,202207
Rother District Council,27/09/2022,999NOREPORT,Not included in reporting,70706,Capital - Disabled Facilities Grant,N1012,Capital Advances,"3,689.07",Griffin and Son,Capital Advances Disabled Facilities Grant,2035953,202207
Rother District Council,27/09/2022,041ENVIRON,Environmental Services,32134,EH Pollution R + W Partnership,D1201,Equipment & Materials,44.94,Health and Care (UK) Ltd t/a SafetyGloves.co.uk,Equipment & Materials - EnvH- Pollution Equipment,2036129,202207
Rother District Council,27/09/2022,999NOREPORT,Not included in reporting,70706,Capital - Disabled Facilities Grant,N1012,Capital Advances,"8,000.00",General Building and Plumbing Ltd,Capital Advances Disabled Facilities Grant,2035947,202207
Rother District Council,27/09/2022,091HOUSING,Housing and Community Services,20261,"TA Purchases (prev - 41 Jameson Mews, Bexhill on Sea)",D2513,Hired and Contracted services,42.50,REDACTED PERSONAL DATA,Hired and contracted services - Service fee paid,2036058,202207
Rother District Council,27/09/2022,091HOUSING,Housing and Community Services,20204,Housing Administration Account,D2513,Hired and Contracted services,17.00,REDACTED PERSONAL DATA,Hired and contracted services - Service fee paid,2036058,202207
Rother District Council,27/09/2022,091HOUSING,Housing and Community Services,20261,"TA Purchases (prev - 41 Jameson Mews, Bexhill on Sea)",D2513,Hired and Contracted services,25.50,REDACTED PERSONAL DATA,Hired and contracted services - Service fee paid,2036058,202207
Rother District Council,27/09/2022,091HOUSING,Housing and Community Services,20204,Housing Administration Account,D2513,Hired and Contracted services,42.50,REDACTED PERSONAL DATA,Hired and contracted services - Service fee paid,2036058,202207
Rother District Council,27/09/2022,091HOUSING,Housing and Community Services,20261,"TA Purchases (prev - 41 Jameson Mews, Bexhill on Sea)",D2513,Hired and Contracted services,25.50,REDACTED PERSONAL DATA,Hired and contracted services - Service fee paid,2036058,202207
Rother District Council,27/09/2022,091HOUSING,Housing and Community Services,20261,"TA Purchases (prev - 41 Jameson Mews, Bexhill on Sea)",D2513,Hired and Contracted services,72.25,REDACTED PERSONAL DATA,Hired and contracted services - Service fee paid,2036058,202207
Rother District Council,27/09/2022,091HOUSING,Housing and Community Services,20261,"TA Purchases (prev - 41 Jameson Mews, Bexhill on Sea)",D2513,Hired and Contracted services,21.25,REDACTED PERSONAL DATA,Hired and contracted services - Service fee paid,2036058,202207
Rother District Council,27/09/2022,091HOUSING,Housing and Community Services,20261,"TA Purchases (prev - 41 Jameson Mews, Bexhill on Sea)",D2513,Hired and Contracted services,42.50,REDACTED PERSONAL DATA,Hired and contracted services - Service fee paid,2036058,202207
Rother District Council,27/09/2022,091HOUSING,Housing and Community Services,20137,Car Parks,B1100,Repairs to Premises,23.16,Parker Building Supplies Ltd,Repairs to Premises - Purchase of Materials - Build Maint,2036072,202207
Rother District Council,27/09/2022,999NOREPORT,Not included in reporting,70725,Capital - Blackfriars,N1004,Architects & Consultant Fees,"5,250.00",Phlorum Ltd,Architects & Consultant Fees Capital-Architect and Conslt Fees,2036080,202207
Rother District Council,27/09/2022,999NOREPORT,Not included in reporting,70725,Capital - Blackfriars,N1005,Other fees,112.00,Phlorum Ltd,Other Fees - Capital exp Std VAT,2036080,202207
Rother District Council,27/09/2022,071STRAT,Strategy and Planning,20246,Planning Applications,A1110,Agency Staff,428.88,Sammons Recruitment Ltd,Agency Staff,2035921,202207
Rother District Council,27/09/2022,091HOUSING,Housing and Community Services,20114,Bexhill Parks & Open Spaces,D1201,Equipment & Materials,672.66,Streetmaster (South Wales) Ltd,Equipment & Materials - Parks Purchase of Seats/ Benches/Plaques,2036090,202207
Rother District Council,27/09/2022,091HOUSING,Housing and Community Services,20114,Bexhill Parks & Open Spaces,D2513,Hired and Contracted services,77.00,Streetmaster (South Wales) Ltd,Hired and contracted services - Delivery and/or Packaging of Equipm,2036090,202207
Rother District Council,27/09/2022,091HOUSING,Housing and Community Services,20107,Camber Beach & Foreshore,B1100,Repairs to Premises,39.65,Sussex Plumbing Supplies Ltd,Repairs to Premises - Purchase of Materials - Build Maint,2036074,202207
Rother District Council,27/09/2022,091HOUSING,Housing and Community Services,20128,Public Conveniences,B1100,Repairs to Premises,17.04,Sussex Plumbing Supplies Ltd,Repairs to Premises - Purchase of Materials - Build Maint,2036073,202207
Rother District Council,27/09/2022,091HOUSING,Housing and Community Services,20133,Refuse Collection,E2302,Third party payment private contractors,35.00,Sussex Waste Management Ltd,Third party payment private contractors - Payments to Contractor,2036082,202207
Rother District Council,27/09/2022,091HOUSING,Housing and Community Services,20133,Refuse Collection,E2302,Third party payment private contractors,790.00,Sussex Waste Management Ltd,Third party payment private contractors - Payments to Contractor,2036081,202207
Rother District Council,27/09/2022,999NOREPORT,Not included in reporting,70706,Capital - Disabled Facilities Grant,N1012,Capital Advances,"5,000.00",The Build Works,Capital Advances Disabled Facilities Grant,2035948,202207
Rother District Council,27/09/2022,999NOREPORT,Not included in reporting,70706,Capital - Disabled Facilities Grant,N1012,Capital Advances,"1,355.50",Town & Country Housing,Capital Advances Disabled Facilities Grant,2035946,202207
Rother District Council,27/09/2022,999NOREPORT,Not included in reporting,70706,Capital - Disabled Facilities Grant,N1012,Capital Advances,"1,200.00",Town & Country Housing,Capital Advances Disabled Facilities Grant,2035949,202207
Rother District Council,27/09/2022,091HOUSING,Housing and Community Services,20108,Bexhill Promenade & Foreshore,B1100,Repairs to Premises,13.49,Trade UK Account (Screwfix & B&Q),Repairs to Premises - Purchase of Materials - Build Maint,2036094,202207
Rother District Council,27/09/2022,091HOUSING,Housing and Community Services,20145,Maintenance Services,D1201,Equipment & Materials,49.99,Trade UK Account (Screwfix & B&Q),Equipment & Materials - Purchase of Tools,2036093,202207
Rother District Council,28/09/2022,091HOUSING,Housing and Community Services,20261,"TA Purchases (prev - 41 Jameson Mews, Bexhill on Sea)",D2513,Hired and Contracted services,332.88,A&A Cleaning & Property Services Ltd,Hired and contracted services - Service fee paid,2037099,202208
Rother District Council,28/09/2022,999NOREPORT,Not included in reporting,70751,Capital - Temporary Accommodation,N1003,Construction/Conversion,50.00,A&A Cleaning & Property Services Ltd,Construction/Conversion Capital-Contract Payments - General,2036051,202207
Rother District Council,28/09/2022,081ACQUISIT,"Acquisitions, Transformation and Regeneration",20308,Amherst Road,B1100,Repairs to Premises,871.16,Alfa Electric Ltd,Repairs to Premises - Repairs - Electrical Works,2036614,202208
Rother District Council,28/09/2022,081ACQUISIT,"Acquisitions, Transformation and Regeneration",20101,Cultural Development,D2926,District Events- Concessionary Use,"1,500.00",De La Warr Pavilion (Enterprise) Ltd,District Events-Concessionary Use - DLWP Community Concessionary Grant,2036194,202207
Rother District Council,28/09/2022,101RESOURCES,Resources,20216,Cost Of Collection,D2626,Postages,990.01,DSI Billing Services Ltd,Postages - DSI Billing,2036091,202207
Rother District Council,28/09/2022,071STRAT,Strategy and Planning,20246,Planning Applications,D2509,Consultants and Other Services,"5,270.00","G2V Recruitment Group Ltd, t/a Vivid Resourcing",Consultants and other services - Consultants Fees,2036092,202207
Rother District Council,28/09/2022,091HOUSING,Housing and Community Services,20200,Housing Needs - HB (Housing Benefit),D2509,Consultants and Other Services,33.90,NEC Software Solutions UK Ltd,Consultants and other services - Consultants Fees,2035943,202207
Rother District Council,28/09/2022,101RESOURCES,Resources,20216,Cost Of Collection,D2509,Consultants and Other Services,30.20,NEC Software Solutions UK Ltd,Consultants and other services - Consultants Fees,2035943,202207
Rother District Council,28/09/2022,101RESOURCES,Resources,20217,Reliefs & Benefits-Council Tax Benefit,D2509,Consultants and Other Services,5.50,NEC Software Solutions UK Ltd,Consultants and other services - Consultants Fees,2035943,202207
Rother District Council,28/09/2022,091HOUSING,Housing and Community Services,20204,Housing Administration Account,A1110,Agency Staff,776.22,Oyster Partnership,Agency Staff,2036366,202208
Rother District Council,28/09/2022,081ACQUISIT,"Acquisitions, Transformation and Regeneration",20122,Economic Development,A1110,Agency Staff,"1,440.00",Oyster Partnership,Agency Staff,2036369,202208
Rother District Council,28/09/2022,091HOUSING,Housing and Community Services,20204,Housing Administration Account,A1110,Agency Staff,"1,045.44",Oyster Partnership,Agency Staff,2036675,202208
Rother District Council,28/09/2022,101RESOURCES,Resources,20222,Accountancy,D2509,Consultants and Other Services,650.00,Oyster Partnership,Consultants and other services - Consultants Fees,2036368,202207
Rother District Council,28/09/2022,081ACQUISIT,"Acquisitions, Transformation and Regeneration",20308,Amherst Road,B1100,Repairs to Premises,194.60,Phase Electrical Distributors Ltd,,2036123,202207
Rother District Council,28/09/2022,081ACQUISIT,"Acquisitions, Transformation and Regeneration",20272,Major Projects unit,D2513,Hired and Contracted services,"5,535.00",Precision Resource Group Ltd,Hired and contracted services - Service fee paid,2035961,202207
Rother District Council,28/09/2022,999NOREPORT,Not included in reporting,70737,Capital � Barnhorn Green,N1005,Other fees,"1,200.00",Precision Resource Group Ltd,Other Fees - Capital exp Std VAT,2036124,202207
Rother District Council,28/09/2022,999NOREPORT,Not included in reporting,70725,Capital - Blackfriars,N1005,Other fees,"1,200.00",Precision Resource Group Ltd,Other Fees - Capital exp Std VAT,2036124,202207
Rother District Council,28/09/2022,101RESOURCES,Resources,20240,Printing Services,D2417,Photocopy Paper by external suppliers,407.00,Premier Paper Group Ltd,Photocopy Paper by external suppliers - Colour Paper,2036103,202207
Rother District Council,28/09/2022,091HOUSING,Housing and Community Services,20123,Cemeteries,B1100,Repairs to Premises,18.27,Saint-Gobain Building Distribution Ltd t/a Jewson,Repairs to Premises - Purchase of Materials - Build Maint,2036674,202208
Rother District Council,28/09/2022,071STRAT,Strategy and Planning,20246,Planning Applications,A1110,Agency Staff,"1,235.00",Sonovate Limited T/A Stonehouse Recruitment Group Ltd,Agency Staff,2035960,202207
Rother District Council,28/09/2022,091HOUSING,Housing and Community Services,20114,Bexhill Parks & Open Spaces,D1201,Equipment & Materials,120.00,Thompson Advertising,Equipment & Materials - Parks - Purchase of Signs,2035969,202207
Rother District Council,28/09/2022,091HOUSING,Housing and Community Services,20108,Bexhill Promenade & Foreshore,B1100,Repairs to Premises,28.34,Trade Paints Ltd,Repairs to Premises - Purchase of Materials - Build Maint,2036412,202207
Rother District Council,28/09/2022,091HOUSING,Housing and Community Services,20123,Cemeteries,B1100,Repairs to Premises,26.65,Trade UK Account (Screwfix & B&Q),Repairs to Premises - Purchase of Materials - Build Maint,2036096,202207
Rother District Council,28/09/2022,091HOUSING,Housing and Community Services,20145,Maintenance Services,D1201,Equipment & Materials,29.16,Trade UK Account (Screwfix & B&Q),Equipment & Materials - Purchase of Tools,2036095,202207
Rother District Council,28/09/2022,081ACQUISIT,"Acquisitions, Transformation and Regeneration",20308,Amherst Road,B2612,Cleaning materials,124.88,Wightman and Parrish Ltd,Cleaning materials - Premises,2036083,202207
Rother District Council,28/09/2022,091HOUSING,Housing and Community Services,20114,Bexhill Parks & Open Spaces,B1100,Repairs to Premises,500.00,Xylem Water Solutions UK Ltd,Repairs to Premises - Pumps Maintenance/ Repairs,2036437,202207
Rother District Council,29/09/2022,091HOUSING,Housing and Community Services,20145,Maintenance Services,D2513,Hired and Contracted services,80.00,Amstech Inspections & Testing Ltd,Hired and contracted services - Service fee paid,2035945,202207
Rother District Council,29/09/2022,999NOREPORT,Not included in reporting,90000,Balance sheet all accounts,R2348,Suspense Accounts,118.80,Association for Public Service Excellence (APSE),Suspense Accounts Monies to be Refunded,2036313,202207
Rother District Council,29/09/2022,999NOREPORT,Not included in reporting,70725,Capital - Blackfriars,N1002,Land & Property fees,"1,067.50",Bevan Brittan LLP,Land & Property fees Capital-Land and Propty - Fees Etc.,2037281,202209
Rother District Council,29/09/2022,041ENVIRON,Environmental Services,32134,EH Pollution R + W Partnership,D1201,Equipment & Materials,11.50,Brissco (Equipment) Ltd,Equipment & Materials - Carriage/Handling Charge,2036116,202207
Rother District Council,29/09/2022,041ENVIRON,Environmental Services,32134,EH Pollution R + W Partnership,D1201,Equipment & Materials,410.70,Brissco (Equipment) Ltd,Equipment & Materials - EnvH- Pollution Equipment,2036116,202207
Rother District Council,29/09/2022,071STRAT,Strategy and Planning,20246,Planning Applications,A1110,Agency Staff,858.40,Carrington West Ltd,Agency Staff,2036102,202207
Rother District Council,29/09/2022,091HOUSING,Housing and Community Services,20114,Bexhill Parks & Open Spaces,B2421,Water,32.94,Castle Water Ltd,Water - Water Charges,2036110,202207
Rother District Council,29/09/2022,081ACQUISIT,"Acquisitions, Transformation and Regeneration",20136,Regeneration,D2513,Hired and Contracted services,"29,791.66",De La Warr Pavilion Charitable Trust,Hired and contracted services - levelling up spend,2036446,202207
Rother District Council,29/09/2022,081ACQUISIT,"Acquisitions, Transformation and Regeneration",20136,Regeneration,D2513,Hired and Contracted services,"8,500.00",De La Warr Pavilion Charitable Trust,Hired and contracted services - levelling up spend,2036446,202207
Rother District Council,29/09/2022,101RESOURCES,Resources,20216,Cost Of Collection,D2626,Postages,560.65,DSI Billing Services Ltd,Postages - DSI Billing,2036127,202207
Rother District Council,29/09/2022,999NOREPORT,Not included in reporting,70737,Capital � Barnhorn Green,N1004,Architects & Consultant Fees,"4,500.00",Energist UK Ltd,Architects & Consultant Fees Capital-Architect and Conslt Fees,2036117,202207
Rother District Council,29/09/2022,041ENVIRON,Environmental Services,32133,EH Food Hyg / Idc / Water Purity R + W Partnership,D1201,Equipment & Materials,219.00,Fluke UK,Equipment & Materials - EnvH - Food Samples,2036926,202208
Rother District Council,29/09/2022,999NOREPORT,Not included in reporting,70768,Capital - Improvements to existing Bexhill leisure centre and pool,N1003,Construction/Conversion,"3,089.00",Freedom Leisure,Construction/Conversion Capital-Contract Payments - General,2036284,202207
Rother District Council,29/09/2022,999NOREPORT,Not included in reporting,70768,Capital - Improvements to existing Bexhill leisure centre and pool,N1003,Construction/Conversion,"9,725.00",Freedom Leisure,Construction/Conversion Capital-Contract Payments - General,2036284,202207
Rother District Council,29/09/2022,999NOREPORT,Not included in reporting,70768,Capital - Improvements to existing Bexhill leisure centre and pool,N1003,Construction/Conversion,"11,406.43",Freedom Leisure,Construction/Conversion Capital-Contract Payments - General,2036285,202207
Rother District Council,29/09/2022,999NOREPORT,Not included in reporting,70768,Capital - Improvements to existing Bexhill leisure centre and pool,N1003,Construction/Conversion,"2,563.48",Freedom Leisure,Construction/Conversion Capital-Contract Payments - General,2036285,202207
Rother District Council,29/09/2022,091HOUSING,Housing and Community Services,20114,Bexhill Parks & Open Spaces,B1100,Repairs to Premises,99.00,Geewoods Construction Co Ltd,Repairs to Premises - Parks - Paths/Surface Repairs,2036172,202207
Rother District Council,29/09/2022,081ACQUISIT,"Acquisitions, Transformation and Regeneration",20153,"Elva Business Centre, Bexhill",B1100,Repairs to Premises,85.00,I.B. Lock & Safe,Repairs to Premises - Specified Repairs and Works listed,2036154,202207
Rother District Council,29/09/2022,091HOUSING,Housing and Community Services,20138,Residual Highway Services,D1201,Equipment & Materials,426.00,Midland Signs (Leicester) Ltd T/A G+G Signs,Equipment & Materials - Purchase of Street Name Plates/Numb,2036198,202207
Rother District Council,29/09/2022,071STRAT,Strategy and Planning,20246,Planning Applications,D2519,Statutory Advertising,732.00,National World Publishing Ltd,Statutory Advertising - Planadv - Rye+Battle Observer,2036125,202207
Rother District Council,29/09/2022,101RESOURCES,Resources,20239,Computer Services,D2635,Computer Licences,"1,445.00",NCC Services Ltd (T/A NCC Group Escrow Ltd),Computer Licences - Advance Pay ESCROW Agreement,2036126,202207
Rother District Council,29/09/2022,091HOUSING,Housing and Community Services,20200,Housing Needs - HB (Housing Benefit),D2514,Accommodation Costs,"1,140.00",Paramount Independent Property Services LLP,,2036295,202207
Rother District Council,29/09/2022,091HOUSING,Housing and Community Services,20329,Rough Sleeping Initiative,D2514,Accommodation Costs,"1,650.00",Paramount Independent Property Services LLP,,2036295,202207
Rother District Council,29/09/2022,091HOUSING,Housing and Community Services,20200,Housing Needs - HB (Housing Benefit),D2514,Accommodation Costs,"1,690.00",Paramount Independent Property Services LLP,,2036295,202207
Rother District Council,29/09/2022,091HOUSING,Housing and Community Services,20200,Housing Needs - HB (Housing Benefit),D2514,Accommodation Costs,"1,650.00",Paramount Independent Property Services LLP,,2036295,202207
Rother District Council,29/09/2022,071STRAT,Strategy and Planning,20246,Planning Applications,D2513,Hired and Contracted services,100.00,Reading Agricultural Consultants,Hired and contracted services - Plan-Agricultural Advice,2035966,202207
Rother District Council,29/09/2022,091HOUSING,Housing and Community Services,20108,Bexhill Promenade & Foreshore,B1100,Repairs to Premises,7.27,Saint-Gobain Building Distribution Ltd t/a Jewson,Repairs to Premises - Purchase of Materials - Build Maint,2036677,202208
Rother District Council,29/09/2022,091HOUSING,Housing and Community Services,20123,Cemeteries,B1100,Repairs to Premises,-56.70,Saint-Gobain Building Distribution Ltd t/a Jewson,Repairs to Premises - Purchase of Materials - Build Maint,2036676,202208
Rother District Council,29/09/2022,091HOUSING,Housing and Community Services,20123,Cemeteries,B1100,Repairs to Premises,45.50,Saint-Gobain Building Distribution Ltd t/a Jewson,Repairs to Premises - Purchase of Materials - Build Maint,2036679,202208
Rother District Council,29/09/2022,091HOUSING,Housing and Community Services,20123,Cemeteries,B1100,Repairs to Premises,151.65,Saint-Gobain Building Distribution Ltd t/a Jewson,Repairs to Premises - Purchase of Materials - Build Maint,2036678,202208
Rother District Council,29/09/2022,091HOUSING,Housing and Community Services,20128,Public Conveniences,B2421,Water,457.83,Scottish Water Business Stream Limited,Water - Water Charges,2036104,202207
Rother District Council,29/09/2022,091HOUSING,Housing and Community Services,20128,Public Conveniences,B2421,Water,241.69,Scottish Water Business Stream Limited,Water - Water Charges,2036106,202207
Rother District Council,29/09/2022,091HOUSING,Housing and Community Services,20128,Public Conveniences,B2422,Sewerage,529.81,Scottish Water Business Stream Limited,Sewerage - Sewerage Charges,2036104,202207
Rother District Council,29/09/2022,091HOUSING,Housing and Community Services,20128,Public Conveniences,B2422,Sewerage,321.71,Scottish Water Business Stream Limited,Sewerage - Sewerage Charges,2036106,202207
Rother District Council,29/09/2022,091HOUSING,Housing and Community Services,20114,Bexhill Parks & Open Spaces,B1100,Repairs to Premises,783.68,Trade UK Account (Screwfix & B&Q),,2036099,202207
Rother District Council,29/09/2022,091HOUSING,Housing and Community Services,20128,Public Conveniences,B1100,Repairs to Premises,116.66,Trade UK Account (Screwfix & B&Q),Repairs to Premises - Purchase of Materials - Build Maint,2036098,202207
Rother District Council,29/09/2022,091HOUSING,Housing and Community Services,20132,Street & Beach Cleansing,D1201,Equipment & Materials,8.33,Trade UK Account (Screwfix & B&Q),Repairs to Premises - Purchase of Materials - Build Maint,2036097,202208
Rother District Council,29/09/2022,091HOUSING,Housing and Community Services,20114,Bexhill Parks & Open Spaces,D1201,Equipment & Materials,258.22,True Traders Ltd,Equipment & Materials - Parks- Fencing Products,2037100,202208
Rother District Council,30/09/2022,091HOUSING,Housing and Community Services,20200,Housing Needs - HB (Housing Benefit),D2513,Hired and Contracted services,44.10,247 Transport Solutions Ltd,Hired and Contracted services,2036263,202207
Rother District Council,30/09/2022,091HOUSING,Housing and Community Services,20206,UK Resettlement (Syrians),D2513,Hired and Contracted services,415.30,247 Transport Solutions Ltd,Hired and contracted services - Syrian Misc,2036268,202207
Rother District Council,30/09/2022,091HOUSING,Housing and Community Services,20114,Bexhill Parks & Open Spaces,D1201,Equipment & Materials,40.00,AA Fencing UK Ltd,Equipment & Materials - Parks- Fencing Products,2036218,202207
Rother District Council,30/09/2022,091HOUSING,Housing and Community Services,20108,Bexhill Promenade & Foreshore,B2611,Contract cleaning,135.00,Abacus Main Ltd,Contract cleaning - Office Cleaning,2036593,202208
Rother District Council,30/09/2022,091HOUSING,Housing and Community Services,20102,Rother Museum Services,B1100,Repairs to Premises,451.00,ADT Fire and  Security Plc,Repairs to Premises - Fire Alarm System Maintenance,2036696,202208
Rother District Council,30/09/2022,999NOREPORT,Not included in reporting,70754,Capital - King Offa Residential Development Scheme,N1004,Architects & Consultant Fees,"2,200.00",Anderson Acoustics Ltd,Architects & Consultant Fees Capital-Architect and Conslt Fees,2036325,202207
Rother District Council,30/09/2022,999NOREPORT,Not included in reporting,70759,Capital - Town Hall Renaissance Project,N1004,Architects & Consultant Fees,"5,231.60",Austin-Smith:Lord Ltd,Architects & Consultant Fees Capital-Architect and Conslt Fees,2036174,202207
Rother District Council,30/09/2022,091HOUSING,Housing and Community Services,20133,Refuse Collection,E2302,Third party payment private contractors,349.91,Biffa Waste Services Ltd,Third party payment private contractors - Waste Collection Contract Variable cost to RDC,2036109,202207
Rother District Council,30/09/2022,081ACQUISIT,"Acquisitions, Transformation and Regeneration",20153,"Elva Business Centre, Bexhill",B1100,Repairs to Premises,110.00,Black Sheep Engineering Ltd,Repairs to Premises - Fire Alarm System Maintenance,2036149,202207
Rother District Council,30/09/2022,081ACQUISIT,"Acquisitions, Transformation and Regeneration",20308,Amherst Road,B1100,Repairs to Premises,"1,100.00",Black Sheep Engineering Ltd,Repairs to Premises - Repairs - Electrical Works,2037465,202209
Rother District Council,30/09/2022,031RESOURCES,Chief Executive & Corporate Core,20173,Administrative Offices - Town Hall,B1100,Repairs to Premises,"1,370.00",Black Sheep Engineering Ltd,Repairs to Premises - Repairs - Electrical Works,2037465,202209
Rother District Council,30/09/2022,031RESOURCES,Chief Executive & Corporate Core,20176,Administrative Offices - Print Room,B1100,Repairs to Premises,500.00,Black Sheep Engineering Ltd,Repairs to Premises - Repairs - Electrical Works,2037465,202209
Rother District Council,30/09/2022,081ACQUISIT,"Acquisitions, Transformation and Regeneration",20153,"Elva Business Centre, Bexhill",B1100,Repairs to Premises,900.00,Black Sheep Engineering Ltd,Repairs to Premises - Repairs - Electrical Works,2037465,202209
Rother District Council,30/09/2022,081ACQUISIT,"Acquisitions, Transformation and Regeneration",20150,Peasmarsh Workshops,B1100,Repairs to Premises,19.99,C Brewer and Sons Ltd,Repairs to Premises - Purchase of Materials - Build Maint,2036195,202207
Rother District Council,30/09/2022,091HOUSING,Housing and Community Services,20108,Bexhill Promenade & Foreshore,B1100,Repairs to Premises,49.63,C Brewer and Sons Ltd,Repairs to Premises - Purchase of Materials - Build Maint,2036196,202207
Rother District Council,30/09/2022,091HOUSING,Housing and Community Services,20133,Refuse Collection,E2302,Third party payment private contractors,105.64,CFH Docmail Ltd,Third party payment private contractors - Payments to Contractor,2036189,202207
Rother District Council,30/09/2022,091HOUSING,Housing and Community Services,20133,Refuse Collection,E2302,Third party payment private contractors,32.07,CFH Docmail Ltd,Third party payment private contractors - Payments to Contractor,2036188,202207
Rother District Council,30/09/2022,091HOUSING,Housing and Community Services,20109,Sports Development,D2923,Grants made,442.00,REDACTED PERSONAL DATA,Grants made - Sports Development-Active Rother,2036162,202207
Rother District Council,30/09/2022,031RESOURCES,Chief Executive & Corporate Core,20162,Electoral Registration,D2415,Printing by external suppliers,"1,178.57",Civica Election Services Ltd,Printing by external suppliers - Printing (Not from RDC Print Room),2035959,202207
Rother District Council,30/09/2022,091HOUSING,Housing and Community Services,20114,Bexhill Parks & Open Spaces,B2422,Sewerage,155.00,Cleansing Service Group Ltd,Sewerage Parks- Emptying of Cesspit,2036180,202207
Rother District Council,30/09/2022,081ACQUISIT,"Acquisitions, Transformation and Regeneration",20146,West Trading Estate,D2513,Hired and Contracted services,"2,410.60",Coppard Giles,Hired and contracted services - Cost of Survey,2036199,202207
Rother District Council,30/09/2022,091HOUSING,Housing and Community Services,20133,Refuse Collection,E2302,Third party payment private contractors,40.00,Data Shredding Services Ltd,Third party payment private contractors - Waste Collection Contract Variable cost to RDC,2036252,202207
Rother District Council,30/09/2022,041ENVIRON,Environmental Services,32142,EH Taxi and Private Hire Licenses R + W Partnership,D2513,Hired and Contracted services,380.00,DBS The Disclosure and Barring Service,Hired and contracted services - Service fee paid,2036134,202207
Rother District Council,30/09/2022,101RESOURCES,Resources,20222,Accountancy,D2509,Consultants and Other Services,"5,133.52",Embridge Consulting (UK) Ltd,Consultants and other services - Consultants Fees,2036178,202207
Rother District Council,30/09/2022,041ENVIRON,Environmental Services,32133,EH Food Hyg / Idc / Water Purity R + W Partnership,D2513,Hired and Contracted services,"1,685.00",Food Safety Guardians Ltd,Hired and contracted services - Service fee paid,2036167,202207
Rother District Council,30/09/2022,091HOUSING,Housing and Community Services,20114,Bexhill Parks & Open Spaces,B1100,Repairs to Premises,200.00,Foxhills Tree Services Ltd,Repairs to Premises - Parks - Tree Works,2036118,202207
Rother District Council,30/09/2022,091HOUSING,Housing and Community Services,20114,Bexhill Parks & Open Spaces,B1100,Repairs to Premises,810.00,Foxhills Tree Services Ltd,Repairs to Premises - Parks - Tree Works,2036120,202207
Rother District Council,30/09/2022,091HOUSING,Housing and Community Services,20114,Bexhill Parks & Open Spaces,B1100,Repairs to Premises,"1,620.00",Foxhills Tree Services Ltd,Repairs to Premises - Parks - Tree Works,2036119,202207
Rother District Council,30/09/2022,091HOUSING,Housing and Community Services,20137,Car Parks,B1100,Repairs to Premises,"2,337.61",Hailsham Roadway Construction Ltd,Repairs to Premises - Car Park Maintenance,2036206,202207
Rother District Council,30/09/2022,091HOUSING,Housing and Community Services,20114,Bexhill Parks & Open Spaces,D1201,Equipment & Materials,921.96,Hailsham Roadway Construction Ltd,Equipment & materials - Miscellaneous,2036335,202207
Rother District Council,30/09/2022,091HOUSING,Housing and Community Services,20108,Bexhill Promenade & Foreshore,D2513,Hired and Contracted services,80.00,Impact Scaffolding Ltd,Hired and contracted services - Service fee paid,2036222,202207
Rother District Council,30/09/2022,091HOUSING,Housing and Community Services,20108,Bexhill Promenade & Foreshore,D2513,Hired and Contracted services,80.00,Impact Scaffolding Ltd,Hired and contracted services - Service fee paid,2036221,202207
Rother District Council,30/09/2022,091HOUSING,Housing and Community Services,20204,Housing Administration Account,A2202,Recruitment expenses,995.00,Inside Housing,Recruitment expenses Advertising Vacant Post,2036210,202207
Rother District Council,30/09/2022,091HOUSING,Housing and Community Services,20200,Housing Needs - HB (Housing Benefit),D2514,Accommodation Costs,225.00,Investco Properties Ltd,Accommodation Costs,2036147,202207
Rother District Council,30/09/2022,091HOUSING,Housing and Community Services,20200,Housing Needs - HB (Housing Benefit),D2514,Accommodation Costs,"1,350.00",Investco Properties Ltd,Accommodation Costs,2036147,202207
Rother District Council,30/09/2022,091HOUSING,Housing and Community Services,20137,Car Parks,D2513,Hired and Contracted services,"2,071.24",Jade Security Services Ltd,Hired and contracted services - Cash Security Fees-Car Parks,2036234,202207
Rother District Council,30/09/2022,091HOUSING,Housing and Community Services,20329,Rough Sleeping Initiative,D2514,Accommodation Costs,"1,470.00",LESSHOMELESS LTD,Accommodation Costs,2036049,202207
Rother District Council,30/09/2022,091HOUSING,Housing and Community Services,20200,Housing Needs - HB (Housing Benefit),D2513,Hired and Contracted services,"2,625.00",LHS Locata (Housing Services) Ltd,Hired and Contracted services,2036681,202208
Rother District Council,30/09/2022,091HOUSING,Housing and Community Services,20204,Housing Administration Account,D2513,Hired and Contracted services,"1,000.00",LHS Locata (Housing Services) Ltd,Hired and contracted services - Service fee paid,2036448,202208
Rother District Council,30/09/2022,101RESOURCES,Resources,20239,Computer Services,D2635,Computer Licences,100.00,LHS Locata (Housing Services) Ltd,Computer Licences - Computer Licence Renewal,2036682,202209
Rother District Council,30/09/2022,091HOUSING,Housing and Community Services,20200,Housing Needs - HB (Housing Benefit),D2514,Accommodation Costs,"1,425.00",Lillybank Homes Ltd,Accommodation Costs,2035956,202207
Rother District Council,30/09/2022,091HOUSING,Housing and Community Services,20200,Housing Needs - HB (Housing Benefit),D2514,Accommodation Costs,"2,057.13",Lillybank Homes Ltd,Accommodation Costs,2035956,202207
Rother District Council,30/09/2022,091HOUSING,Housing and Community Services,20200,Housing Needs - HB (Housing Benefit),D2514,Accommodation Costs,"1,770.00",Lillybank Homes Ltd,Accommodation Costs,2035956,202207
Rother District Council,30/09/2022,091HOUSING,Housing and Community Services,20200,Housing Needs - HB (Housing Benefit),D2514,Accommodation Costs,"2,175.00",Lillybank Homes Ltd,Accommodation Costs,2035956,202207
Rother District Council,30/09/2022,091HOUSING,Housing and Community Services,20200,Housing Needs - HB (Housing Benefit),D2514,Accommodation Costs,"1,950.00",Lillybank Homes Ltd,Accommodation Costs,2035956,202207
Rother District Council,30/09/2022,091HOUSING,Housing and Community Services,20200,Housing Needs - HB (Housing Benefit),D2514,Accommodation Costs,"1,950.00",Lillybank Homes Ltd,Accommodation Costs,2035956,202207
Rother District Council,30/09/2022,091HOUSING,Housing and Community Services,20200,Housing Needs - HB (Housing Benefit),D2514,Accommodation Costs,"2,057.13",Lillybank Homes Ltd,Accommodation Costs,2035956,202207
Rother District Council,30/09/2022,091HOUSING,Housing and Community Services,20200,Housing Needs - HB (Housing Benefit),D2514,Accommodation Costs,"1,575.00",Lillybank Homes Ltd,Accommodation Costs,2035956,202207
Rother District Council,30/09/2022,091HOUSING,Housing and Community Services,20200,Housing Needs - HB (Housing Benefit),D2514,Accommodation Costs,"1,770.00",Lillybank Homes Ltd,Accommodation Costs,2035956,202207
Rother District Council,30/09/2022,091HOUSING,Housing and Community Services,20200,Housing Needs - HB (Housing Benefit),D2514,Accommodation Costs,"2,057.13",Lillybank Homes Ltd,Accommodation Costs,2035956,202207
Rother District Council,30/09/2022,091HOUSING,Housing and Community Services,20200,Housing Needs - HB (Housing Benefit),D2514,Accommodation Costs,"1,950.00",Lillybank Homes Ltd,Accommodation Costs,2035956,202207
Rother District Council,30/09/2022,091HOUSING,Housing and Community Services,20200,Housing Needs - HB (Housing Benefit),D2514,Accommodation Costs,"2,057.13",Lillybank Homes Ltd,Accommodation Costs,2035956,202207
Rother District Council,30/09/2022,091HOUSING,Housing and Community Services,20145,Maintenance Services,D2513,Hired and Contracted services,400.65,Martello Plant Hire Ltd,Hired and contracted services - Service fee paid,2036321,202207
Rother District Council,30/09/2022,091HOUSING,Housing and Community Services,20108,Bexhill Promenade & Foreshore,D2513,Hired and Contracted services,100.00,Meridian Toilet Hire,Hired and contracted services - Service fee paid,2036326,202207
Rother District Council,30/09/2022,081ACQUISIT,"Acquisitions, Transformation and Regeneration",20275,Development of Council Owned Sites (Non-capital),D2509,Consultants and Other Services,"3,500.00",MH Architects Ltd,Consultants and other services - Consultants Fees,2036415,202208
Rother District Council,30/09/2022,101RESOURCES,Resources,20240,Printing Services,E2302,Third party payment private contractors,590.00,Morgana Systems Limited,Third party payment private contractors - Maintenance Contracts-Printing,2036430,202207
Rother District Council,30/09/2022,091HOUSING,Housing and Community Services,20200,Housing Needs - HB (Housing Benefit),D2513,Hired and Contracted services,75.00,NowMedical,,2036594,202208
Rother District Council,30/09/2022,091HOUSING,Housing and Community Services,20200,Housing Needs - HB (Housing Benefit),D2513,Hired and Contracted services,35.00,NowMedical,,2036595,202208
Rother District Council,30/09/2022,999NOREPORT,Not included in reporting,70737,Capital � Barnhorn Green,N1004,Architects & Consultant Fees,"3,000.00",Potter Raper Ltd,Architects & Consultant Fees Capital-Architect and Conslt Fees,2036179,202207
Rother District Council,30/09/2022,091HOUSING,Housing and Community Services,20145,Maintenance Services,D2513,Hired and Contracted services,365.00,R French and  Son Ltd,Hired and contracted services - Hire of Skip,2036599,202208
Rother District Council,30/09/2022,999NOREPORT,Not included in reporting,70737,Capital � Barnhorn Green,N1004,Architects & Consultant Fees,"1,280.00",R H Partnership Architects Ltd,Architects & Consultant Fees Capital-Architect and Conslt Fees,2036255,202207
Rother District Council,30/09/2022,999NOREPORT,Not included in reporting,70737,Capital � Barnhorn Green,N1004,Architects & Consultant Fees,"3,470.00",R H Partnership Architects Ltd,Architects & Consultant Fees Capital-Architect and Conslt Fees,2036257,202207
Rother District Council,30/09/2022,999NOREPORT,Not included in reporting,70737,Capital � Barnhorn Green,N1004,Architects & Consultant Fees,"1,050.00",R H Partnership Architects Ltd,Architects & Consultant Fees Capital-Architect and Conslt Fees,2036254,202207
Rother District Council,30/09/2022,999NOREPORT,Not included in reporting,70737,Capital � Barnhorn Green,N1004,Architects & Consultant Fees,"48,725.00",R H Partnership Architects Ltd,Architects & Consultant Fees Capital-Architect and Conslt Fees,2036256,202207
Rother District Council,30/09/2022,091HOUSING,Housing and Community Services,20137,Car Parks,D1201,Equipment & Materials,880.00,Roadside Technologies Ltd,Equipment & Materials - Car Parks various,2036365,202207
Rother District Council,30/09/2022,999NOREPORT,Not included in reporting,70754,Capital - King Offa Residential Development Scheme,N1004,Architects & Consultant Fees,619.00,Robinson Escott Planning,Architects & Consultant Fees Capital-Architect and Conslt Fees,2036016,202207
Rother District Council,30/09/2022,999NOREPORT,Not included in reporting,70759,Capital - Town Hall Renaissance Project,N1004,Architects & Consultant Fees,"3,000.00",Robinson Low Francis LLP / MGAC LLP,Architects & Consultant Fees Capital-Architect and Conslt Fees,2036440,202207
Rother District Council,30/09/2022,999NOREPORT,Not included in reporting,70759,Capital - Town Hall Renaissance Project,N1004,Architects & Consultant Fees,405.00,Robinson Low Francis LLP / MGAC LLP,Architects & Consultant Fees Capital-Architect and Conslt Fees,2036441,202207
Rother District Council,30/09/2022,999NOREPORT,Not included in reporting,70759,Capital - Town Hall Renaissance Project,N1004,Architects & Consultant Fees,"6,000.00",Robinson Low Francis LLP / MGAC LLP,Architects & Consultant Fees Capital-Architect and Conslt Fees,2036215,202207
Rother District Council,30/09/2022,091HOUSING,Housing and Community Services,20137,Car Parks,B1100,Repairs to Premises,24.36,Saint-Gobain Building Distribution Ltd t/a Jewson,Repairs to Premises - Purchase of Materials - Build Maint,2036680,202208
Rother District Council,30/09/2022,071STRAT,Strategy and Planning,20246,Planning Applications,A1110,Agency Staff,442.56,Sammons Recruitment Ltd,Agency Staff,2036356,202207
Rother District Council,30/09/2022,091HOUSING,Housing and Community Services,20128,Public Conveniences,B2421,Water,716.30,Scottish Water Business Stream Limited,Water - Water Charges,2036105,202207
Rother District Council,30/09/2022,091HOUSING,Housing and Community Services,20128,Public Conveniences,B2422,Sewerage,863.84,Scottish Water Business Stream Limited,Sewerage - Sewerage Charges,2036105,202207
Rother District Council,30/09/2022,081ACQUISIT,"Acquisitions, Transformation and Regeneration",20267,Property Investment Strategy - 18-40 Beeching Road ( Land and Buildings),B2422,Sewerage,24.66,Scottish Water Business Stream Limited,Sewerage - Sewerage Charges,2036107,202207
Rother District Council,30/09/2022,081ACQUISIT,"Acquisitions, Transformation and Regeneration",20154,Committee Property Account,B2422,Sewerage,3.65,Scottish Water Business Stream Limited,Sewerage - Sewerage Charges,2036108,202207
Rother District Council,30/09/2022,081ACQUISIT,"Acquisitions, Transformation and Regeneration",20154,Committee Property Account,B2422,Sewerage,3.65,Scottish Water Business Stream Limited,Sewerage - Sewerage Charges,2036108,202207
Rother District Council,30/09/2022,081ACQUISIT,"Acquisitions, Transformation and Regeneration",20154,Committee Property Account,B2422,Sewerage,3.64,Scottish Water Business Stream Limited,Sewerage - Sewerage Charges,2036108,202207
Rother District Council,30/09/2022,091HOUSING,Housing and Community Services,20200,Housing Needs - HB (Housing Benefit),D2514,Accommodation Costs,330.00,Solutions Accommodation Providers Ltd,,2036159,202207
Rother District Council,30/09/2022,091HOUSING,Housing and Community Services,20200,Housing Needs - HB (Housing Benefit),D2514,Accommodation Costs,"1,320.00",Solutions Accommodation Providers Ltd,,2036159,202207
Rother District Council,30/09/2022,091HOUSING,Housing and Community Services,20200,Housing Needs - HB (Housing Benefit),D2514,Accommodation Costs,420.00,Solutions Accommodation Providers Ltd,,2036158,202207
Rother District Council,30/09/2022,091HOUSING,Housing and Community Services,20200,Housing Needs - HB (Housing Benefit),D2514,Accommodation Costs,"1,680.00",Solutions Accommodation Providers Ltd,,2036158,202207
Rother District Council,30/09/2022,091HOUSING,Housing and Community Services,20200,Housing Needs - HB (Housing Benefit),D2514,Accommodation Costs,360.00,Solutions Accommodation Providers Ltd,,2036157,202207
Rother District Council,30/09/2022,091HOUSING,Housing and Community Services,20200,Housing Needs - HB (Housing Benefit),D2514,Accommodation Costs,"1,440.00",Solutions Accommodation Providers Ltd,,2036157,202207
Rother District Council,30/09/2022,091HOUSING,Housing and Community Services,20128,Public Conveniences,B1100,Repairs to Premises,693.96,Specialist Hygiene Services Ltd,Repairs to Premises - Drainage Clearance,2036333,202207
Rother District Council,30/09/2022,091HOUSING,Housing and Community Services,20128,Public Conveniences,B1100,Repairs to Premises,"1,383.78",Specialist Hygiene Services Ltd,Repairs to Premises - Public Conveniences - Various repairs,2036333,202207
Rother District Council,30/09/2022,091HOUSING,Housing and Community Services,20128,Public Conveniences,D1201,Equipment & Materials,356.04,Specialist Hygiene Services Ltd,Equipment & Materials - PCs Equipment,2036320,202207
Rother District Council,30/09/2022,999NOREPORT,Not included in reporting,70736,Capital - 18-40 Beeching Close Refurbishment,N1004,Architects & Consultant Fees,"4,995.00",The Lawson Partnership Ltd t/a Lawson Queay,Architects & Consultant Fees Capital-Architect and Conslt Fees,2036003,202207
Rother District Council,30/09/2022,091HOUSING,Housing and Community Services,20329,Rough Sleeping Initiative,D2513,Hired and Contracted services,35.90,Town Taxis,,2036443,202207
Rother District Council,30/09/2022,091HOUSING,Housing and Community Services,20114,Bexhill Parks & Open Spaces,B1100,Repairs to Premises,3.08,Trade UK Account (Screwfix & B&Q),Repairs to Premises - Purchase of Materials - Build Maint,2036100,202207
Rother District Council,30/09/2022,091HOUSING,Housing and Community Services,20114,Bexhill Parks & Open Spaces,B1100,Repairs to Premises,69.83,Trade UK Account (Screwfix & B&Q),Repairs to Premises - Purchase of Materials - Build Maint,2036101,202207
Rother District Council,30/09/2022,091HOUSING,Housing and Community Services,20200,Housing Needs - HB (Housing Benefit),D2514,Accommodation Costs,262.50,Union Property MGMT Ltd,,2035968,202207
Rother District Council,01/10/2022,091HOUSING,Housing and Community Services,20102,Rother Museum Services,D2621,Telephones,19.48,Daisy Communications PLC,Telephones,2036413,202208
Rother District Council,01/10/2022,091HOUSING,Housing and Community Services,20107,Camber Beach & Foreshore,D2621,Telephones,41.00,Daisy Communications PLC,Telephones,2036413,202208
Rother District Council,01/10/2022,031RESOURCES,Chief Executive & Corporate Core,20180,Emergency Planning,D2621,Telephones,19.48,Daisy Communications PLC,Telephones,2036413,202208
Rother District Council,01/10/2022,101RESOURCES,Resources,20239,Computer Services,D2621,Telephones,38.96,Daisy Communications PLC,Telephones,2036413,202208
Rother District Council,01/10/2022,101RESOURCES,Resources,20242,Communications-Phones,D2621,Telephones,97.37,Daisy Communications PLC,Telephones,2036413,202208
Rother District Council,01/10/2022,041ENVIRON,Environmental Services,32134,EH Pollution R + W Partnership,D2621,Telephones,19.48,Daisy Communications PLC,Telephones,2036413,202208
Rother District Council,01/10/2022,081ACQUISIT,"Acquisitions, Transformation and Regeneration",20103,De La Warr Pav-Client,D2923,Grants made,"119,250.00",De La Warr Pavilion Charitable Trust,Grants made - Revenue Grants,2035848,202207
Rother District Council,01/10/2022,999NOREPORT,Not included in reporting,70702,Capital - De La Warr Pavillion - Capital Grant,N1011,Capital Grants,"14,424.25",De La Warr Pavilion Charitable Trust,Capital Grants - Community Grants Scheme,2035848,202207
Rother District Council,01/10/2022,101RESOURCES,Resources,20242,Communications-Phones,D2621,Telephones,878.65,GCI National Business / Nasstar,Telephones - KCOM Smartnumber Charges,2036434,202208
Rother District Council,01/10/2022,101RESOURCES,Resources,20242,Communications-Phones,D2621,Telephones,26.00,GCI National Business / Nasstar,Telephones - KCOM Smartnumber Charges,2036625,202209
Rother District Council,01/10/2022,101RESOURCES,Resources,20242,Communications-Phones,D2621,Telephones,"9,916.14",GCI National Business / Nasstar,Telephones - KCOM Smartnumber Charges,2036435,202208
Rother District Council,01/10/2022,091HOUSING,Housing and Community Services,20200,Housing Needs - HB (Housing Benefit),D2514,Accommodation Costs,"2,025.00",Imperial Portfolios Ltd,Accommodation Costs,2036053,202207
Rother District Council,01/10/2022,101RESOURCES,Resources,20239,Computer Services,D2513,Hired and Contracted services,597.63,MLL Telecom Ltd,Hired and contracted services - Service fee paid,2035962,202207
Rother District Council,01/10/2022,081ACQUISIT,"Acquisitions, Transformation and Regeneration",20151,Udimore Workshops,B2311,Rents and service charges,183.75,REDACTED PERSONAL DATA,Rents and Service charges - Part of Udimore unit3,2035846,202207
Rother District Council,01/10/2022,091HOUSING,Housing and Community Services,20200,Housing Needs - HB (Housing Benefit),D2514,Accommodation Costs,"8,333.33",Paramount Independent Property Services LLP,,2036054,202207
Rother District Council,01/10/2022,091HOUSING,Housing and Community Services,20137,Car Parks,D2513,Hired and Contracted services,"4,252.09",Park Now Ltd,Hired and contracted services - Car Parks-RingGo service charges,2036623,202208
Rother District Council,01/10/2022,101RESOURCES,Resources,20219,Support To Elect Bodies/Grant,D2923,Grants made,"21,250.00",Rother District Citizens Advice Bureau,Grants made - Bexhill and Rother CAB,2035845,202207
Rother District Council,01/10/2022,091HOUSING,Housing and Community Services,20128,Public Conveniences,B2611,Contract cleaning,977.16,Specialist Hygiene Services Ltd,Contract cleaning - Public Conveniences Cleaning Servic,2036319,202207
Rother District Council,01/10/2022,091HOUSING,Housing and Community Services,20128,Public Conveniences,B2611,Contract cleaning,864.35,Specialist Hygiene Services Ltd,Contract cleaning - Public Conveniences Cleaning Servic,2036319,202207
Rother District Council,01/10/2022,091HOUSING,Housing and Community Services,20128,Public Conveniences,B2611,Contract cleaning,228.06,Specialist Hygiene Services Ltd,Contract cleaning - Public Conveniences Cleaning Servic,2036319,202207
Rother District Council,01/10/2022,091HOUSING,Housing and Community Services,20128,Public Conveniences,B2611,Contract cleaning,814.25,Specialist Hygiene Services Ltd,Contract cleaning - Public Conveniences Cleaning Servic,2036319,202207
Rother District Council,01/10/2022,091HOUSING,Housing and Community Services,20128,Public Conveniences,B2611,Contract cleaning,586.30,Specialist Hygiene Services Ltd,Contract cleaning - Public Conveniences Cleaning Servic,2036319,202207
Rother District Council,01/10/2022,091HOUSING,Housing and Community Services,20128,Public Conveniences,B2611,Contract cleaning,977.16,Specialist Hygiene Services Ltd,Contract cleaning - Public Conveniences Cleaning Servic,2036319,202207
Rother District Council,01/10/2022,091HOUSING,Housing and Community Services,20128,Public Conveniences,B2611,Contract cleaning,586.30,Specialist Hygiene Services Ltd,Contract cleaning - Public Conveniences Cleaning Servic,2036319,202207
Rother District Council,01/10/2022,091HOUSING,Housing and Community Services,20128,Public Conveniences,B2611,Contract cleaning,716.48,Specialist Hygiene Services Ltd,Contract cleaning - Public Conveniences Cleaning Servic,2036319,202207
Rother District Council,01/10/2022,091HOUSING,Housing and Community Services,20128,Public Conveniences,B2611,Contract cleaning,325.72,Specialist Hygiene Services Ltd,Contract cleaning - Public Conveniences Cleaning Servic,2036319,202207
Rother District Council,01/10/2022,091HOUSING,Housing and Community Services,20128,Public Conveniences,B2611,Contract cleaning,390.87,Specialist Hygiene Services Ltd,Contract cleaning - Public Conveniences Cleaning Servic,2036319,202207
Rother District Council,01/10/2022,091HOUSING,Housing and Community Services,20128,Public Conveniences,B2611,Contract cleaning,683.97,Specialist Hygiene Services Ltd,Contract cleaning - Public Conveniences Cleaning Servic,2036319,202207
Rother District Council,01/10/2022,091HOUSING,Housing and Community Services,20128,Public Conveniences,B2611,Contract cleaning,618.83,Specialist Hygiene Services Ltd,Contract cleaning - Public Conveniences Cleaning Servic,2036319,202207
Rother District Council,01/10/2022,091HOUSING,Housing and Community Services,20128,Public Conveniences,B2611,Contract cleaning,293.10,Specialist Hygiene Services Ltd,Contract cleaning - Public Conveniences Cleaning Servic,2036319,202207
Rother District Council,01/10/2022,091HOUSING,Housing and Community Services,20128,Public Conveniences,B2611,Contract cleaning,651.34,Specialist Hygiene Services Ltd,Contract cleaning - Public Conveniences Cleaning Servic,2036319,202207
Rother District Council,01/10/2022,091HOUSING,Housing and Community Services,20128,Public Conveniences,B2611,Contract cleaning,358.25,Specialist Hygiene Services Ltd,Contract cleaning - Public Conveniences Cleaning Servic,2036319,202207
Rother District Council,01/10/2022,091HOUSING,Housing and Community Services,20128,Public Conveniences,B2611,Contract cleaning,586.30,Specialist Hygiene Services Ltd,Contract cleaning - Public Conveniences Cleaning Servic,2036319,202207
Rother District Council,01/10/2022,091HOUSING,Housing and Community Services,20128,Public Conveniences,B2611,Contract cleaning,863.74,Specialist Hygiene Services Ltd,Contract cleaning - Public Conveniences Cleaning Servic,2036319,202207
Rother District Council,01/10/2022,091HOUSING,Housing and Community Services,20128,Public Conveniences,B2611,Contract cleaning,"1,413.89",Specialist Hygiene Services Ltd,Contract cleaning - Public Conveniences Cleaning Servic,2036319,202207
Rother District Council,01/10/2022,091HOUSING,Housing and Community Services,20128,Public Conveniences,B2611,Contract cleaning,550.04,Specialist Hygiene Services Ltd,Contract cleaning - Public Conveniences Cleaning Servic,2036319,202207
Rother District Council,01/10/2022,091HOUSING,Housing and Community Services,20128,Public Conveniences,B2611,Contract cleaning,"1,079.58",Specialist Hygiene Services Ltd,Contract cleaning - Public Conveniences Cleaning Servic,2036319,202207
Rother District Council,01/10/2022,091HOUSING,Housing and Community Services,20128,Public Conveniences,B2611,Contract cleaning,"1,432.67",Specialist Hygiene Services Ltd,Contract cleaning - Public Conveniences Cleaning Servic,2036319,202207
Rother District Council,01/10/2022,091HOUSING,Housing and Community Services,20128,Public Conveniences,B2611,Contract cleaning,"1,432.67",Specialist Hygiene Services Ltd,Contract cleaning - Public Conveniences Cleaning Servic,2036319,202207
Rother District Council,01/10/2022,091HOUSING,Housing and Community Services,20128,Public Conveniences,B2611,Contract cleaning,"2,036.86",Specialist Hygiene Services Ltd,Contract cleaning - Public Conveniences Cleaning Servic,2036319,202207
Rother District Council,01/10/2022,091HOUSING,Housing and Community Services,20128,Public Conveniences,B2611,Contract cleaning,450.96,Specialist Hygiene Services Ltd,Contract cleaning - Public Conveniences Cleaning Servic,2036319,202207
Rother District Council,01/10/2022,091HOUSING,Housing and Community Services,20128,Public Conveniences,B2611,Contract cleaning,375.81,Specialist Hygiene Services Ltd,Contract cleaning - Public Conveniences Cleaning Servic,2036319,202207
Rother District Council,01/10/2022,091HOUSING,Housing and Community Services,20128,Public Conveniences,B2611,Contract cleaning,413.39,Specialist Hygiene Services Ltd,Contract cleaning - Public Conveniences Cleaning Servic,2036319,202207
Rother District Council,01/10/2022,091HOUSING,Housing and Community Services,20128,Public Conveniences,B2611,Contract cleaning,130.68,Specialist Hygiene Services Ltd,Contract cleaning - Public Conveniences Cleaning Servic,2036319,202207
Rother District Council,01/10/2022,091HOUSING,Housing and Community Services,20128,Public Conveniences,B2611,Contract cleaning,196.04,Specialist Hygiene Services Ltd,Contract cleaning - Public Conveniences Cleaning Servic,2036319,202207
Rother District Council,01/10/2022,101RESOURCES,Resources,20242,Communications-Phones,D2622,Mobile Phones,780.78,Telefonica UK Ltd,Mobile Phones - Purchase of mobile phones,2036421,202208
Rother District Council,01/10/2022,031RESOURCES,Chief Executive & Corporate Core,20162,Electoral Registration,D1203,Books And Publications,314.00,Thomson Reuters Ltd,Books And Publications - Miscellaneous Legal Reference Books,2036327,202207
Rother District Council,02/10/2022,091HOUSING,Housing and Community Services,20200,Housing Needs - HB (Housing Benefit),D2513,Hired and Contracted services,100.00,1066 Holidays Ltd,Hired and Contracted services,2036047,202207
Rother District Council,02/10/2022,091HOUSING,Housing and Community Services,20200,Housing Needs - HB (Housing Benefit),D2514,Accommodation Costs,350.00,Temporary Accommodation Providers Ltd,Accommodation Costs,2035972,202207
Rother District Council,02/10/2022,091HOUSING,Housing and Community Services,20200,Housing Needs - HB (Housing Benefit),D2514,Accommodation Costs,385.00,Temporary Accommodation Providers Ltd,Accommodation Costs,2035972,202207
Rother District Council,02/10/2022,091HOUSING,Housing and Community Services,20329,Rough Sleeping Initiative,D2514,Accommodation Costs,350.00,Temporary Accommodation Providers Ltd,Accommodation Costs,2035972,202207
Rother District Council,02/10/2022,091HOUSING,Housing and Community Services,20329,Rough Sleeping Initiative,D2514,Accommodation Costs,385.00,Temporary Accommodation Providers Ltd,Accommodation Costs,2035972,202207
Rother District Council,02/10/2022,091HOUSING,Housing and Community Services,20329,Rough Sleeping Initiative,D2514,Accommodation Costs,385.00,Temporary Accommodation Providers Ltd,Accommodation Costs,2035972,202207
Rother District Council,02/10/2022,999NOREPORT,Not included in reporting,70751,Capital - Temporary Accommodation,N1005,Other fees,60.00,A&A Cleaning & Property Services Ltd,Other Fees - Capital exp Std VAT,2036168,202207
Rother District Council,02/10/2022,091HOUSING,Housing and Community Services,20200,Housing Needs - HB (Housing Benefit),D2514,Accommodation Costs,413.00,BNM Parkstone LLP T/A Fourways Residential,Accommodation Costs,2036170,202207
Rother District Council,02/10/2022,091HOUSING,Housing and Community Services,20137,Car Parks,D1201,Equipment & Materials,95.00,Roadside Technologies Ltd,Equipment & Materials - Car Parks various,2036841,202208
Rother District Council,02/10/2022,091HOUSING,Housing and Community Services,20109,Sports Development,D2923,Grants made,195.00,REDACTED PERSONAL DATA,Grants made - Sports Development-Active Rother,2036135,202207
Rother District Council,03/10/2022,091HOUSING,Housing and Community Services,20200,Housing Needs - HB (Housing Benefit),D2508,Removals and Storage,100.00,1066 Removal Services,Removals and Storage,2036006,202207
Rother District Council,03/10/2022,091HOUSING,Housing and Community Services,20200,Housing Needs - HB (Housing Benefit),D2508,Removals and Storage,170.00,1066 Removal Services,Removals and Storage,2036010,202207
Rother District Council,03/10/2022,091HOUSING,Housing and Community Services,20200,Housing Needs - HB (Housing Benefit),D2508,Removals and Storage,170.00,1066 Removal Services,Removals and Storage,2036011,202207
Rother District Council,03/10/2022,091HOUSING,Housing and Community Services,20200,Housing Needs - HB (Housing Benefit),D2514,Accommodation Costs,415.00,47-48 Havelock Road Ltd,Accommodation Costs,2035955,202207
Rother District Council,03/10/2022,031RESOURCES,Chief Executive & Corporate Core,20173,Administrative Offices - Town Hall,B2611,Contract cleaning,417.00,Abacus Main Ltd,Contract cleaning - Office Cleaning,2036436,202207
Rother District Council,03/10/2022,091HOUSING,Housing and Community Services,20114,Bexhill Parks & Open Spaces,B1100,Repairs to Premises,293.48,Alfa Electric Ltd,Repairs to Premises - Repairs - Electrical Works,2037299,202209
Rother District Council,03/10/2022,101RESOURCES,Resources,20241,Stationery,D2420,General office supplies (Stationery purchased from ext suppliers),18.32,Banner Group Ltd,General office supplies - Stationery (Stationery Services to buy ONLY),2036245,202207
Rother District Council,03/10/2022,091HOUSING,Housing and Community Services,20200,Housing Needs - HB (Housing Benefit),D2508,Removals and Storage,118.00,Chapmans of Hastings,Removals and Storage,2036142,202207
Rother District Council,03/10/2022,091HOUSING,Housing and Community Services,20200,Housing Needs - HB (Housing Benefit),D2508,Removals and Storage,100.00,Chapmans of Hastings,Removals and Storage,2036156,202207
Rother District Council,03/10/2022,091HOUSING,Housing and Community Services,20200,Housing Needs - HB (Housing Benefit),D2508,Removals and Storage,140.00,Chapmans of Hastings,Removals and Storage,2036136,202207
Rother District Council,03/10/2022,091HOUSING,Housing and Community Services,20200,Housing Needs - HB (Housing Benefit),D2508,Removals and Storage,160.00,Chapmans of Hastings,Removals and Storage,2036143,202207
Rother District Council,03/10/2022,091HOUSING,Housing and Community Services,20200,Housing Needs - HB (Housing Benefit),D2508,Removals and Storage,100.00,Chapmans of Hastings,Removals and Storage,2036144,202207
Rother District Council,03/10/2022,091HOUSING,Housing and Community Services,20200,Housing Needs - HB (Housing Benefit),D2514,Accommodation Costs,390.00,Coast Holiday Lettings Ltd,Accommodation Costs,2035954,202207
Rother District Council,03/10/2022,091HOUSING,Housing and Community Services,20200,Housing Needs - HB (Housing Benefit),D2514,Accommodation Costs,390.00,Coast Holiday Lettings Ltd,Accommodation Costs,2035954,202207
Rother District Council,03/10/2022,091HOUSING,Housing and Community Services,20200,Housing Needs - HB (Housing Benefit),D2514,Accommodation Costs,400.00,Dale Saunders (Holdings) Ltd,Accommodation Costs,2036055,202207
Rother District Council,03/10/2022,091HOUSING,Housing and Community Services,20200,Housing Needs - HB (Housing Benefit),D2514,Accommodation Costs,400.00,Dale Saunders (Holdings) Ltd,Accommodation Costs,2036055,202207
Rother District Council,03/10/2022,091HOUSING,Housing and Community Services,20200,Housing Needs - HB (Housing Benefit),D2514,Accommodation Costs,228.57,Dale Saunders (Holdings) Ltd,Accommodation Costs,2036055,202207
Rother District Council,03/10/2022,091HOUSING,Housing and Community Services,20200,Housing Needs - HB (Housing Benefit),D2514,Accommodation Costs,400.00,Dale Saunders (Holdings) Ltd,Accommodation Costs,2036055,202207
Rother District Council,03/10/2022,081ACQUISIT,"Acquisitions, Transformation and Regeneration",20153,"Elva Business Centre, Bexhill",E2302,Third party payment private contractors,127.40,J M Waste Management Limited,Third party payment private contractors - Waste Collection Contract Variable cost to RDC,2036612,202208
Rother District Council,03/10/2022,091HOUSING,Housing and Community Services,20125,Coast Protection,E2302,Third party payment private contractors,520.00,REDACTED PERSONAL DATA,Third party payment private contractors - Fairlight Compressor Maintenance Contract,2035971,202207
Rother District Council,03/10/2022,091HOUSING,Housing and Community Services,20206,UK Resettlement (Syrians),D2513,Hired and Contracted services,135.00,Milburn Psychology Practice,Hired and contracted services - Syrian Misc,2036281,202207
Rother District Council,03/10/2022,091HOUSING,Housing and Community Services,20200,Housing Needs - HB (Housing Benefit),D2514,Accommodation Costs,440.00,PADA Hanlon Ltd,,2035964,202207
Rother District Council,03/10/2022,091HOUSING,Housing and Community Services,20200,Housing Needs - HB (Housing Benefit),D2514,Accommodation Costs,390.00,PADA Hanlon Ltd,,2035964,202207
Rother District Council,03/10/2022,091HOUSING,Housing and Community Services,20200,Housing Needs - HB (Housing Benefit),D2514,Accommodation Costs,420.00,PADA Hanlon Ltd,,2035964,202207
Rother District Council,03/10/2022,091HOUSING,Housing and Community Services,20200,Housing Needs - HB (Housing Benefit),D2514,Accommodation Costs,315.00,PADA Hanlon Ltd,,2035964,202207
Rother District Council,03/10/2022,091HOUSING,Housing and Community Services,20200,Housing Needs - HB (Housing Benefit),D2514,Accommodation Costs,435.00,Roost People Ltd,,2035967,202207
Rother District Council,03/10/2022,091HOUSING,Housing and Community Services,20200,Housing Needs - HB (Housing Benefit),D2514,Accommodation Costs,350.00,Roost People Ltd,,2035967,202207
Rother District Council,03/10/2022,091HOUSING,Housing and Community Services,20200,Housing Needs - HB (Housing Benefit),D2514,Accommodation Costs,315.00,Roost People Ltd,,2035967,202207
Rother District Council,03/10/2022,091HOUSING,Housing and Community Services,20200,Housing Needs - HB (Housing Benefit),D2514,Accommodation Costs,435.00,Roost People Ltd,,2035967,202207
Rother District Council,03/10/2022,091HOUSING,Housing and Community Services,20200,Housing Needs - HB (Housing Benefit),D2514,Accommodation Costs,315.00,Roost People Ltd,,2035967,202207
Rother District Council,03/10/2022,091HOUSING,Housing and Community Services,20200,Housing Needs - HB (Housing Benefit),D2514,Accommodation Costs,350.00,Roost People Ltd,,2035967,202207
Rother District Council,03/10/2022,091HOUSING,Housing and Community Services,20200,Housing Needs - HB (Housing Benefit),D2514,Accommodation Costs,390.00,Roost People Ltd,,2035967,202207
Rother District Council,03/10/2022,091HOUSING,Housing and Community Services,20200,Housing Needs - HB (Housing Benefit),D2514,Accommodation Costs,390.00,Roost People Ltd,,2035967,202207
Rother District Council,03/10/2022,091HOUSING,Housing and Community Services,20200,Housing Needs - HB (Housing Benefit),D2514,Accommodation Costs,420.00,Roost People Ltd,,2035967,202207
Rother District Council,03/10/2022,091HOUSING,Housing and Community Services,20200,Housing Needs - HB (Housing Benefit),D2514,Accommodation Costs,390.00,Roost People Ltd,,2035967,202207
Rother District Council,03/10/2022,091HOUSING,Housing and Community Services,20200,Housing Needs - HB (Housing Benefit),D2514,Accommodation Costs,420.00,Roost People Ltd,,2035967,202207
Rother District Council,03/10/2022,091HOUSING,Housing and Community Services,20200,Housing Needs - HB (Housing Benefit),D2514,Accommodation Costs,390.00,Roost People Ltd,,2035967,202207
Rother District Council,03/10/2022,091HOUSING,Housing and Community Services,20200,Housing Needs - HB (Housing Benefit),D2514,Accommodation Costs,420.00,Roost People Ltd,,2035967,202207
Rother District Council,03/10/2022,091HOUSING,Housing and Community Services,20200,Housing Needs - HB (Housing Benefit),D2514,Accommodation Costs,390.00,Roost People Ltd,,2035967,202207
Rother District Council,03/10/2022,091HOUSING,Housing and Community Services,20200,Housing Needs - HB (Housing Benefit),D2514,Accommodation Costs,390.00,Roost People Ltd,,2035967,202207
Rother District Council,03/10/2022,091HOUSING,Housing and Community Services,20329,Rough Sleeping Initiative,D2514,Accommodation Costs,135.00,Roost People Ltd,,2035967,202207
Rother District Council,03/10/2022,091HOUSING,Housing and Community Services,20200,Housing Needs - HB (Housing Benefit),D2514,Accommodation Costs,435.00,Roost People Ltd,,2035967,202207
Rother District Council,03/10/2022,091HOUSING,Housing and Community Services,20200,Housing Needs - HB (Housing Benefit),D2514,Accommodation Costs,390.00,Roost People Ltd,,2035967,202207
Rother District Council,03/10/2022,091HOUSING,Housing and Community Services,20200,Housing Needs - HB (Housing Benefit),D2514,Accommodation Costs,390.00,Roost People Ltd,,2035967,202207
Rother District Council,03/10/2022,091HOUSING,Housing and Community Services,20200,Housing Needs - HB (Housing Benefit),D2514,Accommodation Costs,420.00,Roost People Ltd,,2035967,202207
Rother District Council,03/10/2022,091HOUSING,Housing and Community Services,20200,Housing Needs - HB (Housing Benefit),D2514,Accommodation Costs,390.00,Roost People Ltd,,2035967,202207
Rother District Council,03/10/2022,091HOUSING,Housing and Community Services,20200,Housing Needs - HB (Housing Benefit),D2514,Accommodation Costs,390.00,Roost People Ltd,,2035967,202207
Rother District Council,03/10/2022,091HOUSING,Housing and Community Services,20200,Housing Needs - HB (Housing Benefit),D2514,Accommodation Costs,390.00,Roost People Ltd,,2035967,202207
Rother District Council,03/10/2022,091HOUSING,Housing and Community Services,20200,Housing Needs - HB (Housing Benefit),D2514,Accommodation Costs,360.00,Roost People Ltd,,2035967,202207
Rother District Council,03/10/2022,091HOUSING,Housing and Community Services,20200,Housing Needs - HB (Housing Benefit),D2514,Accommodation Costs,390.00,Roost People Ltd,,2035967,202207
Rother District Council,03/10/2022,091HOUSING,Housing and Community Services,20200,Housing Needs - HB (Housing Benefit),D2514,Accommodation Costs,315.00,Roost People Ltd,,2035967,202207
Rother District Council,03/10/2022,091HOUSING,Housing and Community Services,20200,Housing Needs - HB (Housing Benefit),D2514,Accommodation Costs,390.00,Roost People Ltd,,2035967,202207
Rother District Council,03/10/2022,091HOUSING,Housing and Community Services,20200,Housing Needs - HB (Housing Benefit),D2514,Accommodation Costs,390.00,Roost People Ltd,,2035967,202207
Rother District Council,03/10/2022,091HOUSING,Housing and Community Services,20200,Housing Needs - HB (Housing Benefit),D2514,Accommodation Costs,390.00,Roost People Ltd,,2035967,202207
Rother District Council,03/10/2022,091HOUSING,Housing and Community Services,20114,Bexhill Parks & Open Spaces,B1100,Repairs to Premises,17.64,Saint-Gobain Building Distribution Ltd t/a Jewson,Repairs to Premises - Purchase of Materials - Build Maint,2036686,202208
Rother District Council,03/10/2022,091HOUSING,Housing and Community Services,20123,Cemeteries,B1100,Repairs to Premises,7.92,Saint-Gobain Building Distribution Ltd t/a Jewson,Repairs to Premises - Purchase of Materials - Build Maint,2036685,202208
Rother District Council,03/10/2022,091HOUSING,Housing and Community Services,20114,Bexhill Parks & Open Spaces,B1100,Repairs to Premises,148.50,Saint-Gobain Building Distribution Ltd t/a Jewson,Repairs to Premises - Purchase of Materials - Build Maint,2036684,202208
Rother District Council,03/10/2022,091HOUSING,Housing and Community Services,20115,Rye Area Parks & Gardens,B1100,Repairs to Premises,35.36,Saint-Gobain Building Distribution Ltd t/a Jewson,Repairs to Premises - Purchase of Materials - Build Maint,2036683,202208
Rother District Council,03/10/2022,091HOUSING,Housing and Community Services,20200,Housing Needs - HB (Housing Benefit),D2514,Accommodation Costs,455.00,Savoy Court Hotel Ltd,,2036031,202207
Rother District Council,03/10/2022,091HOUSING,Housing and Community Services,20200,Housing Needs - HB (Housing Benefit),D2514,Accommodation Costs,532.00,Savoy Court Hotel Ltd,,2036031,202207
Rother District Council,03/10/2022,091HOUSING,Housing and Community Services,20200,Housing Needs - HB (Housing Benefit),D2514,Accommodation Costs,133.00,Savoy Court Hotel Ltd,,2036031,202207
Rother District Council,03/10/2022,091HOUSING,Housing and Community Services,20200,Housing Needs - HB (Housing Benefit),D2514,Accommodation Costs,420.00,Savoy Court Hotel Ltd,,2036031,202207
Rother District Council,03/10/2022,091HOUSING,Housing and Community Services,20200,Housing Needs - HB (Housing Benefit),D2514,Accommodation Costs,105.00,Savoy Court Hotel Ltd,,2036031,202207
Rother District Council,03/10/2022,091HOUSING,Housing and Community Services,20200,Housing Needs - HB (Housing Benefit),D2514,Accommodation Costs,364.00,Savoy Court Hotel Ltd,,2036031,202207
Rother District Council,03/10/2022,091HOUSING,Housing and Community Services,20200,Housing Needs - HB (Housing Benefit),D2514,Accommodation Costs,91.00,Savoy Court Hotel Ltd,,2036031,202207
Rother District Council,03/10/2022,091HOUSING,Housing and Community Services,20200,Housing Needs - HB (Housing Benefit),D2514,Accommodation Costs,420.00,Savoy Court Hotel Ltd,,2036031,202207
Rother District Council,03/10/2022,091HOUSING,Housing and Community Services,20200,Housing Needs - HB (Housing Benefit),D2514,Accommodation Costs,105.00,Savoy Court Hotel Ltd,,2036031,202207
Rother District Council,03/10/2022,091HOUSING,Housing and Community Services,20200,Housing Needs - HB (Housing Benefit),D2514,Accommodation Costs,420.00,Savoy Court Hotel Ltd,,2036031,202207
Rother District Council,03/10/2022,091HOUSING,Housing and Community Services,20200,Housing Needs - HB (Housing Benefit),D2514,Accommodation Costs,105.00,Savoy Court Hotel Ltd,,2036031,202207
Rother District Council,03/10/2022,091HOUSING,Housing and Community Services,20200,Housing Needs - HB (Housing Benefit),D2514,Accommodation Costs,120.00,Savoy Court Hotel Ltd,,2036031,202207
Rother District Council,03/10/2022,091HOUSING,Housing and Community Services,20200,Housing Needs - HB (Housing Benefit),D2514,Accommodation Costs,30.00,Savoy Court Hotel Ltd,,2036031,202207
Rother District Council,03/10/2022,091HOUSING,Housing and Community Services,20200,Housing Needs - HB (Housing Benefit),D2514,Accommodation Costs,364.00,Savoy Court Hotel Ltd,,2036031,202207
Rother District Council,03/10/2022,091HOUSING,Housing and Community Services,20200,Housing Needs - HB (Housing Benefit),D2514,Accommodation Costs,91.00,Savoy Court Hotel Ltd,,2036031,202207
Rother District Council,03/10/2022,091HOUSING,Housing and Community Services,20200,Housing Needs - HB (Housing Benefit),D2514,Accommodation Costs,455.00,Savoy Court Hotel Ltd,,2036031,202207
Rother District Council,03/10/2022,091HOUSING,Housing and Community Services,20200,Housing Needs - HB (Housing Benefit),D2514,Accommodation Costs,336.00,Savoy Court Hotel Ltd,,2036031,202207
Rother District Council,03/10/2022,091HOUSING,Housing and Community Services,20200,Housing Needs - HB (Housing Benefit),D2514,Accommodation Costs,84.00,Savoy Court Hotel Ltd,,2036031,202207
Rother District Council,03/10/2022,091HOUSING,Housing and Community Services,20329,Rough Sleeping Initiative,D2514,Accommodation Costs,252.00,Savoy Court Hotel Ltd,,2036031,202207
Rother District Council,03/10/2022,091HOUSING,Housing and Community Services,20329,Rough Sleeping Initiative,D2514,Accommodation Costs,63.00,Savoy Court Hotel Ltd,,2036031,202207
Rother District Council,03/10/2022,091HOUSING,Housing and Community Services,20200,Housing Needs - HB (Housing Benefit),D2514,Accommodation Costs,420.00,Savoy Court Hotel Ltd,,2036031,202207
Rother District Council,03/10/2022,091HOUSING,Housing and Community Services,20200,Housing Needs - HB (Housing Benefit),D2514,Accommodation Costs,105.00,Savoy Court Hotel Ltd,,2036031,202207
Rother District Council,03/10/2022,091HOUSING,Housing and Community Services,20200,Housing Needs - HB (Housing Benefit),D2514,Accommodation Costs,420.00,Savoy Court Hotel Ltd,,2036031,202207
Rother District Council,03/10/2022,091HOUSING,Housing and Community Services,20200,Housing Needs - HB (Housing Benefit),D2514,Accommodation Costs,105.00,Savoy Court Hotel Ltd,,2036031,202207
Rother District Council,03/10/2022,091HOUSING,Housing and Community Services,20329,Rough Sleeping Initiative,D2514,Accommodation Costs,350.00,Savoy Court Hotel Ltd,,2036031,202207
Rother District Council,03/10/2022,091HOUSING,Housing and Community Services,20329,Rough Sleeping Initiative,D2514,Accommodation Costs,168.00,Savoy Court Hotel Ltd,,2036031,202207
Rother District Council,03/10/2022,091HOUSING,Housing and Community Services,20329,Rough Sleeping Initiative,D2514,Accommodation Costs,42.00,Savoy Court Hotel Ltd,,2036031,202207
Rother District Council,03/10/2022,091HOUSING,Housing and Community Services,20200,Housing Needs - HB (Housing Benefit),D2514,Accommodation Costs,420.00,Savoy Court Hotel Ltd,,2036031,202207
Rother District Council,03/10/2022,091HOUSING,Housing and Community Services,20200,Housing Needs - HB (Housing Benefit),D2514,Accommodation Costs,105.00,Savoy Court Hotel Ltd,,2036031,202207
Rother District Council,03/10/2022,091HOUSING,Housing and Community Services,20200,Housing Needs - HB (Housing Benefit),D2514,Accommodation Costs,252.00,Savoy Court Hotel Ltd,,2036031,202207
Rother District Council,03/10/2022,091HOUSING,Housing and Community Services,20200,Housing Needs - HB (Housing Benefit),D2514,Accommodation Costs,63.00,Savoy Court Hotel Ltd,,2036031,202207
Rother District Council,03/10/2022,091HOUSING,Housing and Community Services,20200,Housing Needs - HB (Housing Benefit),D2514,Accommodation Costs,50.00,Savoy Court Hotel Ltd,,2036031,202207
Rother District Council,03/10/2022,091HOUSING,Housing and Community Services,20200,Housing Needs - HB (Housing Benefit),D2514,Accommodation Costs,240.00,Savoy Court Hotel Ltd,,2036031,202207
Rother District Council,03/10/2022,091HOUSING,Housing and Community Services,20200,Housing Needs - HB (Housing Benefit),D2514,Accommodation Costs,60.00,Savoy Court Hotel Ltd,,2036031,202207
Rother District Council,03/10/2022,091HOUSING,Housing and Community Services,20200,Housing Needs - HB (Housing Benefit),D2514,Accommodation Costs,200.00,Savoy Court Hotel Ltd,,2036031,202207
Rother District Council,03/10/2022,091HOUSING,Housing and Community Services,20200,Housing Needs - HB (Housing Benefit),D2514,Accommodation Costs,504.00,Savoy Court Hotel Ltd,,2036031,202207
Rother District Council,03/10/2022,091HOUSING,Housing and Community Services,20200,Housing Needs - HB (Housing Benefit),D2514,Accommodation Costs,126.00,Savoy Court Hotel Ltd,,2036031,202207
Rother District Council,03/10/2022,091HOUSING,Housing and Community Services,20329,Rough Sleeping Initiative,D2514,Accommodation Costs,350.00,Savoy Court Hotel Ltd,,2036031,202207
Rother District Council,03/10/2022,091HOUSING,Housing and Community Services,20200,Housing Needs - HB (Housing Benefit),D2514,Accommodation Costs,291.20,SDR Living Ltd,,2036282,202207
Rother District Council,03/10/2022,091HOUSING,Housing and Community Services,20200,Housing Needs - HB (Housing Benefit),D2514,Accommodation Costs,72.80,SDR Living Ltd,,2036282,202207
Rother District Council,03/10/2022,091HOUSING,Housing and Community Services,20200,Housing Needs - HB (Housing Benefit),D2514,Accommodation Costs,350.00,SDR Living Ltd,,2036282,202207
Rother District Council,03/10/2022,091HOUSING,Housing and Community Services,20200,Housing Needs - HB (Housing Benefit),D2514,Accommodation Costs,87.50,SDR Living Ltd,,2036282,202207
Rother District Council,03/10/2022,091HOUSING,Housing and Community Services,20200,Housing Needs - HB (Housing Benefit),D2514,Accommodation Costs,204.00,SDR Living Ltd,,2036282,202207
Rother District Council,03/10/2022,091HOUSING,Housing and Community Services,20200,Housing Needs - HB (Housing Benefit),D2514,Accommodation Costs,217.60,SDR Living Ltd,,2036282,202207
Rother District Council,03/10/2022,091HOUSING,Housing and Community Services,20200,Housing Needs - HB (Housing Benefit),D2514,Accommodation Costs,54.40,SDR Living Ltd,,2036282,202207
Rother District Council,03/10/2022,091HOUSING,Housing and Community Services,20200,Housing Needs - HB (Housing Benefit),D2514,Accommodation Costs,364.00,SDR Living Ltd,,2036282,202207
Rother District Council,03/10/2022,091HOUSING,Housing and Community Services,20200,Housing Needs - HB (Housing Benefit),D2514,Accommodation Costs,91.00,SDR Living Ltd,,2036282,202207
Rother District Council,03/10/2022,091HOUSING,Housing and Community Services,20200,Housing Needs - HB (Housing Benefit),D2514,Accommodation Costs,364.00,SDR Living Ltd,,2036282,202207
Rother District Council,03/10/2022,091HOUSING,Housing and Community Services,20200,Housing Needs - HB (Housing Benefit),D2514,Accommodation Costs,91.00,SDR Living Ltd,,2036282,202207
Rother District Council,03/10/2022,091HOUSING,Housing and Community Services,20329,Rough Sleeping Initiative,D2514,Accommodation Costs,199.50,SDR Living Ltd,,2036282,202207
Rother District Council,03/10/2022,091HOUSING,Housing and Community Services,20200,Housing Needs - HB (Housing Benefit),D2514,Accommodation Costs,291.20,SDR Living Ltd,,2036282,202207
Rother District Council,03/10/2022,091HOUSING,Housing and Community Services,20200,Housing Needs - HB (Housing Benefit),D2514,Accommodation Costs,72.80,SDR Living Ltd,,2036282,202207
Rother District Council,03/10/2022,091HOUSING,Housing and Community Services,20200,Housing Needs - HB (Housing Benefit),D2514,Accommodation Costs,364.00,SDR Living Ltd,,2036282,202207
Rother District Council,03/10/2022,091HOUSING,Housing and Community Services,20200,Housing Needs - HB (Housing Benefit),D2514,Accommodation Costs,91.00,SDR Living Ltd,,2036282,202207
Rother District Council,03/10/2022,091HOUSING,Housing and Community Services,20200,Housing Needs - HB (Housing Benefit),D2514,Accommodation Costs,364.00,SDR Living Ltd,,2036282,202207
Rother District Council,03/10/2022,091HOUSING,Housing and Community Services,20200,Housing Needs - HB (Housing Benefit),D2514,Accommodation Costs,91.00,SDR Living Ltd,,2036282,202207
Rother District Council,03/10/2022,091HOUSING,Housing and Community Services,20200,Housing Needs - HB (Housing Benefit),D2514,Accommodation Costs,364.00,SDR Living Ltd,,2036282,202207
Rother District Council,03/10/2022,091HOUSING,Housing and Community Services,20200,Housing Needs - HB (Housing Benefit),D2514,Accommodation Costs,437.50,SDR Living Ltd,,2036282,202207
Rother District Council,03/10/2022,091HOUSING,Housing and Community Services,20200,Housing Needs - HB (Housing Benefit),D2514,Accommodation Costs,364.00,SDR Living Ltd,,2036282,202207
Rother District Council,03/10/2022,091HOUSING,Housing and Community Services,20200,Housing Needs - HB (Housing Benefit),D2514,Accommodation Costs,284.00,SDR Living Ltd,,2036282,202207
Rother District Council,03/10/2022,091HOUSING,Housing and Community Services,20329,Rough Sleeping Initiative,D2514,Accommodation Costs,291.20,SDR Living Ltd,,2036282,202207
Rother District Council,03/10/2022,091HOUSING,Housing and Community Services,20329,Rough Sleeping Initiative,D2514,Accommodation Costs,72.80,SDR Living Ltd,,2036282,202207
Rother District Council,03/10/2022,091HOUSING,Housing and Community Services,20200,Housing Needs - HB (Housing Benefit),D2514,Accommodation Costs,364.00,SDR Living Ltd,,2036282,202207
Rother District Council,03/10/2022,091HOUSING,Housing and Community Services,20200,Housing Needs - HB (Housing Benefit),D2514,Accommodation Costs,91.00,SDR Living Ltd,,2036282,202207
Rother District Council,03/10/2022,091HOUSING,Housing and Community Services,20200,Housing Needs - HB (Housing Benefit),D2514,Accommodation Costs,213.00,SDR Living Ltd,,2036282,202207
Rother District Council,03/10/2022,091HOUSING,Housing and Community Services,20329,Rough Sleeping Initiative,D2514,Accommodation Costs,364.00,SDR Living Ltd,,2036282,202207
Rother District Council,03/10/2022,091HOUSING,Housing and Community Services,20329,Rough Sleeping Initiative,D2514,Accommodation Costs,91.00,SDR Living Ltd,,2036282,202207
Rother District Council,03/10/2022,091HOUSING,Housing and Community Services,20200,Housing Needs - HB (Housing Benefit),D2514,Accommodation Costs,350.00,SDR Living Ltd,,2036282,202207
Rother District Council,03/10/2022,091HOUSING,Housing and Community Services,20200,Housing Needs - HB (Housing Benefit),D2514,Accommodation Costs,87.50,SDR Living Ltd,,2036282,202207
Rother District Council,03/10/2022,091HOUSING,Housing and Community Services,20329,Rough Sleeping Initiative,D2514,Accommodation Costs,"1,372.00",The Ellesmere Hotel,,2036014,202207
Rother District Council,03/10/2022,091HOUSING,Housing and Community Services,20261,"TA Purchases (prev - 41 Jameson Mews, Bexhill on Sea)",D2513,Hired and Contracted services,30.00,Titanium Security Solutions Ltd,Hired and contracted services - Service fee paid,2036064,202207
Rother District Council,03/10/2022,091HOUSING,Housing and Community Services,20261,"TA Purchases (prev - 41 Jameson Mews, Bexhill on Sea)",D2513,Hired and Contracted services,30.00,Titanium Security Solutions Ltd,Hired and contracted services - Service fee paid,2036064,202207
Rother District Council,03/10/2022,091HOUSING,Housing and Community Services,20261,"TA Purchases (prev - 41 Jameson Mews, Bexhill on Sea)",D2513,Hired and Contracted services,30.00,Titanium Security Solutions Ltd,Hired and contracted services - Service fee paid,2036064,202207
Rother District Council,03/10/2022,091HOUSING,Housing and Community Services,20261,"TA Purchases (prev - 41 Jameson Mews, Bexhill on Sea)",D2513,Hired and Contracted services,30.00,Titanium Security Solutions Ltd,Hired and contracted services - Service fee paid,2036064,202207
Rother District Council,03/10/2022,091HOUSING,Housing and Community Services,20261,"TA Purchases (prev - 41 Jameson Mews, Bexhill on Sea)",D2513,Hired and Contracted services,30.00,Titanium Security Solutions Ltd,Hired and contracted services - Service fee paid,2036064,202207
Rother District Council,03/10/2022,091HOUSING,Housing and Community Services,20261,"TA Purchases (prev - 41 Jameson Mews, Bexhill on Sea)",D2513,Hired and Contracted services,30.00,Titanium Security Solutions Ltd,Hired and contracted services - Service fee paid,2036064,202207
Rother District Council,03/10/2022,091HOUSING,Housing and Community Services,20261,"TA Purchases (prev - 41 Jameson Mews, Bexhill on Sea)",D2513,Hired and Contracted services,30.00,Titanium Security Solutions Ltd,Hired and contracted services - Service fee paid,2036064,202207
Rother District Council,03/10/2022,091HOUSING,Housing and Community Services,20304,Housing First,D2513,Hired and Contracted services,30.00,Titanium Security Solutions Ltd,Hired and contracted services - Service fee paid,2036064,202207
Rother District Council,03/10/2022,091HOUSING,Housing and Community Services,20304,Housing First,D2513,Hired and Contracted services,120.00,Titanium Security Solutions Ltd,Hired and contracted services - Service fee paid,2036064,202207
Rother District Council,03/10/2022,091HOUSING,Housing and Community Services,20261,"TA Purchases (prev - 41 Jameson Mews, Bexhill on Sea)",D2513,Hired and Contracted services,30.00,Titanium Security Solutions Ltd,Hired and contracted services - Service fee paid,2036064,202207
Rother District Council,03/10/2022,091HOUSING,Housing and Community Services,20304,Housing First,D2513,Hired and Contracted services,30.00,Titanium Security Solutions Ltd,Hired and contracted services - Service fee paid,2036064,202207
Rother District Council,03/10/2022,091HOUSING,Housing and Community Services,20317,Rother Leasing Scheme,D2513,Hired and Contracted services,30.00,Titanium Security Solutions Ltd,Hired and contracted services - Service fee paid,2036064,202207
Rother District Council,03/10/2022,091HOUSING,Housing and Community Services,20123,Cemeteries,B1100,Repairs to Premises,16.73,Trade UK Account (Screwfix & B&Q),Repairs to Premises - Purchase of Materials - Build Maint,2036177,202207
Rother District Council,04/10/2022,999NOREPORT,Not included in reporting,70706,Capital - Disabled Facilities Grant,N1012,Capital Advances,"6,101.19",REDACTED PERSONAL DATA,Capital Advances Disabled Facilities Grant,2036140,202207
Rother District Council,04/10/2022,101RESOURCES,Resources,20241,Stationery,D2420,General office supplies (Stationery purchased from ext suppliers),4.80,Banner Group Ltd,General office supplies - Stationery (Stationery Services to buy ONLY),2036246,202207
Rother District Council,04/10/2022,091HOUSING,Housing and Community Services,20261,"TA Purchases (prev - 41 Jameson Mews, Bexhill on Sea)",B2202,Gas,153.89,British Gas Business (600 Accounts only),Gas - Gas Charges,2036303,202207
Rother District Council,04/10/2022,091HOUSING,Housing and Community Services,20261,"TA Purchases (prev - 41 Jameson Mews, Bexhill on Sea)",B2202,Gas,85.89,British Gas Business (600 Accounts only),Gas - Gas Charges,2036302,202207
Rother District Council,04/10/2022,091HOUSING,Housing and Community Services,20128,Public Conveniences,B2422,Sewerage,400.93,CountyClean Environmental Services Ltd,Sewerage - Sewage/Cesspool Emptying,2036251,202207
Rother District Council,04/10/2022,999NOREPORT,Not included in reporting,70725,Capital - Blackfriars,N1004,Architects & Consultant Fees,"5,000.00",East Sussex County Council,Architects & Consultant Fees Capital-Architect and Conslt Fees,2036197,202207
Rother District Council,04/10/2022,999NOREPORT,Not included in reporting,70706,Capital - Disabled Facilities Grant,N1012,Capital Advances,"1,760.51",Gregory (Kent) Ltd,Capital Advances Disabled Facilities Grant,2036138,202207
Rother District Council,04/10/2022,041ENVIRON,Environmental Services,32134,EH Pollution R + W Partnership,D2513,Hired and Contracted services,"2,100.00",Hastings and Rother Mediation Service,Hired and Contracted Services - Hastings+Rother Mediation Service,2036059,202207
Rother District Council,04/10/2022,031RESOURCES,Chief Executive & Corporate Core,20183,Chief Executive,A2203,Training,70.00,REDACTED PERSONAL DATA,Training,2036150,202207
Rother District Council,04/10/2022,041ENVIRON,Environmental Services,32144,EH Environmental Services Admin R + W Partnership,A2203,Training,125.00,Lavender & Wilson Housing Training & Consultancy,Training,2036657,202208
Rother District Council,04/10/2022,091HOUSING,Housing and Community Services,20114,Bexhill Parks & Open Spaces,B1100,Repairs to Premises,"1,000.00",Mayhew Consultancy,Repairs to Premises - Parks - Tree Works,2036145,202207
Rother District Council,04/10/2022,091HOUSING,Housing and Community Services,20116,Rural Open Spaces & Amenities,B1100,Repairs to Premises,950.00,Mayhew Consultancy,Repairs to Premises - Parks - Tree Works,2036146,202207
Rother District Council,04/10/2022,101RESOURCES,Resources,20239,Computer Services,D2513,Hired and Contracted services,"2,200.00",NEC Software Solutions UK Ltd,Hired and contracted services - Service fee paid,2036173,202207
Rother District Council,04/10/2022,999NOREPORT,Not included in reporting,70737,Capital � Barnhorn Green,N1004,Architects & Consultant Fees,"2,965.00",Phlorum Ltd,Architects & Consultant Fees Capital-Architect and Conslt Fees,2036253,202207
Rother District Council,04/10/2022,999NOREPORT,Not included in reporting,70706,Capital - Disabled Facilities Grant,N1012,Capital Advances,"4,159.00",Prestige Stairlifts Ltd,Capital Advances Disabled Facilities Grant,2036139,202207
Rother District Council,04/10/2022,041ENVIRON,Environmental Services,20130,Crime and Disorder Initiatives,D2923,Grants made,60.00,Rye Partnership Ltd,Grants made - Crime Prevention Initiative (JAG),2036160,202207
Rother District Council,04/10/2022,091HOUSING,Housing and Community Services,20128,Public Conveniences,B2422,Sewerage,50.81,Scottish Water Business Stream Limited,Sewerage - Sewerage Charges,2036186,202207
Rother District Council,04/10/2022,091HOUSING,Housing and Community Services,20200,Housing Needs - HB (Housing Benefit),D2514,Accommodation Costs,"7,466.06",Specialist Care UK Group Ltd,,2036043,202207
Rother District Council,04/10/2022,091HOUSING,Housing and Community Services,20200,Housing Needs - HB (Housing Benefit),D2514,Accommodation Costs,487.50,Specialist Care UK Group Ltd,,2036039,202207
Rother District Council,04/10/2022,091HOUSING,Housing and Community Services,20200,Housing Needs - HB (Housing Benefit),D2514,Accommodation Costs,200.00,Specialist Care UK Group Ltd,,2036041,202207
Rother District Council,04/10/2022,091HOUSING,Housing and Community Services,20200,Housing Needs - HB (Housing Benefit),D2514,Accommodation Costs,"1,446.39",Specialist Care UK Group Ltd,,2036040,202207
Rother District Council,04/10/2022,091HOUSING,Housing and Community Services,20200,Housing Needs - HB (Housing Benefit),D2514,Accommodation Costs,"1,312.50",Specialist Care UK Group Ltd,,2036033,202207
Rother District Council,04/10/2022,091HOUSING,Housing and Community Services,20200,Housing Needs - HB (Housing Benefit),D2514,Accommodation Costs,400.00,Specialist Care UK Group Ltd,,2036037,202207
Rother District Council,04/10/2022,091HOUSING,Housing and Community Services,20200,Housing Needs - HB (Housing Benefit),D2514,Accommodation Costs,"1,312.50",Specialist Care UK Group Ltd,,2036044,202207
Rother District Council,04/10/2022,091HOUSING,Housing and Community Services,20329,Rough Sleeping Initiative,D2514,Accommodation Costs,75.00,Specialist Care UK Group Ltd,,2036042,202207
Rother District Council,04/10/2022,091HOUSING,Housing and Community Services,20329,Rough Sleeping Initiative,D2514,Accommodation Costs,"1,500.00",Specialist Care UK Group Ltd,,2036032,202207
Rother District Council,04/10/2022,091HOUSING,Housing and Community Services,20200,Housing Needs - HB (Housing Benefit),D2514,Accommodation Costs,875.00,Specialist Care UK Group Ltd,,2036036,202207
Rother District Council,04/10/2022,091HOUSING,Housing and Community Services,20200,Housing Needs - HB (Housing Benefit),D2514,Accommodation Costs,487.50,Specialist Care UK Group Ltd,,2036038,202207
Rother District Council,04/10/2022,091HOUSING,Housing and Community Services,20200,Housing Needs - HB (Housing Benefit),D2514,Accommodation Costs,937.50,Specialist Care UK Group Ltd,,2036035,202207
Rother District Council,04/10/2022,091HOUSING,Housing and Community Services,20200,Housing Needs - HB (Housing Benefit),D2514,Accommodation Costs,"1,750.00",Specialist Care UK Group Ltd,,2036034,202207
Rother District Council,04/10/2022,091HOUSING,Housing and Community Services,20137,Car Parks,D2352,Clothing and Uniforms,191.92,SuperStitch 86,Clothing and Uniforms - Mens Uniform-Shirt,2036187,202207
Rother District Council,04/10/2022,091HOUSING,Housing and Community Services,20261,"TA Purchases (prev - 41 Jameson Mews, Bexhill on Sea)",D2513,Hired and Contracted services,140.00,Titanium Security Solutions Ltd,Hired and contracted services - Service fee paid,2037090,202208
Rother District Council,04/10/2022,999NOREPORT,Not included in reporting,70706,Capital - Disabled Facilities Grant,N1012,Capital Advances,951.78,Town & Country Housing,Capital Advances Disabled Facilities Grant,2036137,202207
Rother District Council,04/10/2022,091HOUSING,Housing and Community Services,20114,Bexhill Parks & Open Spaces,B1100,Repairs to Premises,5.99,Trade UK Account (Screwfix & B&Q),Repairs to Premises - Purchase of Materials - Build Maint,2036414,202207
Rother District Council,04/10/2022,031RESOURCES,Chief Executive & Corporate Core,20173,Administrative Offices - Town Hall,B2612,Cleaning materials,274.62,Wightman and Parrish Ltd,Cleaning materials - Premises,2036426,202207
Rother District Council,04/10/2022,091HOUSING,Housing and Community Services,20200,Housing Needs - HB (Housing Benefit),D2513,Hired and Contracted services,"2,167.00",YMCA Downslink Group,Hired and contracted services - Service fee paid,2036212,202207
Rother District Council,05/10/2022,091HOUSING,Housing and Community Services,20114,Bexhill Parks & Open Spaces,D1201,Equipment & Materials,410.00,1env Solutions Ltd,Equipment & Materials - Parks- Litter Bins,2036424,202207
Rother District Council,05/10/2022,091HOUSING,Housing and Community Services,20114,Bexhill Parks & Open Spaces,D1201,Equipment & Materials,410.00,1env Solutions Ltd,Equipment & Materials - Parks- Litter Bins,2036248,202207
Rother District Council,05/10/2022,091HOUSING,Housing and Community Services,20261,"TA Purchases (prev - 41 Jameson Mews, Bexhill on Sea)",D2513,Hired and Contracted services,443.00,A&A Cleaning & Property Services Ltd,Hired and contracted services - Service fee paid,2036155,202207
Rother District Council,05/10/2022,999NOREPORT,Not included in reporting,70751,Capital - Temporary Accommodation,N1003,Construction/Conversion,30.00,A&A Cleaning & Property Services Ltd,Construction/Conversion Capital-Contract Payments - General,2036169,202207
Rother District Council,05/10/2022,091HOUSING,Housing and Community Services,20137,Car Parks,B1100,Repairs to Premises,179.62,Alfa Electric Ltd,Repairs to Premises - Repairs - Electrical Works,2036641,202208
Rother District Council,05/10/2022,091HOUSING,Housing and Community Services,20137,Car Parks,B1100,Repairs to Premises,298.16,Alfa Electric Ltd,Repairs to Premises - Repairs - Electrical Works,2036642,202208
Rother District Council,05/10/2022,081ACQUISIT,"Acquisitions, Transformation and Regeneration",20308,Amherst Road,B1100,Repairs to Premises,250.00,Black Sheep Engineering Ltd,Repairs to Premises - Fire Alarm System Maintenance,2036148,202207
Rother District Council,05/10/2022,031RESOURCES,Chief Executive & Corporate Core,20173,Administrative Offices - Town Hall,B1100,Repairs to Premises,250.00,Black Sheep Engineering Ltd,Repairs to Premises - Fire Alarm System Maintenance,2036148,202207
Rother District Council,05/10/2022,031RESOURCES,Chief Executive & Corporate Core,20176,Administrative Offices - Print Room,B1100,Repairs to Premises,250.00,Black Sheep Engineering Ltd,Repairs to Premises - Fire Alarm System Maintenance,2036148,202207
Rother District Council,05/10/2022,081ACQUISIT,"Acquisitions, Transformation and Regeneration",20153,"Elva Business Centre, Bexhill",B1100,Repairs to Premises,250.00,Black Sheep Engineering Ltd,Repairs to Premises - Fire Alarm System Maintenance,2036148,202207
Rother District Council,05/10/2022,999NOREPORT,Not included in reporting,70705,Capital - Fairlight Coastal Protection Scheme (Preservational Trust),N1005,Other fees,"4,999.20",Booker and Best Ltd,Other Fees - Capital exp Std VAT,2036203,202207
Rother District Council,05/10/2022,091HOUSING,Housing and Community Services,20309,Homelessness Prevention Grant,D2513,Hired and Contracted services,"5,887.50",Brighton Housing Trust (BHT),Hired and Contracted services,2036163,202207
Rother District Council,05/10/2022,101RESOURCES,Resources,20315,Payments to Ukrainian Hosts,D2923,Grants made,350.00,REDACTED PERSONAL DATA,Grants made,2036052,202207
Rother District Council,05/10/2022,081ACQUISIT,"Acquisitions, Transformation and Regeneration",20232,Nlpg-E-Government,D2635,Computer Licences,"1,530.00",GGP Systems Ltd,Computer Licences - GIS System,2036633,202208
Rother District Council,05/10/2022,101RESOURCES,Resources,20315,Payments to Ukrainian Hosts,D2923,Grants made,350.00,REDACTED PERSONAL DATA,Grants made,2036052,202207
Rother District Council,05/10/2022,101RESOURCES,Resources,20313,Council Tax Energy Rebate Scheme,D2923,Grants made,150.00,REDACTED PERSONAL DATA,Grants made,2036057,202207
Rother District Council,05/10/2022,101RESOURCES,Resources,20315,Payments to Ukrainian Hosts,D2923,Grants made,350.00,REDACTED PERSONAL DATA,Grants made,2036052,202207
Rother District Council,05/10/2022,101RESOURCES,Resources,20315,Payments to Ukrainian Hosts,D2923,Grants made,350.00,REDACTED PERSONAL DATA,Grants made,2036052,202207
Rother District Council,05/10/2022,101RESOURCES,Resources,20315,Payments to Ukrainian Hosts,D2923,Grants made,350.00,REDACTED PERSONAL DATA,Grants made,2036052,202207
Rother District Council,05/10/2022,101RESOURCES,Resources,20315,Payments to Ukrainian Hosts,D2923,Grants made,350.00,REDACTED PERSONAL DATA,,2036052,202207
Rother District Council,05/10/2022,101RESOURCES,Resources,20315,Payments to Ukrainian Hosts,D2923,Grants made,350.00,REDACTED PERSONAL DATA,,2036052,202207
Rother District Council,05/10/2022,101RESOURCES,Resources,20315,Payments to Ukrainian Hosts,D2923,Grants made,350.00,REDACTED PERSONAL DATA,,2036052,202207
Rother District Council,05/10/2022,101RESOURCES,Resources,20315,Payments to Ukrainian Hosts,D2923,Grants made,350.00,REDACTED PERSONAL DATA,,2036052,202207
Rother District Council,05/10/2022,101RESOURCES,Resources,20315,Payments to Ukrainian Hosts,D2923,Grants made,350.00,REDACTED PERSONAL DATA,,2036052,202207
Rother District Council,05/10/2022,101RESOURCES,Resources,20315,Payments to Ukrainian Hosts,D2923,Grants made,350.00,REDACTED PERSONAL DATA,,2036052,202207
Rother District Council,05/10/2022,101RESOURCES,Resources,20315,Payments to Ukrainian Hosts,D2923,Grants made,350.00,REDACTED PERSONAL DATA,,2036052,202207
Rother District Council,05/10/2022,101RESOURCES,Resources,20315,Payments to Ukrainian Hosts,D2923,Grants made,350.00,REDACTED PERSONAL DATA,,2036052,202207
Rother District Council,05/10/2022,101RESOURCES,Resources,20315,Payments to Ukrainian Hosts,D2923,Grants made,350.00,REDACTED PERSONAL DATA,,2036052,202207
Rother District Council,05/10/2022,101RESOURCES,Resources,20315,Payments to Ukrainian Hosts,D2923,Grants made,350.00,REDACTED PERSONAL DATA,,2036052,202207
Rother District Council,05/10/2022,101RESOURCES,Resources,20315,Payments to Ukrainian Hosts,D2923,Grants made,350.00,REDACTED PERSONAL DATA,,2036052,202207
Rother District Council,05/10/2022,101RESOURCES,Resources,20315,Payments to Ukrainian Hosts,D2923,Grants made,350.00,REDACTED PERSONAL DATA,,2036052,202207
Rother District Council,05/10/2022,101RESOURCES,Resources,20315,Payments to Ukrainian Hosts,D2923,Grants made,350.00,REDACTED PERSONAL DATA,,2036052,202207
Rother District Council,05/10/2022,101RESOURCES,Resources,20315,Payments to Ukrainian Hosts,D2923,Grants made,850.00,REDACTED PERSONAL DATA,,2036046,202207
Rother District Council,05/10/2022,101RESOURCES,Resources,20315,Payments to Ukrainian Hosts,D2923,Grants made,350.00,REDACTED PERSONAL DATA,,2036052,202207
Rother District Council,05/10/2022,101RESOURCES,Resources,20315,Payments to Ukrainian Hosts,D2923,Grants made,350.00,REDACTED PERSONAL DATA,,2036052,202207
Rother District Council,05/10/2022,101RESOURCES,Resources,20315,Payments to Ukrainian Hosts,D2923,Grants made,350.00,REDACTED PERSONAL DATA,,2036052,202207
Rother District Council,05/10/2022,101RESOURCES,Resources,20315,Payments to Ukrainian Hosts,D2923,Grants made,350.00,REDACTED PERSONAL DATA,,2036052,202207
Rother District Council,05/10/2022,101RESOURCES,Resources,20315,Payments to Ukrainian Hosts,D2923,Grants made,350.00,REDACTED PERSONAL DATA,,2036052,202207
Rother District Council,05/10/2022,101RESOURCES,Resources,20315,Payments to Ukrainian Hosts,D2923,Grants made,350.00,REDACTED PERSONAL DATA,,2036052,202207
Rother District Council,05/10/2022,101RESOURCES,Resources,20315,Payments to Ukrainian Hosts,D2923,Grants made,350.00,REDACTED PERSONAL DATA,,2036052,202207
Rother District Council,05/10/2022,101RESOURCES,Resources,20315,Payments to Ukrainian Hosts,D2923,Grants made,350.00,REDACTED PERSONAL DATA,,2036052,202207
Rother District Council,05/10/2022,101RESOURCES,Resources,20315,Payments to Ukrainian Hosts,D2923,Grants made,350.00,REDACTED PERSONAL DATA,,2036052,202207
Rother District Council,05/10/2022,101RESOURCES,Resources,20315,Payments to Ukrainian Hosts,D2923,Grants made,350.00,REDACTED PERSONAL DATA,,2036052,202207
Rother District Council,05/10/2022,101RESOURCES,Resources,20315,Payments to Ukrainian Hosts,D2923,Grants made,350.00,REDACTED PERSONAL DATA,,2036052,202207
Rother District Council,05/10/2022,101RESOURCES,Resources,20315,Payments to Ukrainian Hosts,D2923,Grants made,850.00,REDACTED PERSONAL DATA,,2036046,202207
Rother District Council,05/10/2022,101RESOURCES,Resources,20315,Payments to Ukrainian Hosts,D2923,Grants made,350.00,REDACTED PERSONAL DATA,,2036052,202207
Rother District Council,05/10/2022,101RESOURCES,Resources,20315,Payments to Ukrainian Hosts,D2923,Grants made,350.00,REDACTED PERSONAL DATA,,2036052,202207
Rother District Council,05/10/2022,101RESOURCES,Resources,20315,Payments to Ukrainian Hosts,D2923,Grants made,350.00,REDACTED PERSONAL DATA,,2036052,202207
Rother District Council,05/10/2022,101RESOURCES,Resources,20315,Payments to Ukrainian Hosts,D2923,Grants made,350.00,REDACTED PERSONAL DATA,,2036052,202207
Rother District Council,05/10/2022,101RESOURCES,Resources,20315,Payments to Ukrainian Hosts,D2923,Grants made,350.00,REDACTED PERSONAL DATA,,2036052,202207
Rother District Council,05/10/2022,101RESOURCES,Resources,20315,Payments to Ukrainian Hosts,D2923,Grants made,350.00,REDACTED PERSONAL DATA,,2036052,202207
Rother District Council,05/10/2022,101RESOURCES,Resources,20315,Payments to Ukrainian Hosts,D2923,Grants made,350.00,REDACTED PERSONAL DATA,,2036052,202207
Rother District Council,05/10/2022,101RESOURCES,Resources,20315,Payments to Ukrainian Hosts,D2923,Grants made,350.00,REDACTED PERSONAL DATA,,2036052,202207
Rother District Council,05/10/2022,101RESOURCES,Resources,20315,Payments to Ukrainian Hosts,D2923,Grants made,350.00,REDACTED PERSONAL DATA,,2036052,202207
Rother District Council,05/10/2022,101RESOURCES,Resources,20315,Payments to Ukrainian Hosts,D2923,Grants made,350.00,REDACTED PERSONAL DATA,,2036052,202207
Rother District Council,05/10/2022,101RESOURCES,Resources,20315,Payments to Ukrainian Hosts,D2923,Grants made,350.00,REDACTED PERSONAL DATA,,2036052,202207
Rother District Council,05/10/2022,101RESOURCES,Resources,20315,Payments to Ukrainian Hosts,D2923,Grants made,350.00,REDACTED PERSONAL DATA,,2036052,202207
Rother District Council,05/10/2022,101RESOURCES,Resources,20315,Payments to Ukrainian Hosts,D2923,Grants made,350.00,REDACTED PERSONAL DATA,,2036052,202207
Rother District Council,05/10/2022,101RESOURCES,Resources,20315,Payments to Ukrainian Hosts,D2923,Grants made,350.00,REDACTED PERSONAL DATA,,2036052,202207
